Workbook

Sheet Cover Page

Sheet Instructions

Sheet FAQ (hidden)

Sheet Index (hidden)
D4: Cost Reference Model Index
D5: S.n. | E5: Sheet name | F5: Description
D6: 1 | E6: Instruction | F6: It includes basic instruction and tool features. It also contains interface button to input data and compare multiple scenarios
D7: 2 | E7: 0.2 Unit cost assumption | F7: Unit cost of items/ service used to estimate cost of national identity program
D8: 3 | E8: 0.3 HR compensation | F8: Annual compensation for various positions for administrative and operational roles
D9: 4 | E9: 0.4 All inputs | F9: Contains all the inputs required by model to function properly
D10: 5 | E10: 0.8 Assumption | F10: Details out estimation methodology and assumptions
D11: 6 | E11: 0.9 Default parameters | F11: Contains assumed default parameter, it feeds into 0.4 all input sheet
D12: 7 | E12: 1 Enrolment | F12: Estimation of enrolment station requirement for enrolment, data update and helpdesk
D13: 8 | E13: 1.1 Enrolment backend | F13: Estimation of enrolment time, cost of enrolment kit and population projection based on input provided by user
D14: 9 | E14: 2 Human resource | F14: Estimation of cost of human resource
D15: 10 | E15: 2.1 Org structure | F15: Assumed organisation structure for administration and operation
D16: 11 | E16: 3. Helpdesk, IEC and T&CB | F16: Estimation of cost associated with helpdesk, IEC, training and capacity building activities
D17: 12 | E17: 4. Software | F17: Estimation of software development and maintenance cost
D18: 13 | E18: 5. Facility cost | F18: Estimation of setting up and maintaining office facilities
D19: 14 | E19: 6. Identity credential | F19: Estimation of cost of identity credential
D20: 15 | E20: 6.1 Feature cost | F20: Estimation of per identity cost based on user input
D21: 16 | E21: 7 Central IT | F21: Estimation of cost of data center and disaster recovery site
D22: 17 | E22: 7.1 Backend | F22: Estimation of server, storage requirements for data center
D23: 18 | E23: 8. Model output | F23: Output of model
D24: 19 | E24: 8.1 Scenario 1 | F24: Saved output for scenario 1
D25: 20 | E25: 8.2 Scenario 2 | F25: Saved output for scenario 2
D26: 21 | E26: 8.3 Scenario 1 | F26: Saved output for scenario 3
D27: 22 | E27: 8.4 Scenario 1 | F27: Saved output for scenario 4
D28: 23 | E28: Graphs | F28: Comparative graphs for all the scenarios

Sheet 0.1 Input Background (hidden)

Sheet 0.2 Unit cost assumptions (hidden)
E1: Instructions: This sheet list down the unit cost of items / services used in this model to estimate the overall project cost. Cost of these items / services are taken from industry experts, wholesale suppliers and various industry reports. Kindly read the assumptions and calculation methodology carefully before changing these values.
E6: Name of the item / Service | F6: Unit cost (US $) | G6: Description | H6: Source (if any)
E7: Computer / Laptop | F7: 1200
E8: Mobile / tablet | F8: 200
E9: Camera / webcam | F9: 100
E10: Multifunction Printer | F10: 200
E11: Power back up | F11: 100
E12: Finger print scanner - One finger | F12: 200
E13: Finger print scanner - Slab scanner | F13: 1000 | G13: Greenbit DactyScan84C
E14: Iris scanner - one | F14: 300
E15: Iris scanner - two | F15: 1000 | G15: I Scan 2 from Cross match
E16: Signature pad | F16: 150
E17: GPS dongle | F17: 100
E18: Additional Screen | F18: 150
E19: Voice recording device | F19: 150
E20: Case for kit | F20: 200
E21: Annual operating expenditure per enrolment station | F21: 2500 | G21: Cost of utilities (electricity, water, internet), rent for space, maintenance of devices and space etc. | H21: estimated based on experience
E22: Enrolment station setup cost | F22: 0 | G22: setup cost includes cabling cost, electricity fitting cost, furniture cost , banner cost, first aid kit etc. | H22: estimated based on experience
E23: Cost per hour for outsourcing call center | F23: 14 | G23: this include cost of agent, call center management and other call center related expenditures | H23: based on industry report, subject to high variation as per location
E24: Toll free no. annual cost | F24: 50000 | G24: cost of acquiring and managing toll free no.
E25: Training modules cost | F25: 500000 | G25: Training modules will be required for training and capacity building activities for ID agency staff. This cost includes cost of video modules, pamphlets, assessment modules, information booklets, teacher's notes etc. | H25: estimation based on various reports
E26: Per batch training cost | F26: 2000 | G26: cost for training batch of 15 people. This includes cost of space, equipment, stationary, snacks, tutor fee, certification and allowance to trainees | H26: estimation based on various reports
E27: Enrolment client and server | F27: 650000 | H27: industry experts
E28: Data synchronization software | F28: 50000 | H28: industry experts
E29: Data validation tool | F29: 50000 | H29: industry experts
E30: CRM tool | F30: 50000 | H30: industry experts
E31: Verification client and server | F31: 150000 | H31: industry experts
E32: Notification system | F32: 25000 | H32: industry experts
E33: identity and access management system | F33: 50000 | H33: industry experts
E34: Portal | F34: 200000 | H34: industry experts
E35: Fraud detection system | F35: 50000 | H35: industry experts
E36: Report system | F36: 25000 | H36: industry experts
E37: Cost per deduplication (For first biometric) | F37: 0.25 | H37: industry experts
E38: Add on dedup cost for additional biometric | F38: 0.1 | H38: industry experts
E39: Per person work station setup cost | F39: 1000 | G39: cost of associated technical infrastructure i.e. laptop, landline, stationary etc. | H39: based on industry reports
E40: Per sq. ft. office setup cost | F40: 75 | G40: cost of office setup | H40: based on industry reports
E41: Per person per year operating expenditure | F41: 300 | G41: stationary, snacks etc. | H41: based on industry reports
E42: Per sq. ft. office operating expenditure | F42: 7 | G42: Cost of electricity, internet, security, cleaning, admin etc. per year | H42: based on industry reports
E43: Office rent per sq. ft. | F43: 5 | H43: Subject to high variation as per location
E44: Cost of identity credential components
E45: 1D barcode | F45: 0.1 | H45: industry experts
E46: 2D barcode | F46: 0.1 | H46: industry experts
E47: ='0.5 UI backend'!A3 -> Contact Chip | F47: 0.6 | G47: type of chip | H47: industry experts
E48: ='0.5 UI backend'!A4 -> Contactless chip | F48: 0.7 | G48: type of chip | H48: industry experts
E49: ='0.5 UI backend'!A5 -> Dual interface chip | F49: 0.8 | G49: type of chip | H49: industry experts
E50: ='0.5 UI backend'!A6 -> Hybrid chip | F50: 1.2 | G50: type of chip | H50: industry experts
E51: Mag strip | F51: 0.5 | H51: industry experts
E52: ='0.5 UI backend'!A9 -> Paper | F52: 0.02 | G52: Type of credential material | H52: industry experts
E53: ='0.5 UI backend'!A10 -> PVC | F53: 0.2 | G53: Type of credential material | H53: industry experts
E54: ='0.5 UI backend'!A11 -> PC | F54: 0.6 | G54: Type of credential material | H54: industry experts
E55: ='0.5 UI backend'!A12 -> PET | F55: 0.4 | G55: Type of credential material | H55: industry experts
E56: ='0.5 UI backend'!A13 -> Teslin | F56: 0.9 | G56: Type of credential material | H56: industry experts
E57: ='0.5 UI backend'!A14 -> Composite (PC+PVC) | F57: 0.4 | G57: Type of credential material | H57: industry experts
E58: Thermal printing | F58: 0.15 | H58: industry experts
E59: Printing on PVC and equivalent | F59: 0.3 | H59: industry experts
E60: Printing on PVC and equivalent smart cards | F60: 0.6 | H60: industry experts
E61: ='0.5 UI backend'!A17 -> Level 1 (overt) | F61: 0.5 | G61: Security feature | H61: industry experts
E62: ='0.5 UI backend'!A18 -> Level 2 (covert) | F62: 0.7 | G62: Security feature | H62: industry experts
E63: ='0.5 UI backend'!A19 -> Level 3 (forensic) | F63: 0.9 | G63: Security feature | H63: industry experts
E64: Credential Delivery Cost | F64: 0.1 | G64: cost of delivering credential to resident | H64: Subjected to high variation as per location
E65: Data center site operating cost | F65: 500000 | G65: Security, space, site management, maintenance, WAN etc. | H65: Subjected to high variation as per location
E66: Data center site installation cost | F66: 500000
E67: Web server cost | F67: 15000 | G67: Dell PowerEdge R730, 16 core, 2U | H67: industry experts
E68: Application server cost | F68: 30000 | G68: Dell PowerEdge R740, 16 core, 2U | H68: industry experts
E69: Database server cost | F69: 50000 | G69: Dell PowerEdge R940, 16 core, 3U | H69: industry experts
E70: Disk array | F70: 10000 | G70: EMC VNX series , 10 TB | H70: industry experts
E71: Load balancer | F71: 20000 | G71: Radware | H71: industry experts
E72: Unified threat management | F72: 30000 | G72: Fortigate | H72: industry experts
E73: One time password hardware | F73: 100000 | G73: Gemalto | H73: industry experts
E74: SAN switch | F74: 60000 | G74: Brocade 6520,48 Port Fibre | H74: industry experts
E75: Core switch | F75: 10000 | G75: NetApp FAS6200, 1.5 u | H75: industry experts
E76: Tape library | F76: 15000 | G76: NetAPP | H76: industry experts
E77: NAS | F77: 20000 | G77: tandberg | H77: industry experts
E78: Middleware software and firewalls | F78: 400000 | G78: e.g.. JBOSS | H78: industry experts
E79: Database software | F79: 100000 | G79: e.g. Postgresql | H79: industry experts
E80: Biometric verification tool | F80: 200000 | G80: Custom developed | H80: industry experts
E81: demographic verification tool | F81: 50000 | G81: Custom developed | H81: industry experts
E82: Caching software | F82: 100000 | G82: e.g. MemCache | H82: industry experts
E83: Clustering software | F83: 100000 | G83: e.g. Apache Mesos | H83: industry experts
E84: Replication software | F84: 100000 | G84: e.g. Postgresql,Storage volume replication | H84: industry experts
E85: VM software | F85: 100000 | G85: e.g. VMWare | H85: industry experts
E86: Vehicle for Mobile enrolment | F86: 200000 | G86: e.g Jeep | H86: market research

Sheet 0.4 All inputs (hidden)
A1: All inputs required by model
A5: Enrolment Cost Estimation
A6: Current population | B6: Population growth rate | C6: Birth rate | D6: Current year | E6: Eligible population | F6: Enrolment start year | G6: Enrolment phase completion year | H6: Target coverage during enrolment phase
A7: ='0.7 UI input conversion'!B1 -> 17094130 | B7: ='0.7 UI input conversion'!B2 -> 0.0293 | C7: ='0.7 UI input conversion'!B3 -> 0.0415 | D7: ='0.6 UI Inputs'!C1 -> 2018 | E7: ='0.7 UI input conversion'!B23 -> 0.7 | F7: ='0.7 UI input conversion'!B7 -> 2019 | G7: ='0.7 UI input conversion'!B8 -> 2021 | H7: ='0.9 Default parameters'!B7 -> 0.9
A10: Rural population | B10: Finger print required ? | C10: no.of finger print | D10: Iris required | E10: no. of iris | F10: Voice : Biometric (not) | G10: Facial photograph (Biometric) | H10: electronic signature | I10: Demographic fields
A11: ='0.7 UI input conversion'!B4 -> 0.5862 | B11: ='0.7 UI input conversion'!B12 -> 1 | C11: ='0.7 UI input conversion'!C12 -> 10 | D11: ='0.7 UI input conversion'!B13 -> 0 | E11: ='0.7 UI input conversion'!C13 -> 0 | F11: ='0.7 UI input conversion'!B11 -> 0 | G11: ='0.7 UI input conversion'!B9 -> 1 | H11: ='0.7 UI input conversion'!B10 -> 0 | I11: ='0.7 UI input conversion'!B14 -> 0
A14: Working hours per day | B14: Working days per year | C14: Fixed enrolment station working efficiency | D14: mobile enrolment station working efficiency | E14: % of rural population require mobile enrolment center | F14: Mandatory biometric update required | G14: Average inflation rate | H14: Per capita income
A15: ='0.9 Default parameters'!C7 -> 8 | B15: ='0.9 Default parameters'!D7 -> 250 | C15: ='0.9 Default parameters'!E7 -> 0.7 | D15: ='0.9 Default parameters'!F7 -> 0.5 | E15: ='0.9 Default parameters'!G7 -> 0.2 | F15: ='0.9 Default parameters'!H7 -> 1 | G15: ='0.9 Default parameters'!D12 -> 0.018 | H15: ='0.7 UI input conversion'!B5 -> 4000
F16: if upon turning to certain age residents are required to update their biometric data then 1 else 0 | H16: as on 2011, US $ PPP
A18: Human Resources Cost Estimation
A19: no. of employee at each enrolment station | B19: No. of Regional offices required | C19: No. of district office required | D19: Hiring cost
A20: ='0.9 Default parameters'!B12 -> 2 | B20: ='0.7 UI input conversion'!B24 -> 20 | C20: ='0.7 UI input conversion'!B25 -> 765 | D20: ='0.9 Default parameters'!C12 -> 0.05
D21: % of total annual compensation
A23: Helpdesk, IEC , Training and Capacity building Cost estimation
A24: % of people require helpdesk | B24: out of these people, % of people registering / resolving complain through call center | C24: % of people registering / resolving complain through visit to enrolment station | D24: no. of operators that will be trained | E24: Total no. of service provider agencies | F24: Per agency no. of operators who require training | G24: Per person IEC expenditure during enrolment phase
A25: ='0.9 Default parameters'!B17 -> 0.05 | B25: ='0.9 Default parameters'!C17 -> 0.3 | C25: ='0.9 Default parameters'!D17 -> 0.5 | D25: ='0.9 Default parameters'!E17 -> 1.25 | E25: ='0.9 Default parameters'!F17 -> 100 | F25: ='0.9 Default parameters'!G17 -> 5 | G25: ='0.9 Default parameters'!H17 -> 0.5
D26: % of actual required staff
A28: Software cost estimation
A29: Software AMC cost | B29: Request require manual deduplication | C29: Per manual dedup time (in minutes) | D29: Per manual quality check time (in minutes)
A30: ='0.9 Default parameters'!B22 -> 0.25 | B30: ='0.9 Default parameters'!C22 -> 0.05 | C30: ='0.9 Default parameters'!D22 -> 10 | D30: ='0.9 Default parameters'!E22 -> 5
A31: as percentage of cost of software development | B31: out of all the deduplication request, these many requests will require manual checking
A33: Facility cost estimation
A34: HQ office space requirement | B34: Regional office space requirement | C34: District office space requirement
A35: ='0.9 Default parameters'!B27 -> 15000 | B35: ='0.9 Default parameters'!C27 -> 5000 | C35: ='0.9 Default parameters'!D27 -> 1000
A36: sq. ft. | B36: sq. ft. | C36: sq. ft.
A38: Credential
A39: Credential Choice | B39: Type of Barcode | C39: Type of chip based card | D39: Mag strip | E39: Type of Material | F39: Type of security | G39: ID to be reissued
A40: ='0.7 UI input conversion'!B15 -> 1 | B40: ='0.7 UI input conversion'!B20 -> 2 | C40: ='0.7 UI input conversion'!B16 -> 4 | D40: ='0.7 UI input conversion'!B19 -> 1 | E40: ='0.7 UI input conversion'!B17 -> 3 | F40: ='0.7 UI input conversion'!B18 -> 3 | G40: ='0.9 Default parameters'!B32 -> 0.03
A41: 0 = No credential only UIN, 1 = eID, 2 = non electronic ID | B41: 0 = no barcode, 1= 1D barcode, 2 = 2D barcode | C41: 0 = no chip, 1 = contact, 2 = contactless, 3 = Dual interface, 4 = hybrid | D41: 0 = no, 1 = yes | E41: 0 = no material, 1 = paper, 2= PVC, 3 = PC, 4 = PET, 5 = Teslin, 6 = Composite (PC+PVC) | F41: 0 = no security, 1 = level 1, 2 = level 2, 3 = level 3 | G41: Due to lost or damage
A43: Data Center Cost Estimation
A44: per agency per person per year authentication requests | B44: Preferred biometric for authentication | C44: Preferred biometric for deduplication | D44: Per person raw data size | E44: Per person minutiae size | F44: Capacity of DR as compared to DC | G44: Storage disk minimum size
A45: ='0.9 Default parameters'!B37 -> 0.2 | B45: ='0.9 Default parameters'!C37 -> 1 | C45: ='0.9 Default parameters'!D37 -> 1 | D45: ='0.9 Default parameters'!E37 -> 4000 | E45: ='0.9 Default parameters'!F37 -> 150 | F45: ='0.9 Default parameters'!G37 -> 1 | G45: ='0.9 Default parameters'!H37 -> 10
A46: used to estimate the authentication volume | B46: 0 = no biometric authentication, 1 = finger prints, 2= Iris, 3 = Voice, 4 = face | C46: 1 = finger prints, 2= Iris, 3 = Voice, 4 = face | D46: in KB (including data update requests) | E46: in KB | G46: in TB
A48: No . of core in webserver | B48: no. of core in database server | C48: no. of core in application server | D48: Hardware AMC | E48: Web server capacity (no. of request per second per core) | F48: Application server capacity (no. of requests per core per second) | G48: Data base server capacity (no. of request per core per second)
A49: ='0.9 Default parameters'!B41 -> 16 | B49: ='0.9 Default parameters'!C41 -> 16 | C49: ='0.9 Default parameters'!D41 -> 16 | D49: ='0.9 Default parameters'!E41 -> 0.15 | E49: ='0.9 Default parameters'!F41 -> 3000 | F49: ='0.9 Default parameters'!G41 -> 100 | G49: ='0.9 Default parameters'!H41 -> 300
D50: as % of total cost of hardware | F50: 1 request is equivalent to one finger print authentication request
A52: Finger print deduplication matches per core per second | B52: Iris deduplication matches per core per second | C52: Face deduplication matches per core per second | D52: Voice deduplication per core per second
A53: ='0.9 Default parameters'!B45 -> 37500 | B53: ='0.9 Default parameters'!C45 -> 2500 | C53: ='0.9 Default parameters'!D45 -> 1250 | D53: ='0.9 Default parameters'!E45 -> 1250
A54: for two finger biometric deduplication
A56: Linkages with Civil registration department
A57: Shared infrastructure | B57: Shared Human Resources | C57: Reduction in infrastructure cost due to shared infra | D57: Reduction in human resources cost due to share human resources
A58: ='0.7 UI input conversion'!C22 -> 0 | B58: ='0.7 UI input conversion'!B22 -> 0 | C58: ='0.9 Default parameters'!B50 -> 0.3 | D58: ='0.9 Default parameters'!C50 -> 0.3
A59: yes=1 , no = 0 | B59: yes=1 , no = 0

Sheet 0.5 UI backend (hidden)
A2: Type of chip | D2: Linkages with Civil Registration Department
A3: Contact Chip | D3: No linkages with CR department
A4: Contactless chip | D4: Only infrastructure is shared
A5: Dual interface chip | D5: Only Human Resources is shared
A6: Hybrid chip | D6: Both infra and Human Resources are shared
A8: Material | D8: No credential, only UIN is provided
A9: Paper | D9: Smart card
A10: PVC | D10: Non electronic card
A11: PC
A12: PET
A13: Teslin
A14: Composite (PC+PVC)
A16: Security
A17: Level 1 (overt)
A18: Level 2 (covert)
A19: Level 3 (forensic)
A21: Mag strip
A22: Yes
A23: No
A25: Barcode
A26: No barcode
A27: 1D barcode
A28: 2D barcode
A30: True /False
A31: TRUE
A32: FALSE

Sheet 0.6 UI Inputs (hidden)
A1: Q. What is the population of country ? | B1: 17094130 | C1: 2018
A2: Q. What is the average population growth rate ? | B2: 2.93
A3: Q. What is the average birth rate ? | B3: 4.15
A4: Q. What percentage of the population is rural population ? | B4: 58.62
A5: Q. What is the gross national income (GNI) per capita of the country ? | B5: 4000
A7: Q. In which year enrolments will start ? | B7: 2019
A8: Q. By which year 90% of the eligible population should be enrolled ? | B8: 2021
A9: Facial Photograph | B9: TRUE
A10: Electronic signature | B10: FALSE
A11: Voice | B11: FALSE
A12: Finger prints | B12: TRUE | C12: 10
A13: Iris | B13: FALSE
A14: Q. How many demographic data points will be captured during enrolment ? | B14: 10
A15: Please select the type of identity credential to be issued ? | B15: Smart card
A16: Q. Type of chip based to be used ? | B16: Hybrid chip
A17: Q. Card material to be used ? | B17: PC
A18: Q. Level of security in the credential | B18: Level 3 (forensic)
A19: Q. Will the card include mag strip ? | B19: Yes
A20: Q. Will the card include bar code ? | B20: 2D barcode
A21: Is CR department is linked with ID agency ? | B21: No linkages with CR department
A22: Q. What percentage of population is eligible for national identity ? | B22: 70
A23: Number of regional / province level offices ? | B23: 20
A24: Number of district / municipality level offices ? | B24: 765

Sheet 0.7 UI input conversion (hidden)
A1: Q. What is the population of country ? | B1: ='0.6 UI Inputs'!B1 -> 17094130 | C1: ='0.6 UI Inputs'!C1 -> 2018
A2: Q. What is the average population growth rate ? | B2: ='0.6 UI Inputs'!B2/100 -> 0.0293
A3: Q. What is the average birth rate ? | B3: ='0.6 UI Inputs'!B3/100 -> 0.0415
A4: Q. What percentage of the population is rural population ? | B4: ='0.6 UI Inputs'!B4/100 -> 0.5862
A5: Q. What is the gross national income (GNI) per of the country ? | B5: ='0.6 UI Inputs'!B5 -> 4000
A6: Q. What is the average annual consumer price inflation ? | B6: ='0.6 UI Inputs'!B6/100 -> 0
A7: Q. In which year enrolments will start ? | B7: ='0.6 UI Inputs'!B7 -> 2019
A8: Q. By which year 90% of the eligible population should be enrolled ? | B8: ='0.6 UI Inputs'!B8 -> 2021
A9: Facial Photograph | B9: ='0.6 UI Inputs'!B9*1 -> 1
A10: Electronic signature | B10: ='0.6 UI Inputs'!B10*1 -> 0
A11: Voice | B11: ='0.6 UI Inputs'!B11*1 -> 0
A12: Finger prints | B12: ='0.6 UI Inputs'!B12*1 -> 1 | C12: ='0.6 UI Inputs'!C12*1 -> 10
A13: Iris | B13: ='0.6 UI Inputs'!B13*1 -> 0 | C13: ='0.6 UI Inputs'!C13*1 -> 0
A14: Q. How many demographic data points will be captured during enrolment ? | B14: 0
A15: Please select the type of identity credential to be issued ? | B15: =IF('0.6 UI Inputs'!B15='0.5 UI backend'!D8,0,IF('0.6 UI Inputs'!B15='0.5 UI backend'!D9,1,IF('0.6 UI Inputs'!B15='0.5 UI backend'!D10,2,0))) -> 1
A16: Q. Type of chip based to be used ? | B16: =IF('0.6 UI Inputs'!B16='0.5 UI backend'!A3,1,IF('0.6 UI Inputs'!B16='0.5 UI backend'!A4,2,IF('0.6 UI Inputs'!B16='0.5 UI backend'!A5,3,IF('0.6 UI Inputs'!B16='0.5 UI backend'!A6,4,0)))) -> 4
A17: Q. Card material to be used ? | B17: =IF('0.6 UI Inputs'!B17='0.5 UI backend'!A9,1,IF('0.6 UI Inputs'!B17='0.5 UI backend'!A10,2,IF('0.6 UI Inputs'!B17='0.5 UI backend'!A11,3,IF('0.6 UI Inputs'!B17='0.5 UI backend'!A12,4,IF('0.6 UI Inputs'!B17='0.5 UI backend'!A13,5,IF('0.6 UI Inputs'!B17='0.5 UI backend'!A14,6,0)))))) -> 3
A18: Q. Level of security in the credential | B18: =IF('0.6 UI Inputs'!B18='0.5 UI backend'!A17,1,IF('0.6 UI Inputs'!B18='0.5 UI backend'!A18,2,IF('0.6 UI Inputs'!B18='0.5 UI backend'!A19,3,0))) -> 3
A19: Q. Will the card include mag strip ? | B19: =IF('0.6 UI Inputs'!B19='0.5 UI backend'!A22,1,0) -> 1
A20: Q. Will the card include bar code ? | B20: =IF('0.6 UI Inputs'!B20='0.5 UI backend'!A26,0,IF('0.6 UI Inputs'!B20='0.5 UI backend'!A27,1,IF('0.6 UI Inputs'!B20='0.5 UI backend'!A28,2,0))) -> 2
B21: Human Resources | C21: Infra
A22: Is CRVS department is linked with ID agency ? | B22: =IF(OR('0.6 UI Inputs'!B21='0.5 UI backend'!D5,'0.6 UI Inputs'!B21='0.5 UI backend'!D6),1,0) -> 0 | C22: =IF(OR('0.6 UI Inputs'!B21='0.5 UI backend'!D4,'0.6 UI Inputs'!B21='0.5 UI backend'!D6),1,0) -> 0
A23: Q. What percentage of population is eligible for national identity ? | B23: ='0.6 UI Inputs'!B22/100 -> 0.7
A24: Number of regional / province level offices ? | B24: ='0.6 UI Inputs'!B23 -> 20
A25: Number of district / municipality level offices ? | B25: ='0.6 UI Inputs'!B24 -> 765

Sheet 0.8 Assumptions (hidden)

Sheet 0.9 Default parameters (hidden)
A1: Default Parameters
A5: Enrolment Cost Estimation
A6: Parameter | B6: Target coverage during enrolment phase | C6: Working hours per day | D6: Working days per year | E6: Fixed enrolment station working efficiency | F6: mobile enrolment station working efficiency | G6: % of rural population require mobile enrolment center | H6: Mandatory biometric update required
A7: Value | B7: 0.9 | C7: 8 | D7: 250 | E7: 0.7 | F7: 0.5 | G7: 0.2 | H7: 1
A8: Description | B8: % of eligible population to be covered during enrolment phase | G8: this much % of rural population will require mobile enrolment stations. Kindly note that this is % of rural population not entire population | H8: if upon turning to certain age residents are required to update their biometric data then 1 else 0
A10: Human Resources Cost Estimation
A11: Parameter | B11: no. of employee at each enrolment station | C11: Hiring cost | D11: Inflation
A12: Value | B12: 2 | C12: 0.05 | D12: 0.018
A13: Description | B13: operator and verifier | C13: % of total annual compensation | D13: Average inflation for US $
A15: Human Resources Cost Estimation
A16: Parameter | B16: % of people require helpdesk | C16: out of these people, % of people registering / resolving complain through call center | D16: % of people registering / resolving complain through visit to enrolment station | E16: no. of operators that will be trained | F16: Total no. of service provider agencies | G16: Per agency no. of operators who require training | H16: Per person IEC expenditure during enrolment phase
A17: Value | B17: 0.05 | C17: 0.3 | D17: 0.5 | E17: 1.25 | F17: 100 | G17: 5 | H17: 0.5
A18: Description | B18: out of total enrolled population these many people will require helpdesk for issue resolution each year | D18: rest of the people will use online portal for issue resolution | E18: higher no. of people will be trained for enrolment | H18: per person expenditure for IEC campaigns for whole enrolment period. During steady state this amount is reduced to 25%
A20: Software
A21: Parameter | B21: Software AMC cost | C21: Request require manual deduplication | D21: Per manual dedup time (in minutes) | E21: Time taken per quality check
A22: Value | B22: 0.25 | C22: 0.05 | D22: 10 | E22: 5
A23: Description | B23: as percentage of cost of software development | C23: out of all the deduplication request, these many requests will require manual checking | E23: Min
A25: Facility cost estimation
A26: Parameter | B26: HQ office space requirement | C26: Regional office space requirement | D26: District office space requirement
A27: Value | B27: 15000 | C27: 5000 | D27: 1000
A28: Description | B28: sq. ft. | C28: sq. ft. | D28: sq. ft.
A30: Facility cost estimation
A31: Parameter | B31: ID to be reissued
A32: Value | B32: 0.03
A33: Description | B33: Due to lost or damage
A35: Central IT
A36: Parameter | B36: per agency per person per year authentication requests | C36: Preferred biometric for authentication | D36: Preferred biometric for deduplication | E36: Per person raw data size | F36: Per person minutiae size | G36: Capacity of DR as compared to DC | H36: Storage disk minimum size
A37: Value | B37: 0.2 | C37: 1 | D37: 1 | E37: 4000 | F37: 150 | G37: 1 | H37: 10
A38: Description | B38: used to estimate the authentication volume | C38: 0 = no biometric authentication, 1 = finger prints, 2= Iris, 3 = Voice, 4 = face | D38: 1 = finger prints, 2= Iris, 3 = Voice, 4 = face | E38: in KB (including data update requests) | F38: in KB | H38: in tb
A40: Parameter | B40: No . of core in webserver | C40: no. of core in database server | D40: no. of core in application server | E40: Hardware AMC | F40: Web server capacity (no. of request per second per core) | G40: Application server capacity (no. of requests per core per second) | H40: Data base server capacity (no. of request per core per second)
A41: Value | B41: 16 | C41: 16 | D41: 16 | E41: 0.15 | F41: 3000 | G41: 100 | H41: 300
A42: Description | E42: as % of total cost of hardware | G42: 1 request is equivalent to one finger print authentication request
A44: Parameter | B44: Finger print deduplication matches per core per second | C44: Iris deduplication matches per core per second | D44: Face deduplication matches per core per second | E44: Voice deduplication per core per second
A45: Value | B45: 37500 | C45: 2500 | D45: 1250 | E45: 1250
A46: Description | B46: for two finger biometric deduplication
A48: CRVS linkages
A49: Parameter | B49: Reduction in infrastructure cost due to shared infra | C49: Reduction in Human Resources cost due to shared human resource
A50: Value | B50: 0.3 | C50: 0.3
A51: Description | B51: IF CRVS and ID agency are sharing infrastructure, then infra structure will be reduced by this % | C51: IF CRVS and ID agency are sharing HR then infra structure will be reduced by this %

Sheet 1. Enrolment (hidden)
A1: 1. Enrolment Station Cost Estimation
A3: Component | B3: Current population | C3: Population growth rate | D3: Birth rate | E3: Current year | F3: Eligible population | G3: Enrolment start year | H3: Enrolment phase completion year | I3: Target coverage during enrolment phase | J3: Rural population | K3: Finger print required ? | L3: no.of finger print | M3: Iris required | N3: no. of iris | O3: Voice : Biometric | P3: Facial photograph | Q3: electronic signature | R3: no. of demographic points
A4: Value | B4: ='0.4 All inputs'!A7 -> 17094130 | C4: ='0.4 All inputs'!B7 -> 0.0293 | D4: ='0.4 All inputs'!C7 -> 0.0415 | E4: ='0.4 All inputs'!D7 -> 2018 | F4: ='0.4 All inputs'!E7 -> 0.7 | G4: ='0.4 All inputs'!F7 -> 2019 | H4: ='0.4 All inputs'!G7 -> 2021 | I4: ='0.4 All inputs'!H7 -> 0.9 | J4: ='0.4 All inputs'!A11 -> 0.5862 | K4: ='0.4 All inputs'!B11 -> 1 | L4: ='0.4 All inputs'!C11 -> 10 | M4: ='0.4 All inputs'!D11 -> 0 | N4: ='0.4 All inputs'!E11 -> 0 | O4: ='0.4 All inputs'!F11 -> 0 | P4: ='0.4 All inputs'!G11 -> 1 | Q4: ='0.4 All inputs'!H11 -> 0 | R4: ='0.4 All inputs'!I11 -> 0
A5: Description
A7: Component | B7: Working hours per day | C7: Working days per year | D7: Fixed enrolment station working efficiency | E7: mobile enrolment station working efficiency | F7: % of rural population require mobile enrolment center | G7: enrolment time (in minutes) | H7: Mandatory biometric update required | I7: Cost of one enrolment kit | J7: Annual operating expenditure per enrolment station (without human resources) | K7: one enrolment station setup cost (apart from kit )
A8: Value | B8: ='0.4 All inputs'!A15 -> 8 | C8: ='0.4 All inputs'!B15 -> 250 | D8: ='0.4 All inputs'!C15 -> 0.7 | E8: ='0.4 All inputs'!D15 -> 0.5 | F8: ='0.4 All inputs'!E15 -> 0.2 | G8: ='1.1 Backend'!D71 -> 7.6 | H8: ='0.4 All inputs'!F15 -> 1 | I8: ='1.1 Backend'!D88 -> 3050 | J8: ='0.2 Unit cost assumptions'!F21 -> 2500 | K8: ='0.2 Unit cost assumptions'!F22 -> 0
A9: Description
D12: Development year
A13: General | B13: S.n. | D13: 0 | E13: 1 | F13: 2 | G13: 3 | H13: 4 | I13: 5 | J13: 6 | K13: 7 | L13: 8 | M13: 9 | N13: 10 | O13: 11 | P13: 12 | Q13: 13 | R13: 14 | S13: 15
B14: year | D14: =start_year+D13-1 -> 2018 | E14: 2019 | F14: 2020 | G14: 2021 | H14: 2022 | I14: 2023 | J14: 2024 | K14: 2025 | L14: 2026 | M14: 2027 | N14: 2028 | O14: 2029 | P14: 2030 | Q14: 2031 | R14: 2032 | S14: 2033
B15: No. of enrolment in a year at one fixed enrolment station | D15: =(Work_days*work_hour*Fixed_efficiency*60)/enrol_time -> 11052.63158 | E15: 11052.63158 | F15: 11052.63158 | G15: 11052.63158 | H15: 11052.63158 | I15: 11052.63158 | J15: 11052.63158 | K15: 11052.63158 | L15: 11052.63158 | M15: 11052.63158 | N15: 11052.63158 | O15: 11052.63158 | P15: 11052.63158 | Q15: 11052.63158 | R15: 11052.63158 | S15: 11052.63158
B16: No. of enrolment in a year at one mobile enrolment station | D16: =(Work_days*work_hour*mobile_efficiency*60)/enrol_time -> 7894.736842 | E16: 7894.736842 | F16: 7894.736842 | G16: 7894.736842 | H16: 7894.736842 | I16: 7894.736842 | J16: 7894.736842 | K16: 7894.736842 | L16: 7894.736842 | M16: 7894.736842 | N16: 7894.736842 | O16: 7894.736842 | P16: 7894.736842 | Q16: 7894.736842 | R16: 7894.736842 | S16: 7894.736842
B17: Phase | C17: 0 development year, 1 enrolment phase and 2 steady state | D17: =IF(D14<start_year,0,IF(D14>completion_year,2,1)) -> 0 | E17: 1 | F17: 1 | G17: 1 | H17: 2 | I17: 2 | J17: 2 | K17: 2 | L17: 2 | M17: 2 | N17: 2 | O17: 2 | P17: 2 | Q17: 2 | R17: 2 | S17: 2
A19: Enrolment phase and steady phase | B19: Eligible population for enrolment | D19: =INDEX('1.1 Backend'!$C$15:$AA$15,,MATCH('1. Enrolment'!D14,'1.1 Backend'!$C$12:$AA$12,0)) -> 11965891 | E19: =INDEX('1.1 Backend'!$C$15:$AA$15,,MATCH('1. Enrolment'!E14,'1.1 Backend'!$C$12:$AA$12,0)) -> 12316491.61 | F19: =INDEX('1.1 Backend'!$C$15:$AA$15,,MATCH('1. Enrolment'!F14,'1.1 Backend'!$C$12:$AA$12,0)) -> 12677364.81 | G19: =INDEX('1.1 Backend'!$C$15:$AA$15,,MATCH('1. Enrolment'!G14,'1.1 Backend'!$C$12:$AA$12,0)) -> 13048811.6 | H19: =INDEX('1.1 Backend'!$C$15:$AA$15,,MATCH('1. Enrolment'!H14,'1.1 Backend'!$C$12:$AA$12,0)) -> 13431141.78 | I19: =INDEX('1.1 Backend'!$C$15:$AA$15,,MATCH('1. Enrolment'!I14,'1.1 Backend'!$C$12:$AA$12,0)) -> 13824674.23 | J19: =INDEX('1.1 Backend'!$C$15:$AA$15,,MATCH('1. Enrolment'!J14,'1.1 Backend'!$C$12:$AA$12,0)) -> 14229737.19 | K19: =INDEX('1.1 Backend'!$C$15:$AA$15,,MATCH('1. Enrolment'!K14,'1.1 Backend'!$C$12:$AA$12,0)) -> 14646668.49 | L19: =INDEX('1.1 Backend'!$C$15:$AA$15,,MATCH('1. Enrolment'!L14,'1.1 Backend'!$C$12:$AA$12,0)) -> 15075815.87 | M19: =INDEX('1.1 Backend'!$C$15:$AA$15,,MATCH('1. Enrolment'!M14,'1.1 Backend'!$C$12:$AA$12,0)) -> 15517537.28 | N19: =INDEX('1.1 Backend'!$C$15:$AA$15,,MATCH('1. Enrolment'!N14,'1.1 Backend'!$C$12:$AA$12,0)) -> 15972201.12 | O19: =INDEX('1.1 Backend'!$C$15:$AA$15,,MATCH('1. Enrolment'!O14,'1.1 Backend'!$C$12:$AA$12,0)) -> 16440186.61 | P19: =INDEX('1.1 Backend'!$C$15:$AA$15,,MATCH('1. Enrolment'!P14,'1.1 Backend'!$C$12:$AA$12,0)) -> 16921884.08 | Q19: =INDEX('1.1 Backend'!$C$15:$AA$15,,MATCH('1. Enrolment'!Q14,'1.1 Backend'!$C$12:$AA$12,0)) -> 17417695.29 | R19: =INDEX('1.1 Backend'!$C$15:$AA$15,,MATCH('1. Enrolment'!R14,'1.1 Backend'!$C$12:$AA$12,0)) -> 17928033.76 | S19: =INDEX('1.1 Backend'!$C$15:$AA$15,,MATCH('1. Enrolment'!S14,'1.1 Backend'!$C$12:$AA$12,0)) -> 18453325.15
B20: Registration phase population distribution | D20: 0 | E20: =IF(E17=1,'1.1 Backend'!C29,0) -> 0.2466617572 | F20: =IF(F17=1,'1.1 Backend'!D29,0) -> 0.4066764857 | G20: =IF(G17=1,'1.1 Backend'!E29,0) -> 0.2466617572 | H20: =IF(H17=1,'1.1 Backend'!F29,0) -> 0 | I20: =IF(I17=1,'1.1 Backend'!G29,0) -> 0 | J20: =IF(J17=1,'1.1 Backend'!H29,0) -> 0 | K20: =IF(K17=1,'1.1 Backend'!I29,0) -> 0 | L20: =IF(L17=1,'1.1 Backend'!J29,0) -> 0 | M20: =IF(M17=1,'1.1 Backend'!K29,0) -> 0 | N20: =IF(N17=1,'1.1 Backend'!L29,0) -> 0 | O20: =IF(O17=1,'1.1 Backend'!M29,0) -> 0 | P20: =IF(P17=1,'1.1 Backend'!N29,0) -> 0 | Q20: =IF(Q17=1,'1.1 Backend'!O29,0) -> 0 | R20: =IF(R17=1,'1.1 Backend'!P29,0) -> 0 | S20: =IF(S17=1,'1.1 Backend'!Q29,0) -> 0
B21: population to enrol during enrolment phase | D21: =D20*D19 -> 0 | E21: =E20*E19 -> 3038007.462 | F21: 5155586.169 | G21: 3218642.798 | H21: 0 | I21: 0 | J21: 0 | K21: 0 | L21: 0 | M21: 0 | N21: 0 | O21: 0 | P21: 0 | Q21: 0 | R21: 0 | S21: 0
B22: annual births (new enrolments required) | C22: at steady state new enrolments will be equal to new births | D22: =INDEX('1.1 Backend'!$C$14:$AA$14,,MATCH('1. Enrolment'!D14,'1.1 Backend'!$C$12:$AA$12,0)) -> 709406.395 | E22: =INDEX('1.1 Backend'!$C$14:$AA$14,,MATCH('1. Enrolment'!E14,'1.1 Backend'!$C$12:$AA$12,0)) -> 730192.0024 | F22: =INDEX('1.1 Backend'!$C$14:$AA$14,,MATCH('1. Enrolment'!F14,'1.1 Backend'!$C$12:$AA$12,0)) -> 751586.628 | G22: =INDEX('1.1 Backend'!$C$14:$AA$14,,MATCH('1. Enrolment'!G14,'1.1 Backend'!$C$12:$AA$12,0)) -> 773608.1162 | H22: =INDEX('1.1 Backend'!$C$14:$AA$14,,MATCH('1. Enrolment'!H14,'1.1 Backend'!$C$12:$AA$12,0)) -> 796274.8341 | I22: =INDEX('1.1 Backend'!$C$14:$AA$14,,MATCH('1. Enrolment'!I14,'1.1 Backend'!$C$12:$AA$12,0)) -> 819605.6867 | J22: =INDEX('1.1 Backend'!$C$14:$AA$14,,MATCH('1. Enrolment'!J14,'1.1 Backend'!$C$12:$AA$12,0)) -> 843620.1333 | K22: =INDEX('1.1 Backend'!$C$14:$AA$14,,MATCH('1. Enrolment'!K14,'1.1 Backend'!$C$12:$AA$12,0)) -> 868338.2032 | L22: =INDEX('1.1 Backend'!$C$14:$AA$14,,MATCH('1. Enrolment'!L14,'1.1 Backend'!$C$12:$AA$12,0)) -> 893780.5126 | M22: =INDEX('1.1 Backend'!$C$14:$AA$14,,MATCH('1. Enrolment'!M14,'1.1 Backend'!$C$12:$AA$12,0)) -> 919968.2816 | N22: =INDEX('1.1 Backend'!$C$14:$AA$14,,MATCH('1. Enrolment'!N14,'1.1 Backend'!$C$12:$AA$12,0)) -> 946923.3522 | O22: =INDEX('1.1 Backend'!$C$14:$AA$14,,MATCH('1. Enrolment'!O14,'1.1 Backend'!$C$12:$AA$12,0)) -> 974668.2065 | P22: =INDEX('1.1 Backend'!$C$14:$AA$14,,MATCH('1. Enrolment'!P14,'1.1 Backend'!$C$12:$AA$12,0)) -> 1003225.985 | Q22: =INDEX('1.1 Backend'!$C$14:$AA$14,,MATCH('1. Enrolment'!Q14,'1.1 Backend'!$C$12:$AA$12,0)) -> 1032620.506 | R22: =INDEX('1.1 Backend'!$C$14:$AA$14,,MATCH('1. Enrolment'!R14,'1.1 Backend'!$C$12:$AA$12,0)) -> 1062876.287 | S22: =INDEX('1.1 Backend'!$C$14:$AA$14,,MATCH('1. Enrolment'!S14,'1.1 Backend'!$C$12:$AA$12,0)) -> 1094018.562
B23: Population distribution during steady state | D23: 0 | E23: =IF(E17=2,$I$4,0) -> 0 | F23: =IF(F17=2,$I$4,0) -> 0 | G23: 0 | H23: 0.9 | I23: 0.9 | J23: 0.9 | K23: 0.9 | L23: 0.9 | M23: 0.9 | N23: 0.9 | O23: 0.9 | P23: 0.9 | Q23: 0.9 | R23: 0.9 | S23: 0.9
B24: Population to enrol during steady state | D24: =D23*D22 -> 0 | E24: =E23*E22 -> 0 | F24: 0 | G24: 0 | H24: 716647.3506 | I24: 737645.118 | J24: 759258.12 | K24: 781504.3829 | L24: 804402.4613 | M24: 827971.4534 | N24: 852231.017 | O24: 877201.3858 | P24: 902903.3864 | Q24: 929358.4556 | R24: 956588.6584 | S24: 984616.7061
B25: Yearly population to enrol | D25: =D24+D21 -> 0 | E25: =E24+E21 -> 3038007.462 | F25: 5155586.169 | G25: 3218642.798 | H25: 716647.3506 | I25: 737645.118 | J25: 759258.12 | K25: 781504.3829 | L25: 804402.4613 | M25: 827971.4534 | N25: 852231.017 | O25: 877201.3858 | P25: 902903.3864 | Q25: 929358.4556 | R25: 956588.6584 | S25: 984616.7061
B26: Cumulative new enrolments | C26: Population covered with ID | D26: =SUM(D25:$D$25) -> 0 | E26: =SUM($D25:E$25) -> 3038007.462 | F26: =SUM($D25:F$25) -> 8193593.63 | G26: =SUM($D25:G$25) -> 11412236.43 | H26: =SUM($D25:H$25) -> 12128883.78 | I26: =SUM($D25:I$25) -> 12866528.9 | J26: =SUM($D25:J$25) -> 13625787.02 | K26: =SUM($D25:K$25) -> 14407291.4 | L26: =SUM($D25:L$25) -> 15211693.86 | M26: =SUM($D25:M$25) -> 16039665.31 | N26: =SUM($D25:N$25) -> 16891896.33 | O26: =SUM($D25:O$25) -> 17769097.72 | P26: =SUM($D25:P$25) -> 18672001.1 | Q26: =SUM($D25:Q$25) -> 19601359.56 | R26: =SUM($D25:R$25) -> 20557948.22 | S26: =SUM($D25:S$25) -> 21542564.92
A28: Mandatory updates | B28: Annual requests for mandatory updates | D28: 0 | E28: 0 | F28: =IF($H$8=1,F22,0) -> 751586.628 | G28: =IF($H$8=1,G22,0) -> 773608.1162 | H28: 796274.8341 | I28: 819605.6867 | J28: 843620.1333 | K28: 868338.2032 | L28: 893780.5126 | M28: 919968.2816 | N28: 946923.3522 | O28: 974668.2065 | P28: 1003225.985 | Q28: 1032620.506 | R28: 1062876.287 | S28: 1094018.562
A29: helpdesk requests | B29: Annual requests at enrolment station | D29: ='3. Helpdesk,IEC and T&CB'!D17 -> 0 | E29: ='3. Helpdesk,IEC and T&CB'!E17 -> 30380.07462 | F29: ='3. Helpdesk,IEC and T&CB'!F17 -> 81935.9363 | G29: ='3. Helpdesk,IEC and T&CB'!G17 -> 114122.3643 | H29: ='3. Helpdesk,IEC and T&CB'!H17 -> 121288.8378 | I29: ='3. Helpdesk,IEC and T&CB'!I17 -> 128665.289 | J29: ='3. Helpdesk,IEC and T&CB'!J17 -> 136257.8702 | K29: ='3. Helpdesk,IEC and T&CB'!K17 -> 144072.914 | L29: ='3. Helpdesk,IEC and T&CB'!L17 -> 152116.9386 | M29: ='3. Helpdesk,IEC and T&CB'!M17 -> 160396.6531 | N29: ='3. Helpdesk,IEC and T&CB'!N17 -> 168918.9633 | O29: ='3. Helpdesk,IEC and T&CB'!O17 -> 177690.9772 | P29: ='3. Helpdesk,IEC and T&CB'!P17 -> 186720.011 | Q29: ='3. Helpdesk,IEC and T&CB'!Q17 -> 196013.5956 | R29: ='3. Helpdesk,IEC and T&CB'!R17 -> 205579.4822 | S29: ='3. Helpdesk,IEC and T&CB'!S17 -> 215425.6492
A31: Overall | B31: Total enrolments, update and helpdesk request | D31: =D29+D28+D25 -> 0 | E31: =E29+E28+E25 -> 3068387.536 | F31: 5989108.733 | G31: 4106373.278 | H31: 1634211.022 | I31: 1685916.094 | J31: 1739136.123 | K31: 1793915.5 | L31: 1850299.912 | M31: 1908336.388 | N31: 1968073.333 | O31: 2029560.569 | P31: 2092849.382 | Q31: 2157992.557 | R31: 2225044.428 | S31: 2294060.918
B32: Handled by mobile stations | D32: =D31*$J$4*$F$8 -> 0 | E32: =E31*$J$4*$F$8 -> 359737.7547 | F32: 702163.1079 | G32: 481431.2032 | H32: 191594.9003 | I32: 197656.8028 | J32: 203896.3191 | K32: 210318.6532 | L32: 216929.1617 | M32: 223733.3581 | N32: 230736.9175 | O32: 237945.6812 | P32: 245365.6616 | Q32: 253003.0474 | R32: 260864.2087 | S32: 268955.702
B33: handled by fixed stations | D33: =D31-D32 -> 0 | E33: =E31-E32 -> 2708649.781 | F33: 5286945.625 | G33: 3624942.075 | H33: 1442616.122 | I33: 1488259.291 | J33: 1535239.804 | K33: 1583596.847 | L33: 1633370.751 | M33: 1684603.03 | N33: 1737336.415 | O33: 1791614.888 | P33: 1847483.721 | Q33: 1904989.51 | R33: 1964180.219 | S33: =S31-S32 -> 2025105.216
B34: no. of fixed stations required | C34: assuming time for other activities is equal to enrolment time, if no. of required enrolment stations are less then district offices, then district office no. is taken to ensure miminum one enrolment station per district | D34: =(D33/D15) -> 0 | E34: =MAX(E33/E15,'2. human resource'!$D$4) -> 765 | F34: =MAX(F33/F15,'2. human resource'!$D$4) -> 765 | G34: =MAX(G33/G15,'2. human resource'!$D$4) -> 765 | H34: =MAX(H33/H15,'2. human resource'!$D$4) -> 765 | I34: =MAX(I33/I15,'2. human resource'!$D$4) -> 765 | J34: =MAX(J33/J15,'2. human resource'!$D$4) -> 765 | K34: =MAX(K33/K15,'2. human resource'!$D$4) -> 765 | L34: =MAX(L33/L15,'2. human resource'!$D$4) -> 765 | M34: =MAX(M33/M15,'2. human resource'!$D$4) -> 765 | N34: =MAX(N33/N15,'2. human resource'!$D$4) -> 765 | O34: =MAX(O33/O15,'2. human resource'!$D$4) -> 765 | P34: =MAX(P33/P15,'2. human resource'!$D$4) -> 765 | Q34: =MAX(Q33/Q15,'2. human resource'!$D$4) -> 765 | R34: =MAX(R33/R15,'2. human resource'!$D$4) -> 765 | S34: =MAX(S33/S15,'2. human resource'!$D$4) -> 765
B35: no. of mobile stations required | C35: different formula in first cells | D35: =D32/D16 -> 0 | E35: =E32/E16 -> 45.56678227 | F35: 88.94066033 | G35: 60.98128573 | H35: 24.26868737 | I35: 25.03652836 | J35: 25.82686709 | K35: 26.64036274 | L35: 27.47769382 | M35: 28.3395587 | N35: 29.22667622 | O35: 30.13978628 | P35: 31.07965047 | Q35: 32.04705268 | R35: 33.04279977 | S35: 34.06772225
B36: Enrolment kits required each year | D36: =ROUNDUP(D35+D34,0) -> 0 | E36: =ROUNDUP(E35+E34,0) -> 811 | F36: 854 | G36: 826 | H36: 790 | I36: 791 | J36: 791 | K36: 792 | L36: 793 | M36: 794 | N36: 795 | O36: 796 | P36: 797 | Q36: 798 | R36: 799 | S36: 800
B37: New enrolment kits required due to tech refresh | C37: enrolment kits will be upgraded after 4 year | D37: ='1.1 Backend'!C34 -> 0 | E37: ='1.1 Backend'!D34 -> 811 | F37: ='1.1 Backend'!E34 -> 43 | G37: ='1.1 Backend'!F34 -> 0 | H37: ='1.1 Backend'!G34 -> 0 | I37: ='1.1 Backend'!H34 -> 748 | J37: ='1.1 Backend'!I34 -> 43 | K37: ='1.1 Backend'!J34 -> 1 | L37: ='1.1 Backend'!K34 -> 1 | M37: ='1.1 Backend'!L34 -> 749 | N37: ='1.1 Backend'!M34 -> 44 | O37: ='1.1 Backend'!N34 -> 2 | P37: ='1.1 Backend'!O34 -> 2 | Q37: ='1.1 Backend'!P34 -> 750 | R37: ='1.1 Backend'!Q34 -> 45 | S37: ='1.1 Backend'!R34 -> 3
B38: New enrolment stations required to setup | D38: 0 | E38: =IF(E36>D36,E36-D36,0) -> 811 | F38: =IF(F36>E36,F36-E36,0) -> 43 | G38: 0 | H38: 0 | I38: 1 | J38: 0 | K38: 1 | L38: 1 | M38: 1 | N38: 1 | O38: 1 | P38: 1 | Q38: 1 | R38: 1 | S38: 1
A41: Cost | B41: Enrolment station setup cost | C41: Capex | D41: =D38*$K$8 -> 0 | E41: 0 | F41: 0 | G41: 0 | H41: 0 | I41: 0 | J41: 0 | K41: 0 | L41: 0 | M41: 0 | N41: 0 | O41: 0 | P41: 0 | Q41: 0 | R41: 0 | S41: 0
B42: Enrolment kits cost | C42: Capex | D42: =D37*$I$8 -> 0 | E42: 2473550 | F42: 131150 | G42: 0 | H42: 0 | I42: 2281400 | J42: 131150 | K42: 3050 | L42: 3050 | M42: 2284450 | N42: 134200 | O42: 6100 | P42: 6100 | Q42: 2287500 | R42: 137250 | S42: 9150
B43: Mobile enrolment vehicle cost | C43: Capex, vechile requirement is half the number of mobile enrolment station required during steady state | D43: ='0.2 Unit cost assumptions'!F86*AVERAGEIF(D17:S17,"=2",D35:S35)/2 -> 2893278.214
B44: Enrolment station operating cost | C44: opex(operating exp+ vehicle maintenance) | D44: =D36*$J$8+$D$43*Hardware_AMC -> 433991.7322 | E44: 2461491.732 | F44: 2568991.732 | G44: 2498991.732 | H44: 2408991.732 | I44: 2411491.732 | J44: 2411491.732 | K44: 2413991.732 | L44: 2416491.732 | M44: 2418991.732 | N44: 2421491.732 | O44: 2423991.732 | P44: 2426491.732 | Q44: 2428991.732 | R44: 2431491.732 | S44: 2433991.732
B45: Total capex | D45: =D41+D42+D43 -> 2893278.214 | E45: =E41+E42 -> 2473550 | F45: 131150 | G45: 0 | H45: 0 | I45: 2281400 | J45: 131150 | K45: 3050 | L45: 3050 | M45: 2284450 | N45: 134200 | O45: 6100 | P45: 6100 | Q45: 2287500 | R45: 137250 | S45: 9150
B46: Total opex | D46: =D44 -> 433991.7322 | E46: =E44 -> 2461491.732 | F46: 2568991.732 | G46: 2498991.732 | H46: 2408991.732 | I46: 2411491.732 | J46: 2411491.732 | K46: 2413991.732 | L46: 2416491.732 | M46: 2418991.732 | N46: 2421491.732 | O46: 2423991.732 | P46: 2426491.732 | Q46: 2428991.732 | R46: 2431491.732 | S46: 2433991.732

Sheet 1.1 Backend (hidden)
A1: Population in 2016 | B1: Population growth rate | C1: Birth rate | D1: Eligible population for NID
A2: ='1. Enrolment'!B4 -> 17094130 | B2: ='1. Enrolment'!C4 -> 0.0293 | C2: ='1. Enrolment'!D4 -> 0.0415 | D2: ='1. Enrolment'!F4 -> 0.7
A11: Population Estimation
A12: Year | C12: ='1. Enrolment'!E4 -> 2018 | D12: =C12+1 -> 2019 | E12: =D12+1 -> 2020 | F12: 2021 | G12: 2022 | H12: 2023 | I12: 2024 | J12: 2025 | K12: 2026 | L12: 2027 | M12: 2028 | N12: 2029 | O12: 2030 | P12: 2031 | Q12: 2032 | R12: 2033 | S12: 2034 | T12: 2035 | U12: 2036 | V12: 2037 | W12: 2038 | X12: 2039 | Y12: 2040 | Z12: 2041 | AA12: 2042
A13: Projected Population | C13: =A2 -> 17094130 | D13: =$C$13*(1+$B$2)^(D12-$C$12) -> 17594988.01 | E13: =$C$13*(1+$B$2)^(E12-$C$12) -> 18110521.16 | F13: 18641159.43 | G13: 19187345.4 | H13: 19749534.62 | I13: 20328195.98 | J13: 20923812.13 | K13: 21536879.82 | L13: 22167910.4 | M13: 22817430.17 | N13: 23485980.88 | O13: 24174120.12 | P13: 24882421.84 | Q13: 25611476.8 | R13: 26361893.07 | S13: 27134296.53 | T13: 27929331.42 | U13: 28747660.83 | V13: 29589967.3 | W13: 30456953.34 | X13: 31349342.07 | Y13: 32267877.79 | Z13: 33213326.61 | AA13: 34186477.08
A14: New births | C14: =C13*$C$2 -> 709406.395 | D14: =D13*$C$2 -> 730192.0024 | E14: 751586.628 | F14: 773608.1162 | G14: 796274.8341 | H14: 819605.6867 | I14: 843620.1333 | J14: 868338.2032 | K14: 893780.5126 | L14: 919968.2816 | M14: 946923.3522 | N14: 974668.2065 | O14: 1003225.985 | P14: 1032620.506 | Q14: 1062876.287 | R14: 1094018.562 | S14: 1126073.306 | T14: 1159067.254 | U14: 1193027.925 | V14: 1227983.643 | W14: 1263963.564 | X14: 1300997.696 | Y14: 1339116.928 | Z14: 1378353.054 | AA14: 1418738.799
A15: Eligible population | C15: =C13*$D$2 -> 11965891 | D15: =D13*$D$2 -> 12316491.61 | E15: 12677364.81 | F15: 13048811.6 | G15: 13431141.78 | H15: 13824674.23 | I15: 14229737.19 | J15: 14646668.49 | K15: 15075815.87 | L15: 15517537.28 | M15: 15972201.12 | N15: 16440186.61 | O15: 16921884.08 | P15: 17417695.29 | Q15: 17928033.76 | R15: 18453325.15 | S15: 18994007.57 | T15: 19550532 | U15: 20123362.58 | V15: 20712977.11 | W15: 21319867.34 | X15: 21944539.45 | Y15: 22587514.46 | Z15: 23249328.63 | AA15: 23930533.96
A17: Population distribution
A18: Year | C18: =start_year -> 2019 | D18: =C18+1 -> 2020 | E18: =D18+1 -> 2021 | F18: 2022 | G18: 2023 | H18: 2024 | I18: 2025 | J18: 2026 | K18: 2027 | L18: 2028 | M18: 2029 | N18: 2030 | O18: 2031 | P18: 2032 | Q18: 2033
A19: S.n. | C19: ='1. Enrolment'!E13 -> 1 | D19: ='1. Enrolment'!F13 -> 2 | E19: ='1. Enrolment'!G13 -> 3 | F19: ='1. Enrolment'!H13 -> 4 | G19: ='1. Enrolment'!I13 -> 5 | H19: ='1. Enrolment'!J13 -> 6 | I19: ='1. Enrolment'!K13 -> 7 | J19: ='1. Enrolment'!L13 -> 8 | K19: ='1. Enrolment'!M13 -> 9 | L19: ='1. Enrolment'!N13 -> 10 | M19: ='1. Enrolment'!O13 -> 11 | N19: ='1. Enrolment'!P13 -> 12 | O19: ='1. Enrolment'!Q13 -> 13 | P19: ='1. Enrolment'!R13 -> 14 | Q19: ='1. Enrolment'!S13 -> 15
A20: Phase | C20: ='1. Enrolment'!E17 -> 1 | D20: ='1. Enrolment'!F17 -> 1 | E20: ='1. Enrolment'!G17 -> 1 | F20: ='1. Enrolment'!H17 -> 2 | G20: ='1. Enrolment'!I17 -> 2 | H20: ='1. Enrolment'!J17 -> 2 | I20: ='1. Enrolment'!K17 -> 2 | J20: ='1. Enrolment'!L17 -> 2 | K20: ='1. Enrolment'!M17 -> 2 | L20: ='1. Enrolment'!N17 -> 2 | M20: ='1. Enrolment'!O17 -> 2 | N20: ='1. Enrolment'!P17 -> 2 | O20: ='1. Enrolment'!Q17 -> 2 | P20: ='1. Enrolment'!R17 -> 2 | Q20: ='1. Enrolment'!S17 -> 2
A21: Registration phase year | C21: =IF(C20=1,C19,"") -> 1 | D21: =IF(D20=1,D19,"") -> 2 | E21: 3
A22: Mean of years | C22: =AVERAGE(C21:Q21) -> 2
A23: Deviation from mean | C23: =IFERROR(C21-$C$22,"") -> -1 | D23: =IFERROR(D21-$C$22,"") -> 0 | E23: 1
A24: Square of mean | C24: =IFERROR(C23^2,"") -> 1 | D24: =IFERROR(D23^2,"") -> 0 | E24: 1
A25: sum of square | C25: =SUM(C24:Q24) -> 2
A26: Standard deviation | C26: =SQRT(C25/(COUNT(C21:Q21)-1)) -> 1
A27: normal distribution | C27: =IFERROR(_xlfn.NORM.DIST(C21,$C$22,$C$26,FALSE),"") -> 0.2419707245 | D27: =IFERROR(_xlfn.NORM.DIST(D21,$C$22,$C$26,FALSE),"") -> 0.3989422804 | E27: 0.2419707245
A28: Correction required due to target population | C28: ='1. Enrolment'!$I$4/SUM('1.1 Backend'!C27:Q27) -> 1.019386778
A29: Revised population distribution | C29: =IFERROR($C$28*C27,"") -> 0.2466617572 | D29: =IFERROR($C$28*D27,"") -> 0.4066764857 | E29: 0.2466617572
A31: Tech refresh
B32: Year | C32: ='1. Enrolment'!D14 -> 2018 | D32: ='1. Enrolment'!E14 -> 2019 | E32: ='1. Enrolment'!F14 -> 2020 | F32: ='1. Enrolment'!G14 -> 2021 | G32: ='1. Enrolment'!H14 -> 2022 | H32: ='1. Enrolment'!I14 -> 2023 | I32: ='1. Enrolment'!J14 -> 2024 | J32: ='1. Enrolment'!K14 -> 2025 | K32: ='1. Enrolment'!L14 -> 2026 | L32: ='1. Enrolment'!M14 -> 2027 | M32: ='1. Enrolment'!N14 -> 2028 | N32: ='1. Enrolment'!O14 -> 2029 | O32: ='1. Enrolment'!P14 -> 2030 | P32: ='1. Enrolment'!Q14 -> 2031 | Q32: ='1. Enrolment'!R14 -> 2032 | R32: ='1. Enrolment'!S14 -> 2033
B33: Requirement | C33: ='1. Enrolment'!D36 -> 0 | D33: ='1. Enrolment'!E36 -> 811 | E33: ='1. Enrolment'!F36 -> 854 | F33: ='1. Enrolment'!G36 -> 826 | G33: ='1. Enrolment'!H36 -> 790 | H33: ='1. Enrolment'!I36 -> 791 | I33: ='1. Enrolment'!J36 -> 791 | J33: ='1. Enrolment'!K36 -> 792 | K33: ='1. Enrolment'!L36 -> 793 | L33: ='1. Enrolment'!M36 -> 794 | M33: ='1. Enrolment'!N36 -> 795 | N33: ='1. Enrolment'!O36 -> 796 | O33: ='1. Enrolment'!P36 -> 797 | P33: ='1. Enrolment'!Q36 -> 798 | Q33: ='1. Enrolment'!R36 -> 799 | R33: ='1. Enrolment'!S36 -> 800
A34: Year 1 | B34: ES to buy | D34: =D33 -> 811 | E34: =IF(E33>SUM(E35:E37),E33-SUM(E35:E37),0) -> 43 | F34: =IF(F33>SUM(F35:F37),F33-SUM(F35:F37),0) -> 0 | G34: 0 | H34: 748 | I34: 43 | J34: 1 | K34: 1 | L34: 749 | M34: 44 | N34: 2 | O34: 2 | P34: 750 | Q34: 45 | R34: =IF(R33>SUM(R35:R37),R33-SUM(R35:R37),0) -> 3
A35: Year 2 | E35: =D34 -> 811 | F35: =E34 -> 43 | G35: 0 | H35: 0 | I35: 748 | J35: 43 | K35: 1 | L35: 1 | M35: 749 | N35: 44 | O35: 2 | P35: 2 | Q35: 750 | R35: 45
A36: Year 3 | F36: =E35 -> 811 | G36: 43 | H36: 0 | I36: 0 | J36: 748 | K36: 43 | L36: 1 | M36: 1 | N36: 749 | O36: 44 | P36: 2 | Q36: 2 | R36: 750
A37: year 4 | G37: =F36 -> 811 | H37: =G36 -> 43 | I37: 0 | J37: 0 | K37: 748 | L37: 43 | M37: 1 | N37: 1 | O37: 749 | P37: 44 | Q37: 2 | R37: 2
A41: Enrolment Time
A42: Time taken for finger prints
A43: Fingers | B43: Time (minutes) | C43: included or not | D43: Final time
A44: 1 | B44: 0.4 | C44: =IF('1. Enrolment'!$K$4*'1. Enrolment'!$L$4='1.1 Backend'!A44,1,0) -> 0 | D44: =C44*B44 -> 0
A45: 2 | B45: 0.4 | C45: =IF('1. Enrolment'!$K$4*'1. Enrolment'!$L$4='1.1 Backend'!A45,1,0) -> 0 | D45: =C45*B45 -> 0
A46: 3 | B46: 0.4 | C46: =IF('1. Enrolment'!$K$4*'1. Enrolment'!$L$4='1.1 Backend'!A46,1,0) -> 0 | D46: 0
A47: 4 | B47: 0.4 | C47: =IF('1. Enrolment'!$K$4*'1. Enrolment'!$L$4='1.1 Backend'!A47,1,0) -> 0 | D47: 0
A48: 5 | B48: 0.8 | C48: =IF('1. Enrolment'!$K$4*'1. Enrolment'!$L$4='1.1 Backend'!A48,1,0) -> 0 | D48: 0
A49: 6 | B49: 1.2 | C49: =IF('1. Enrolment'!$K$4*'1. Enrolment'!$L$4='1.1 Backend'!A49,1,0) -> 0 | D49: 0
A50: 7 | B50: 1.2 | C50: =IF('1. Enrolment'!$K$4*'1. Enrolment'!$L$4='1.1 Backend'!A50,1,0) -> 0 | D50: 0
A51: 8 | B51: 1.2 | C51: =IF('1. Enrolment'!$K$4*'1. Enrolment'!$L$4='1.1 Backend'!A51,1,0) -> 0 | D51: 0
A52: 9 | B52: 1.2 | C52: =IF('1. Enrolment'!$K$4*'1. Enrolment'!$L$4='1.1 Backend'!A52,1,0) -> 0 | D52: 0
A53: 10 | B53: 1.6 | C53: =IF('1. Enrolment'!$K$4*'1. Enrolment'!$L$4='1.1 Backend'!A53,1,0) -> 1 | D53: 1.6
A54: Time taken for IRIS
A55: 1 | B55: 1 | C55: =IF('1. Enrolment'!$M$4*'1. Enrolment'!$N$4='1.1 Backend'!A55,1,0) -> 0 | D55: =C55*B55 -> 0
A56: 2 | B56: 1 | C56: =IF('1. Enrolment'!$M$4*'1. Enrolment'!$N$4='1.1 Backend'!A56,1,0) -> 0 | D56: =C56*B56 -> 0
A57: Time taken for Voice
B58: 1 | C58: ='1. Enrolment'!O4 -> 0 | D58: =C58*B58 -> 0
A59: Time taken for electronic signature
B60: 1 | C60: ='1. Enrolment'!Q4 -> 0 | D60: =C60*B60 -> 0
A61: Time taken for demographics
A62: Points | B62: Time per demographic
A63: 1 | B63: 0.3 | C63: ='1. Enrolment'!R4 -> 0 | D63: =C63*B63 -> 0
A64: Time taken for photograph
A65: Points | B65: Time (in minutes)
B66: 1 | C66: ='1. Enrolment'!P4 -> 1 | D66: =C66*B66 -> 1
A67: Time taken for Verification by Enrolee
B68: 1 | C68: =ROUNDUP(C63/10,0) -> 0 | D68: =C68*B68 -> 0 | E68: (1 minute per 10 demographic fields)
A69: Time taken for Misc. activities (eg. Operator biometric, instructions, printing of acknowledgment Slip)
B70: 5 | C70: 1 | D70: =C70*B70 -> 5
C71: Total time per enrolment | D71: =D70+D68+D66+D63+D60+D58+D56+D55+SUM(D44:D53) -> 7.6
A73: Enrolment Kit
A74: Computer / Laptop | B74: ='0.2 Unit cost assumptions'!F7 -> 1200 | C74: 1 | D74: =C74*B74 -> 1200
A75: Mobile / tablet | B75: ='0.2 Unit cost assumptions'!F8 -> 200 | C75: 0 | D75: =C75*B75 -> 0
A76: Camera / webcam | B76: ='0.2 Unit cost assumptions'!F9 -> 100 | C76: =C66 -> 1 | D76: 100
A77: Multifunction Printer | B77: ='0.2 Unit cost assumptions'!F10 -> 200 | C77: 1 | D77: 200
A78: Power back up | B78: ='0.2 Unit cost assumptions'!F11 -> 100 | C78: 1 | D78: 100
A79: Finger print scanner - One finger | B79: ='0.2 Unit cost assumptions'!F12 -> 200 | C79: =C44 -> 0 | D79: 0
A80: Finger print scanner - Slab scanner | B80: ='0.2 Unit cost assumptions'!F13 -> 1000 | C80: =IF(AND('1. Enrolment'!K4=1,'1. Enrolment'!L4>1),1,0) -> 1 | D80: 1000
A81: Iris scanner - one | B81: ='0.2 Unit cost assumptions'!F14 -> 300 | C81: =C55 -> 0 | D81: 0
A82: Iris scanner - two | B82: ='0.2 Unit cost assumptions'!F15 -> 1000 | C82: =C56 -> 0 | D82: 0
A83: Signature pad | B83: ='0.2 Unit cost assumptions'!F16 -> 150 | C83: =C60 -> 0 | D83: 0
A84: GPS dongle | B84: ='0.2 Unit cost assumptions'!F17 -> 100 | C84: 1 | D84: 100
A85: Additional Screen | B85: ='0.2 Unit cost assumptions'!F18 -> 150 | C85: 1 | D85: 150
A86: Voice recording device | B86: ='0.2 Unit cost assumptions'!F19 -> 150 | C86: =C58 -> 0 | D86: 0
A87: Case for kit | B87: ='0.2 Unit cost assumptions'!F20 -> 200 | C87: 1 | D87: 200
C88: Enrolment kit cost | D88: =SUM(D74:D87) -> 3050

Sheet 2. human resource (hidden)
A1: Human resource cost estimation
A3: Component | B3: no. of employee at each enrolment station | C3: No. of Regional offices required | D3: No. of district office required | E3: Hiring cost | F3: Shared human resources with CRVS | G3: Reduction in human resources cost due to CRVS linkages
A4: Value | B4: ='0.4 All inputs'!A20 -> 2 | C4: ='0.4 All inputs'!B20 -> 20 | D4: ='0.4 All inputs'!C20 -> 765 | E4: ='0.4 All inputs'!D20 -> 0.05 | F4: ='0.4 All inputs'!B58 -> 0 | G4: ='0.4 All inputs'!D58 -> 0.3
A5: Description | E5: % of total annual compensation | F5: yes=1 , no = 0 | G5: yes=1 , no = 0
C12: ='1. Enrolment'!D13 -> 0 | D12: ='1. Enrolment'!E13 -> 1 | E12: ='1. Enrolment'!F13 -> 2 | F12: ='1. Enrolment'!G13 -> 3 | G12: ='1. Enrolment'!H13 -> 4 | H12: ='1. Enrolment'!I13 -> 5 | I12: ='1. Enrolment'!J13 -> 6 | J12: ='1. Enrolment'!K13 -> 7 | K12: ='1. Enrolment'!L13 -> 8 | L12: ='1. Enrolment'!M13 -> 9 | M12: ='1. Enrolment'!N13 -> 10 | N12: ='1. Enrolment'!O13 -> 11 | O12: ='1. Enrolment'!P13 -> 12 | P12: ='1. Enrolment'!Q13 -> 13 | Q12: ='1. Enrolment'!R13 -> 14 | R12: ='1. Enrolment'!S13 -> 15
C13: ='1. Enrolment'!D14 -> 2018 | D13: ='1. Enrolment'!E14 -> 2019 | E13: ='1. Enrolment'!F14 -> 2020 | F13: ='1. Enrolment'!G14 -> 2021 | G13: ='1. Enrolment'!H14 -> 2022 | H13: ='1. Enrolment'!I14 -> 2023 | I13: ='1. Enrolment'!J14 -> 2024 | J13: ='1. Enrolment'!K14 -> 2025 | K13: ='1. Enrolment'!L14 -> 2026 | L13: ='1. Enrolment'!M14 -> 2027 | M13: ='1. Enrolment'!N14 -> 2028 | N13: ='1. Enrolment'!O14 -> 2029 | O13: ='1. Enrolment'!P14 -> 2030 | P13: ='1. Enrolment'!Q14 -> 2031 | Q13: ='1. Enrolment'!R14 -> 2032 | R13: ='1. Enrolment'!S14 -> 2033
A14: Headquarter personnel cost | C14: ='2.1 Org_Structure'!G58 -> 533717.0017 | D14: ='2.1 Org_Structure'!H58 -> 533717.0017 | E14: ='2.1 Org_Structure'!I58 -> 533717.0017 | F14: ='2.1 Org_Structure'!J58 -> 533717.0017 | G14: ='2.1 Org_Structure'!K58 -> 533717.0017 | H14: ='2.1 Org_Structure'!L58 -> 533717.0017 | I14: ='2.1 Org_Structure'!M58 -> 533717.0017 | J14: ='2.1 Org_Structure'!N58 -> 533717.0017 | K14: ='2.1 Org_Structure'!O58 -> 533717.0017 | L14: ='2.1 Org_Structure'!P58 -> 533717.0017 | M14: ='2.1 Org_Structure'!Q58 -> 533717.0017 | N14: ='2.1 Org_Structure'!R58 -> 533717.0017 | O14: ='2.1 Org_Structure'!S58 -> 533717.0017 | P14: ='2.1 Org_Structure'!T58 -> 533717.0017 | Q14: ='2.1 Org_Structure'!U58 -> 533717.0017 | R14: ='2.1 Org_Structure'!V58 -> 533717.0017
A15: Regional office personnel cost | C15: ='2.1 Org_Structure'!G77 -> 951959.1141 | D15: ='2.1 Org_Structure'!H77 -> 951959.1141 | E15: ='2.1 Org_Structure'!I77 -> 951959.1141 | F15: ='2.1 Org_Structure'!J77 -> 951959.1141 | G15: ='2.1 Org_Structure'!K77 -> 951959.1141 | H15: ='2.1 Org_Structure'!L77 -> 951959.1141 | I15: ='2.1 Org_Structure'!M77 -> 951959.1141 | J15: ='2.1 Org_Structure'!N77 -> 951959.1141 | K15: ='2.1 Org_Structure'!O77 -> 951959.1141 | L15: ='2.1 Org_Structure'!P77 -> 951959.1141 | M15: ='2.1 Org_Structure'!Q77 -> 951959.1141 | N15: ='2.1 Org_Structure'!R77 -> 951959.1141 | O15: ='2.1 Org_Structure'!S77 -> 951959.1141 | P15: ='2.1 Org_Structure'!T77 -> 951959.1141 | Q15: ='2.1 Org_Structure'!U77 -> 951959.1141 | R15: ='2.1 Org_Structure'!V77 -> 951959.1141
A16: District office personnel cost | C16: ='2.1 Org_Structure'!G84 -> 12041908.01 | D16: ='2.1 Org_Structure'!H84 -> 12041908.01 | E16: ='2.1 Org_Structure'!I84 -> 12041908.01 | F16: ='2.1 Org_Structure'!J84 -> 12041908.01 | G16: ='2.1 Org_Structure'!K84 -> 12041908.01 | H16: ='2.1 Org_Structure'!L84 -> 12041908.01 | I16: ='2.1 Org_Structure'!M84 -> 12041908.01 | J16: ='2.1 Org_Structure'!N84 -> 12041908.01 | K16: ='2.1 Org_Structure'!O84 -> 12041908.01 | L16: ='2.1 Org_Structure'!P84 -> 12041908.01 | M16: ='2.1 Org_Structure'!Q84 -> 12041908.01 | N16: ='2.1 Org_Structure'!R84 -> 12041908.01 | O16: ='2.1 Org_Structure'!S84 -> 12041908.01 | P16: ='2.1 Org_Structure'!T84 -> 12041908.01 | Q16: ='2.1 Org_Structure'!U84 -> 12041908.01 | R16: ='2.1 Org_Structure'!V84 -> 12041908.01
A17: Operator cost | C17: ='2.1 Org_Structure'!G86 -> 0 | D17: ='2.1 Org_Structure'!H86 -> 3647427.598 | E17: ='2.1 Org_Structure'!I86 -> 3840817.717 | F17: ='2.1 Org_Structure'!J86 -> 3714889.267 | G17: ='2.1 Org_Structure'!K86 -> 3552981.261 | H17: ='2.1 Org_Structure'!L86 -> 3557478.705 | I17: ='2.1 Org_Structure'!M86 -> 3557478.705 | J17: ='2.1 Org_Structure'!N86 -> 3561976.15 | K17: ='2.1 Org_Structure'!O86 -> 3566473.595 | L17: ='2.1 Org_Structure'!P86 -> 3570971.039 | M17: ='2.1 Org_Structure'!Q86 -> 3575468.484 | N17: ='2.1 Org_Structure'!R86 -> 3579965.928 | O17: ='2.1 Org_Structure'!S86 -> 3584463.373 | P17: ='2.1 Org_Structure'!T86 -> 3588960.818 | Q17: ='2.1 Org_Structure'!U86 -> 3593458.262 | R17: ='2.1 Org_Structure'!V86 -> 3597955.707
A18: Recruitment cost | C18: =$E$4*SUM(C14:C16) -> 676379.2061 | D18: =IF(D17>C17,(D17-C17)*$E$4,0) -> 182371.3799 | E18: =IF(E17>D17,(E17-D17)*$E$4,0) -> 9669.505963 | F18: 0 | G18: 0 | H18: 224.8722317 | I18: 0 | J18: 224.8722317 | K18: 224.8722317 | L18: 224.8722317 | M18: 224.8722317 | N18: 224.8722317 | O18: 224.8722317 | P18: 224.8722317 | Q18: 224.8722317 | R18: 224.8722317
A19: Total personnel cost | C19: =SUM(C14:C18)*(1-$F$4*$G$4) -> 14203963.33 | D19: =SUM(D14:D18)*(1-$F$4*$G$4) -> 17357383.1 | E19: 17378071.35 | F19: 17242473.39 | G19: 17080565.38 | H19: 17085287.7 | I19: 17085062.83 | J19: 17089785.14 | K19: 17094282.59 | L19: 17098780.03 | M19: 17103277.48 | N19: 17107774.92 | O19: 17112272.37 | P19: 17116769.81 | Q19: 17121267.26 | R19: 17125764.7

Sheet 0.3 HR compensation (hidden)
G1: Instruction: This section list the level wise salary across various departments. As a benchmark salary for various levels, wage estimates (Column "H") of Bureau of Labor statistics is considered. This value is then multiplied with ratio of per capita income for selected country and USA (Column "I") to estimate the wage levels for selected country. Additional allowances (Column "K") has been also added in the salary. Kindly change the relevant values (column H,J) to changes the salary (Column "K").
G6: US per capital Income | H6: 58700 | I6: 2016, PPP US $, WB databank
G7: per capita income for selected country | H7: ='0.4 All inputs'!H15 -> 4000 | I7: 2011, PPP US $
G8: ratio of per capita income | H8: =H7/H6 -> 0.06814310051
G9: Allowances | H9: 0.1
G11: Title | H11: Annual salary in USA | I11: Per capita income ratio | J11: Allowance | K11: Computed compensation for selected country | L11: Category
G12: Top Executives
G13: Executive - 1 | H13: 230090 | I13: =$H$8 -> 0.06814310051 | J13: =$H$9 -> 0.1 | K13: =(1+J13)*(I13*H13) -> 17246.9506 | L13: E1
G14: Executive - 2 | H14: 180000 | I14: =$H$8 -> 0.06814310051 | J14: =$H$9 -> 0.1 | K14: =(1+J14)*(I14*H14) -> 13492.3339 | L14: E2
G15: Executive - 3 | H15: 150000 | I15: 0.06814310051 | J15: 0.1 | K15: 11243.61158 | L15: E3
G16: Executive - 4 | H16: 120000 | I16: =$H$8 -> 0.06814310051 | J16: 0.1 | K16: 8994.889267 | L16: E4
G17: Administration
G18: Level 1 | H18: 140000 | I18: =$H$8 -> 0.06814310051 | J18: =$H$9 -> 0.1 | K18: 10494.03748 | L18: A1
G19: Level 2 | H19: 110000 | I19: =$H$8 -> 0.06814310051 | J19: =$H$9 -> 0.1 | K19: 8245.315162 | L19: A2
G20: Level 3 | H20: 80000 | I20: 0.06814310051 | J20: 0.1 | K20: 5996.592845 | L20: A3
G21: Level 4 | H21: 60000 | I21: 0.06814310051 | J21: 0.1 | K21: 4497.444634 | L21: A4
G22: IT and Technology
G23: Level 1 | H23: 180000 | I23: 0.06814310051 | J23: =$H$9 -> 0.1 | K23: 13492.3339 | L23: I1
G24: Level 2 | H24: 150000 | I24: 0.06814310051 | J24: =$H$9 -> 0.1 | K24: 11243.61158 | L24: I2
G25: Level 3 | H25: 110000 | I25: 0.06814310051 | J25: 0.1 | K25: 8245.315162 | L25: I3
G26: Level 4 | H26: 80000 | I26: 0.06814310051 | J26: 0.1 | K26: 5996.592845 | L26: I4
G27: CRM,Logistics, procurement
G28: Level 1 | H28: 125000 | I28: 0.06814310051 | J28: =$H$9 -> 0.1 | K28: 9369.67632 | L28: C1
G29: Level 2 | H29: 100000 | I29: 0.06814310051 | J29: =$H$9 -> 0.1 | K29: 7495.741056 | L29: C2
G30: Level 3 | H30: 80000 | I30: 0.06814310051 | J30: 0.1 | K30: 5996.592845 | L30: C3
G31: Level 4 | H31: 60000 | I31: 0.06814310051 | J31: 0.1 | K31: 4497.444634 | L31: C4
G32: Finance accounting
G33: Level 1 | H33: 160000 | I33: 0.06814310051 | J33: =$H$9 -> 0.1 | K33: 11993.18569 | L33: F1
G34: Level 2 | H34: 130000 | I34: 0.06814310051 | J34: =$H$9 -> 0.1 | K34: 9744.463373 | L34: F2
G35: Level 3 | H35: 100000 | I35: 0.06814310051 | J35: 0.1 | K35: 7495.741056 | L35: F3
G36: Level 4 | H36: 70000 | I36: 0.06814310051 | J36: 0.1 | K36: 5247.018739 | L36: F4
G37: Operations
G38: Level 1 | H38: 150000 | I38: 0.06814310051 | J38: =$H$9 -> 0.1 | K38: 11243.61158 | L38: O1
G39: Level 2 | H39: 130000 | I39: 0.06814310051 | J39: =$H$9 -> 0.1 | K39: 9744.463373 | L39: O2
G40: Level 3 | H40: 100000 | I40: 0.06814310051 | J40: 0.1 | K40: 7495.741056 | L40: O3
G41: Level 4 | H41: 70000 | I41: 0.06814310051 | J41: 0.1 | K41: 5247.018739 | L41: O4
G42: Human resource
G43: Level 1 | H43: 140000 | I43: 0.06814310051 | J43: =$H$9 -> 0.1 | K43: 10494.03748 | L43: H1
G44: Level 2 | H44: 120000 | I44: 0.06814310051 | J44: =$H$9 -> 0.1 | K44: 8994.889267 | L44: H2
G45: Level 3 | H45: 100000 | I45: 0.06814310051 | J45: 0.1 | K45: 7495.741056 | L45: H3
G46: Level 4 | H46: 80000 | I46: 0.06814310051 | J46: 0.1 | K46: 5996.592845 | L46: H4
G47: Marketing branding
G48: Level 1 | H48: 135000 | I48: 0.06814310051 | J48: =$H$9 -> 0.1 | K48: 10119.25043 | L48: M1
G49: Level 2 | H49: 110000 | I49: 0.06814310051 | J49: =$H$9 -> 0.1 | K49: 8245.315162 | L49: M2
G50: Level 3 | H50: 85000 | I50: 0.06814310051 | J50: 0.1 | K50: 6371.379898 | L50: M3
G51: Level 4 | H51: 60000 | I51: 0.06814310051 | J51: 0.1 | K51: 4497.444634 | L51: M4
G52: Legal
G53: Level 1 | H53: 120000 | I53: 0.06814310051 | J53: =$H$9 -> 0.1 | K53: 8994.889267 | L53: L1
G54: Level 2 | H54: 100000 | I54: 0.06814310051 | J54: =$H$9 -> 0.1 | K54: 7495.741056 | L54: L2
G55: Level 3 | H55: 80000 | I55: 0.06814310051 | J55: 0.1 | K55: 5996.592845 | L55: L3
G56: Level 4 | H56: 60000 | I56: 0.06814310051 | J56: 0.1 | K56: 4497.444634 | L56: L4
G57: Office support staff
G58: Level 1 | H58: 45000 | I58: 0.06814310051 | J58: =$H$9 -> 0.1 | K58: 3373.083475 | L58: S1
G59: Level 2 | H59: 35000 | I59: 0.06814310051 | J59: =$H$9 -> 0.1 | K59: 2623.50937 | L59: S2
G60: Level 3 | H60: 30000 | I60: 0.06814310051 | J60: 0.1 | K60: 2248.722317 | L60: S3
G61: Level 4 | H61: 25000 | I61: 0.06814310051 | J61: 0.1 | K61: 1873.935264 | L61: S4

Sheet 2.1 Org_Structure (hidden)
A1: Instruction: No. of employees can be changed by changing values in column D. Before changing any values it is advised to kindly read human resources cost estimation methodology. To change the annual compensation, kindly use "Go to Compensation List". Kindly do not change any other column except column D and E
A9: Department | B9: Position | C9: Description | D9: no. of employees | E9: Level at org. struct | F9: Annual compensation | G9: ='1. Enrolment'!D13 -> 0 | H9: ='1. Enrolment'!E13 -> 1 | I9: ='1. Enrolment'!F13 -> 2 | J9: ='1. Enrolment'!G13 -> 3 | K9: ='1. Enrolment'!H13 -> 4 | L9: ='1. Enrolment'!I13 -> 5 | M9: ='1. Enrolment'!J13 -> 6 | N9: ='1. Enrolment'!K13 -> 7 | O9: ='1. Enrolment'!L13 -> 8 | P9: ='1. Enrolment'!M13 -> 9 | Q9: ='1. Enrolment'!N13 -> 10 | R9: ='1. Enrolment'!O13 -> 11 | S9: ='1. Enrolment'!P13 -> 12 | T9: ='1. Enrolment'!Q13 -> 13 | U9: ='1. Enrolment'!R13 -> 14 | V9: ='1. Enrolment'!S13 -> 15
C10: year | G10: ='1. Enrolment'!D14 -> 2018 | H10: ='1. Enrolment'!E14 -> 2019 | I10: ='1. Enrolment'!F14 -> 2020 | J10: ='1. Enrolment'!G14 -> 2021 | K10: ='1. Enrolment'!H14 -> 2022 | L10: ='1. Enrolment'!I14 -> 2023 | M10: ='1. Enrolment'!J14 -> 2024 | N10: ='1. Enrolment'!K14 -> 2025 | O10: ='1. Enrolment'!L14 -> 2026 | P10: ='1. Enrolment'!M14 -> 2027 | Q10: ='1. Enrolment'!N14 -> 2028 | R10: ='1. Enrolment'!O14 -> 2029 | S10: ='1. Enrolment'!P14 -> 2030 | T10: ='1. Enrolment'!Q14 -> 2031 | U10: ='1. Enrolment'!R14 -> 2032 | V10: ='1. Enrolment'!S14 -> 2033
C11: Phase | G11: ='1. Enrolment'!D17 -> 0 | H11: ='1. Enrolment'!E17 -> 1 | I11: ='1. Enrolment'!F17 -> 1 | J11: ='1. Enrolment'!G17 -> 1 | K11: ='1. Enrolment'!H17 -> 2 | L11: ='1. Enrolment'!I17 -> 2 | M11: ='1. Enrolment'!J17 -> 2 | N11: ='1. Enrolment'!K17 -> 2 | O11: ='1. Enrolment'!L17 -> 2 | P11: ='1. Enrolment'!M17 -> 2 | Q11: ='1. Enrolment'!N17 -> 2 | R11: ='1. Enrolment'!O17 -> 2 | S11: ='1. Enrolment'!P17 -> 2 | T11: ='1. Enrolment'!Q17 -> 2 | U11: ='1. Enrolment'!R17 -> 2 | V11: ='1. Enrolment'!S17 -> 2
A12: Headquarter | C12: Enrolment stations | G12: ='1. Enrolment'!D36 -> 0 | H12: ='1. Enrolment'!E36 -> 811 | I12: ='1. Enrolment'!F36 -> 854 | J12: ='1. Enrolment'!G36 -> 826 | K12: ='1. Enrolment'!H36 -> 790 | L12: ='1. Enrolment'!I36 -> 791 | M12: ='1. Enrolment'!J36 -> 791 | N12: ='1. Enrolment'!K36 -> 792 | O12: ='1. Enrolment'!L36 -> 793 | P12: ='1. Enrolment'!M36 -> 794 | Q12: ='1. Enrolment'!N36 -> 795 | R12: ='1. Enrolment'!O36 -> 796 | S12: ='1. Enrolment'!P36 -> 797 | T12: ='1. Enrolment'!Q36 -> 798 | U12: ='1. Enrolment'!R36 -> 799 | V12: ='1. Enrolment'!S36 -> 800
A13: Steering Committee | B13: CEO | D13: 1 | E13: E1 | F13: =INDEX('0.3 HR compensation'!$K$13:$K$61,MATCH('2.1 Org_Structure'!E13,'0.3 HR compensation'!$L$13:$L$61,0)) -> 17246.9506 | G13: =$F13*$D13 -> 17246.9506 | H13: 17246.9506 | I13: 17246.9506 | J13: 17246.9506 | K13: 17246.9506 | L13: 17246.9506 | M13: 17246.9506 | N13: 17246.9506 | O13: 17246.9506 | P13: 17246.9506 | Q13: 17246.9506 | R13: 17246.9506 | S13: 17246.9506 | T13: 17246.9506 | U13: 17246.9506 | V13: 17246.9506
B14: Heads | D14: 2 | E14: E2 | F14: =INDEX('0.3 HR compensation'!$K$13:$K$61,MATCH('2.1 Org_Structure'!E14,'0.3 HR compensation'!$L$13:$L$61,0)) -> 13492.3339 | G14: 26984.6678 | H14: 26984.6678 | I14: 26984.6678 | J14: 26984.6678 | K14: 26984.6678 | L14: 26984.6678 | M14: 26984.6678 | N14: 26984.6678 | O14: 26984.6678 | P14: 26984.6678 | Q14: 26984.6678 | R14: 26984.6678 | S14: 26984.6678 | T14: 26984.6678 | U14: 26984.6678 | V14: 26984.6678
B15: Minister and other member | D15: 2 | E15: E2 | F15: =INDEX('0.3 HR compensation'!$K$13:$K$61,MATCH('2.1 Org_Structure'!E15,'0.3 HR compensation'!$L$13:$L$61,0)) -> 13492.3339 | G15: 26984.6678 | H15: 26984.6678 | I15: 26984.6678 | J15: 26984.6678 | K15: 26984.6678 | L15: 26984.6678 | M15: 26984.6678 | N15: 26984.6678 | O15: 26984.6678 | P15: 26984.6678 | Q15: 26984.6678 | R15: 26984.6678 | S15: 26984.6678 | T15: 26984.6678 | U15: 26984.6678 | V15: 26984.6678
B16: Personal Secretary | D16: 2 | E16: A2 | F16: =INDEX('0.3 HR compensation'!$K$13:$K$61,MATCH('2.1 Org_Structure'!E16,'0.3 HR compensation'!$L$13:$L$61,0)) -> 8245.315162 | G16: 16490.63032 | H16: 16490.63032 | I16: 16490.63032 | J16: 16490.63032 | K16: 16490.63032 | L16: 16490.63032 | M16: 16490.63032 | N16: 16490.63032 | O16: 16490.63032 | P16: 16490.63032 | Q16: 16490.63032 | R16: 16490.63032 | S16: 16490.63032 | T16: 16490.63032 | U16: 16490.63032 | V16: 16490.63032
A17: Administration and Establishment | B17: Executive level | D17: 1 | E17: A1 | F17: =INDEX('0.3 HR compensation'!$K$13:$K$61,MATCH('2.1 Org_Structure'!E17,'0.3 HR compensation'!$L$13:$L$61,0)) -> 10494.03748 | G17: 10494.03748 | H17: 10494.03748 | I17: 10494.03748 | J17: 10494.03748 | K17: 10494.03748 | L17: 10494.03748 | M17: 10494.03748 | N17: 10494.03748 | O17: 10494.03748 | P17: 10494.03748 | Q17: 10494.03748 | R17: 10494.03748 | S17: 10494.03748 | T17: 10494.03748 | U17: 10494.03748 | V17: 10494.03748
B18: Senior employees | D18: 1 | E18: A2 | F18: =INDEX('0.3 HR compensation'!$K$13:$K$61,MATCH('2.1 Org_Structure'!E18,'0.3 HR compensation'!$L$13:$L$61,0)) -> 8245.315162 | G18: 8245.315162 | H18: 8245.315162 | I18: 8245.315162 | J18: 8245.315162 | K18: 8245.315162 | L18: 8245.315162 | M18: 8245.315162 | N18: 8245.315162 | O18: 8245.315162 | P18: 8245.315162 | Q18: 8245.315162 | R18: 8245.315162 | S18: 8245.315162 | T18: 8245.315162 | U18: 8245.315162 | V18: 8245.315162
B19: Junior employees | D19: 2 | E19: A3 | F19: =INDEX('0.3 HR compensation'!$K$13:$K$61,MATCH('2.1 Org_Structure'!E19,'0.3 HR compensation'!$L$13:$L$61,0)) -> 5996.592845 | G19: 11993.18569 | H19: 11993.18569 | I19: 11993.18569 | J19: 11993.18569 | K19: 11993.18569 | L19: 11993.18569 | M19: 11993.18569 | N19: 11993.18569 | O19: 11993.18569 | P19: 11993.18569 | Q19: 11993.18569 | R19: 11993.18569 | S19: 11993.18569 | T19: 11993.18569 | U19: 11993.18569 | V19: 11993.18569
A20: IT & Technology | B20: Executive level | D20: 1 | E20: I1 | F20: =INDEX('0.3 HR compensation'!$K$13:$K$61,MATCH('2.1 Org_Structure'!E20,'0.3 HR compensation'!$L$13:$L$61,0)) -> 13492.3339 | G20: 13492.3339 | H20: 13492.3339 | I20: 13492.3339 | J20: 13492.3339 | K20: 13492.3339 | L20: 13492.3339 | M20: 13492.3339 | N20: 13492.3339 | O20: 13492.3339 | P20: 13492.3339 | Q20: 13492.3339 | R20: 13492.3339 | S20: 13492.3339 | T20: 13492.3339 | U20: 13492.3339 | V20: 13492.3339
B21: Senior employees | D21: 2 | E21: I2 | F21: =INDEX('0.3 HR compensation'!$K$13:$K$61,MATCH('2.1 Org_Structure'!E21,'0.3 HR compensation'!$L$13:$L$61,0)) -> 11243.61158 | G21: 22487.22317 | H21: 22487.22317 | I21: 22487.22317 | J21: 22487.22317 | K21: 22487.22317 | L21: 22487.22317 | M21: 22487.22317 | N21: 22487.22317 | O21: 22487.22317 | P21: 22487.22317 | Q21: 22487.22317 | R21: 22487.22317 | S21: 22487.22317 | T21: 22487.22317 | U21: 22487.22317 | V21: 22487.22317
B22: Junior employees | D22: 2 | E22: I3 | F22: =INDEX('0.3 HR compensation'!$K$13:$K$61,MATCH('2.1 Org_Structure'!E22,'0.3 HR compensation'!$L$13:$L$61,0)) -> 8245.315162 | G22: 16490.63032 | H22: 16490.63032 | I22: 16490.63032 | J22: 16490.63032 | K22: 16490.63032 | L22: 16490.63032 | M22: 16490.63032 | N22: 16490.63032 | O22: 16490.63032 | P22: 16490.63032 | Q22: 16490.63032 | R22: 16490.63032 | S22: 16490.63032 | T22: 16490.63032 | U22: 16490.63032 | V22: 16490.63032
A23: CRM and logistics | B23: Executive level | D23: 0 | E23: C1 | F23: =INDEX('0.3 HR compensation'!$K$13:$K$61,MATCH('2.1 Org_Structure'!E23,'0.3 HR compensation'!$L$13:$L$61,0)) -> 9369.67632 | G23: =$F23*$D23 -> 0 | H23: 0 | I23: 0 | J23: 0 | K23: 0 | L23: 0 | M23: 0 | N23: 0 | O23: 0 | P23: 0 | Q23: 0 | R23: 0 | S23: 0 | T23: 0 | U23: 0 | V23: 0
B24: Senior employees | D24: 1 | E24: C2 | F24: =INDEX('0.3 HR compensation'!$K$13:$K$61,MATCH('2.1 Org_Structure'!E24,'0.3 HR compensation'!$L$13:$L$61,0)) -> 7495.741056 | G24: 7495.741056 | H24: 7495.741056 | I24: 7495.741056 | J24: 7495.741056 | K24: 7495.741056 | L24: 7495.741056 | M24: 7495.741056 | N24: 7495.741056 | O24: 7495.741056 | P24: 7495.741056 | Q24: 7495.741056 | R24: 7495.741056 | S24: 7495.741056 | T24: 7495.741056 | U24: 7495.741056 | V24: 7495.741056
B25: Junior employees | D25: 1 | E25: C3 | F25: =INDEX('0.3 HR compensation'!$K$13:$K$61,MATCH('2.1 Org_Structure'!E25,'0.3 HR compensation'!$L$13:$L$61,0)) -> 5996.592845 | G25: 5996.592845 | H25: 5996.592845 | I25: 5996.592845 | J25: 5996.592845 | K25: 5996.592845 | L25: 5996.592845 | M25: 5996.592845 | N25: 5996.592845 | O25: 5996.592845 | P25: 5996.592845 | Q25: 5996.592845 | R25: 5996.592845 | S25: 5996.592845 | T25: 5996.592845 | U25: 5996.592845 | V25: 5996.592845
A26: Training testing and certification | B26: Executive level | D26: 0 | E26: C1 | F26: =INDEX('0.3 HR compensation'!$K$13:$K$61,MATCH('2.1 Org_Structure'!E26,'0.3 HR compensation'!$L$13:$L$61,0)) -> 9369.67632 | G26: 0 | H26: 0 | I26: 0 | J26: 0 | K26: 0 | L26: 0 | M26: 0 | N26: 0 | O26: 0 | P26: 0 | Q26: 0 | R26: 0 | S26: 0 | T26: 0 | U26: 0 | V26: 0
B27: Senior employees | D27: 1 | E27: C2 | F27: =INDEX('0.3 HR compensation'!$K$13:$K$61,MATCH('2.1 Org_Structure'!E27,'0.3 HR compensation'!$L$13:$L$61,0)) -> 7495.741056 | G27: 7495.741056 | H27: 7495.741056 | I27: 7495.741056 | J27: 7495.741056 | K27: 7495.741056 | L27: 7495.741056 | M27: 7495.741056 | N27: 7495.741056 | O27: 7495.741056 | P27: 7495.741056 | Q27: 7495.741056 | R27: 7495.741056 | S27: 7495.741056 | T27: 7495.741056 | U27: 7495.741056 | V27: 7495.741056
B28: Junior employees | D28: 0 | E28: C3 | F28: =INDEX('0.3 HR compensation'!$K$13:$K$61,MATCH('2.1 Org_Structure'!E28,'0.3 HR compensation'!$L$13:$L$61,0)) -> 5996.592845 | G28: 0 | H28: 0 | I28: 0 | J28: 0 | K28: 0 | L28: 0 | M28: 0 | N28: 0 | O28: 0 | P28: 0 | Q28: 0 | R28: 0 | S28: 0 | T28: 0 | U28: 0 | V28: 0
A29: Procurement | B29: Executive level | D29: 1 | E29: O1 | F29: =INDEX('0.3 HR compensation'!$K$13:$K$61,MATCH('2.1 Org_Structure'!E29,'0.3 HR compensation'!$L$13:$L$61,0)) -> 11243.61158 | G29: 11243.61158 | H29: 11243.61158 | I29: 11243.61158 | J29: 11243.61158 | K29: 11243.61158 | L29: 11243.61158 | M29: 11243.61158 | N29: 11243.61158 | O29: 11243.61158 | P29: 11243.61158 | Q29: 11243.61158 | R29: 11243.61158 | S29: 11243.61158 | T29: 11243.61158 | U29: 11243.61158 | V29: 11243.61158
B30: Senior employees | D30: 1 | E30: O2 | F30: =INDEX('0.3 HR compensation'!$K$13:$K$61,MATCH('2.1 Org_Structure'!E30,'0.3 HR compensation'!$L$13:$L$61,0)) -> 9744.463373 | G30: 9744.463373 | H30: 9744.463373 | I30: 9744.463373 | J30: 9744.463373 | K30: 9744.463373 | L30: 9744.463373 | M30: 9744.463373 | N30: 9744.463373 | O30: 9744.463373 | P30: 9744.463373 | Q30: 9744.463373 | R30: 9744.463373 | S30: 9744.463373 | T30: 9744.463373 | U30: 9744.463373 | V30: 9744.463373
B31: Junior employees | D31: 0 | E31: O3 | F31: =INDEX('0.3 HR compensation'!$K$13:$K$61,MATCH('2.1 Org_Structure'!E31,'0.3 HR compensation'!$L$13:$L$61,0)) -> 7495.741056 | G31: 0 | H31: 0 | I31: 0 | J31: 0 | K31: 0 | L31: 0 | M31: 0 | N31: 0 | O31: 0 | P31: 0 | Q31: 0 | R31: 0 | S31: 0 | T31: 0 | U31: 0 | V31: 0
A32: Finance and accounting | B32: Executive level | D32: 1 | E32: F1 | F32: =INDEX('0.3 HR compensation'!$K$13:$K$61,MATCH('2.1 Org_Structure'!E32,'0.3 HR compensation'!$L$13:$L$61,0)) -> 11993.18569 | G32: 11993.18569 | H32: 11993.18569 | I32: 11993.18569 | J32: 11993.18569 | K32: 11993.18569 | L32: 11993.18569 | M32: 11993.18569 | N32: 11993.18569 | O32: 11993.18569 | P32: 11993.18569 | Q32: 11993.18569 | R32: 11993.18569 | S32: 11993.18569 | T32: 11993.18569 | U32: 11993.18569 | V32: 11993.18569
B33: Senior employees | D33: 1 | E33: F2 | F33: =INDEX('0.3 HR compensation'!$K$13:$K$61,MATCH('2.1 Org_Structure'!E33,'0.3 HR compensation'!$L$13:$L$61,0)) -> 9744.463373 | G33: =$F33*$D33 -> 9744.463373 | H33: 9744.463373 | I33: 9744.463373 | J33: 9744.463373 | K33: 9744.463373 | L33: 9744.463373 | M33: 9744.463373 | N33: 9744.463373 | O33: 9744.463373 | P33: 9744.463373 | Q33: 9744.463373 | R33: 9744.463373 | S33: 9744.463373 | T33: 9744.463373 | U33: 9744.463373 | V33: 9744.463373
B34: Junior employees | D34: 1 | E34: F3 | F34: =INDEX('0.3 HR compensation'!$K$13:$K$61,MATCH('2.1 Org_Structure'!E34,'0.3 HR compensation'!$L$13:$L$61,0)) -> 7495.741056 | G34: 7495.741056 | H34: 7495.741056 | I34: 7495.741056 | J34: 7495.741056 | K34: 7495.741056 | L34: 7495.741056 | M34: 7495.741056 | N34: 7495.741056 | O34: 7495.741056 | P34: 7495.741056 | Q34: 7495.741056 | R34: 7495.741056 | S34: 7495.741056 | T34: 7495.741056 | U34: 7495.741056 | V34: 7495.741056
A35: Enrolment and updation | B35: Executive level | D35: 1 | E35: O1 | F35: =INDEX('0.3 HR compensation'!$K$13:$K$61,MATCH('2.1 Org_Structure'!E35,'0.3 HR compensation'!$L$13:$L$61,0)) -> 11243.61158 | G35: 11243.61158 | H35: 11243.61158 | I35: 11243.61158 | J35: 11243.61158 | K35: 11243.61158 | L35: 11243.61158 | M35: 11243.61158 | N35: 11243.61158 | O35: 11243.61158 | P35: 11243.61158 | Q35: 11243.61158 | R35: 11243.61158 | S35: 11243.61158 | T35: 11243.61158 | U35: 11243.61158 | V35: 11243.61158
B36: Senior employees | D36: 2 | E36: O2 | F36: =INDEX('0.3 HR compensation'!$K$13:$K$61,MATCH('2.1 Org_Structure'!E36,'0.3 HR compensation'!$L$13:$L$61,0)) -> 9744.463373 | G36: 19488.92675 | H36: 19488.92675 | I36: 19488.92675 | J36: 19488.92675 | K36: 19488.92675 | L36: 19488.92675 | M36: 19488.92675 | N36: 19488.92675 | O36: 19488.92675 | P36: 19488.92675 | Q36: 19488.92675 | R36: 19488.92675 | S36: 19488.92675 | T36: 19488.92675 | U36: 19488.92675 | V36: 19488.92675
B37: Junior employees | D37: 2 | E37: O3 | F37: =INDEX('0.3 HR compensation'!$K$13:$K$61,MATCH('2.1 Org_Structure'!E37,'0.3 HR compensation'!$L$13:$L$61,0)) -> 7495.741056 | G37: 14991.48211 | H37: 14991.48211 | I37: 14991.48211 | J37: 14991.48211 | K37: 14991.48211 | L37: 14991.48211 | M37: 14991.48211 | N37: 14991.48211 | O37: 14991.48211 | P37: 14991.48211 | Q37: 14991.48211 | R37: 14991.48211 | S37: 14991.48211 | T37: 14991.48211 | U37: 14991.48211 | V37: 14991.48211
A38: Human resource | B38: Executive level | D38: 1 | E38: H1 | F38: =INDEX('0.3 HR compensation'!$K$13:$K$61,MATCH('2.1 Org_Structure'!E38,'0.3 HR compensation'!$L$13:$L$61,0)) -> 10494.03748 | G38: 10494.03748 | H38: 10494.03748 | I38: 10494.03748 | J38: 10494.03748 | K38: 10494.03748 | L38: 10494.03748 | M38: 10494.03748 | N38: 10494.03748 | O38: 10494.03748 | P38: 10494.03748 | Q38: 10494.03748 | R38: 10494.03748 | S38: 10494.03748 | T38: 10494.03748 | U38: 10494.03748 | V38: 10494.03748
B39: Senior employees | D39: 1 | E39: H2 | F39: =INDEX('0.3 HR compensation'!$K$13:$K$61,MATCH('2.1 Org_Structure'!E39,'0.3 HR compensation'!$L$13:$L$61,0)) -> 8994.889267 | G39: 8994.889267 | H39: 8994.889267 | I39: 8994.889267 | J39: 8994.889267 | K39: 8994.889267 | L39: 8994.889267 | M39: 8994.889267 | N39: 8994.889267 | O39: 8994.889267 | P39: 8994.889267 | Q39: 8994.889267 | R39: 8994.889267 | S39: 8994.889267 | T39: 8994.889267 | U39: 8994.889267 | V39: 8994.889267
B40: Junior employees | D40: 2 | E40: H3 | F40: =INDEX('0.3 HR compensation'!$K$13:$K$61,MATCH('2.1 Org_Structure'!E40,'0.3 HR compensation'!$L$13:$L$61,0)) -> 7495.741056 | G40: 14991.48211 | H40: 14991.48211 | I40: 14991.48211 | J40: 14991.48211 | K40: 14991.48211 | L40: 14991.48211 | M40: 14991.48211 | N40: 14991.48211 | O40: 14991.48211 | P40: 14991.48211 | Q40: 14991.48211 | R40: 14991.48211 | S40: 14991.48211 | T40: 14991.48211 | U40: 14991.48211 | V40: 14991.48211
A41: Authentication, application and coordination | B41: Executive level | C41: software development cost has been already estimated in software section | D41: 1 | E41: I1 | F41: =INDEX('0.3 HR compensation'!$K$13:$K$61,MATCH('2.1 Org_Structure'!E41,'0.3 HR compensation'!$L$13:$L$61,0)) -> 13492.3339 | G41: 13492.3339 | H41: 13492.3339 | I41: 13492.3339 | J41: 13492.3339 | K41: 13492.3339 | L41: 13492.3339 | M41: 13492.3339 | N41: 13492.3339 | O41: 13492.3339 | P41: 13492.3339 | Q41: 13492.3339 | R41: 13492.3339 | S41: 13492.3339 | T41: 13492.3339 | U41: 13492.3339 | V41: 13492.3339
B42: Senior employees | D42: 1 | E42: I2 | F42: =INDEX('0.3 HR compensation'!$K$13:$K$61,MATCH('2.1 Org_Structure'!E42,'0.3 HR compensation'!$L$13:$L$61,0)) -> 11243.61158 | G42: 11243.61158 | H42: 11243.61158 | I42: 11243.61158 | J42: 11243.61158 | K42: 11243.61158 | L42: 11243.61158 | M42: 11243.61158 | N42: 11243.61158 | O42: 11243.61158 | P42: 11243.61158 | Q42: 11243.61158 | R42: 11243.61158 | S42: 11243.61158 | T42: 11243.61158 | U42: 11243.61158 | V42: 11243.61158
B43: Junior employees | D43: 2 | E43: I3 | F43: =INDEX('0.3 HR compensation'!$K$13:$K$61,MATCH('2.1 Org_Structure'!E43,'0.3 HR compensation'!$L$13:$L$61,0)) -> 8245.315162 | G43: =$F43*$D43 -> 16490.63032 | H43: 16490.63032 | I43: 16490.63032 | J43: 16490.63032 | K43: 16490.63032 | L43: 16490.63032 | M43: 16490.63032 | N43: 16490.63032 | O43: 16490.63032 | P43: 16490.63032 | Q43: 16490.63032 | R43: 16490.63032 | S43: 16490.63032 | T43: 16490.63032 | U43: 16490.63032 | V43: 16490.63032
A44: Marketing and branding | B44: Executive level | D44: 0 | E44: M1 | F44: =INDEX('0.3 HR compensation'!$K$13:$K$61,MATCH('2.1 Org_Structure'!E44,'0.3 HR compensation'!$L$13:$L$61,0)) -> 10119.25043 | G44: 0 | H44: 0 | I44: 0 | J44: 0 | K44: 0 | L44: 0 | M44: 0 | N44: 0 | O44: 0 | P44: 0 | Q44: 0 | R44: 0 | S44: 0 | T44: 0 | U44: 0 | V44: 0
B45: Senior employees | D45: 1 | E45: M2 | F45: =INDEX('0.3 HR compensation'!$K$13:$K$61,MATCH('2.1 Org_Structure'!E45,'0.3 HR compensation'!$L$13:$L$61,0)) -> 8245.315162 | G45: 8245.315162 | H45: 8245.315162 | I45: 8245.315162 | J45: 8245.315162 | K45: 8245.315162 | L45: 8245.315162 | M45: 8245.315162 | N45: 8245.315162 | O45: 8245.315162 | P45: 8245.315162 | Q45: 8245.315162 | R45: 8245.315162 | S45: 8245.315162 | T45: 8245.315162 | U45: 8245.315162 | V45: 8245.315162
B46: Junior employees | D46: 2 | E46: M3 | F46: =INDEX('0.3 HR compensation'!$K$13:$K$61,MATCH('2.1 Org_Structure'!E46,'0.3 HR compensation'!$L$13:$L$61,0)) -> 6371.379898 | G46: 12742.7598 | H46: 12742.7598 | I46: 12742.7598 | J46: 12742.7598 | K46: 12742.7598 | L46: 12742.7598 | M46: 12742.7598 | N46: 12742.7598 | O46: 12742.7598 | P46: 12742.7598 | Q46: 12742.7598 | R46: 12742.7598 | S46: 12742.7598 | T46: 12742.7598 | U46: 12742.7598 | V46: 12742.7598
A47: Legal | B47: Executive level | D47: 0 | E47: L1 | F47: =INDEX('0.3 HR compensation'!$K$13:$K$61,MATCH('2.1 Org_Structure'!E47,'0.3 HR compensation'!$L$13:$L$61,0)) -> 8994.889267 | G47: 0 | H47: 0 | I47: 0 | J47: 0 | K47: 0 | L47: 0 | M47: 0 | N47: 0 | O47: 0 | P47: 0 | Q47: 0 | R47: 0 | S47: 0 | T47: 0 | U47: 0 | V47: 0
B48: Senior employees | D48: 1 | E48: L2 | F48: =INDEX('0.3 HR compensation'!$K$13:$K$61,MATCH('2.1 Org_Structure'!E48,'0.3 HR compensation'!$L$13:$L$61,0)) -> 7495.741056 | G48: 7495.741056 | H48: 7495.741056 | I48: 7495.741056 | J48: 7495.741056 | K48: 7495.741056 | L48: 7495.741056 | M48: 7495.741056 | N48: 7495.741056 | O48: 7495.741056 | P48: 7495.741056 | Q48: 7495.741056 | R48: 7495.741056 | S48: 7495.741056 | T48: 7495.741056 | U48: 7495.741056 | V48: 7495.741056
B49: Junior employees | D49: 2 | E49: L3 | F49: =INDEX('0.3 HR compensation'!$K$13:$K$61,MATCH('2.1 Org_Structure'!E49,'0.3 HR compensation'!$L$13:$L$61,0)) -> 5996.592845 | G49: 11993.18569 | H49: 11993.18569 | I49: 11993.18569 | J49: 11993.18569 | K49: 11993.18569 | L49: 11993.18569 | M49: 11993.18569 | N49: 11993.18569 | O49: 11993.18569 | P49: 11993.18569 | Q49: 11993.18569 | R49: 11993.18569 | S49: 11993.18569 | T49: 11993.18569 | U49: 11993.18569 | V49: 11993.18569
A50: External Consultants | B50: Executive level | D50: 1 | E50: E1 | F50: =INDEX('0.3 HR compensation'!$K$13:$K$61,MATCH('2.1 Org_Structure'!E50,'0.3 HR compensation'!$L$13:$L$61,0)) -> 17246.9506 | G50: 17246.9506 | H50: 17246.9506 | I50: 17246.9506 | J50: 17246.9506 | K50: 17246.9506 | L50: 17246.9506 | M50: 17246.9506 | N50: 17246.9506 | O50: 17246.9506 | P50: 17246.9506 | Q50: 17246.9506 | R50: 17246.9506 | S50: 17246.9506 | T50: 17246.9506 | U50: 17246.9506 | V50: 17246.9506
B51: Senior employees | D51: 2 | E51: E2 | F51: =INDEX('0.3 HR compensation'!$K$13:$K$61,MATCH('2.1 Org_Structure'!E51,'0.3 HR compensation'!$L$13:$L$61,0)) -> 13492.3339 | G51: 26984.6678 | H51: 26984.6678 | I51: 26984.6678 | J51: 26984.6678 | K51: 26984.6678 | L51: 26984.6678 | M51: 26984.6678 | N51: 26984.6678 | O51: 26984.6678 | P51: 26984.6678 | Q51: 26984.6678 | R51: 26984.6678 | S51: 26984.6678 | T51: 26984.6678 | U51: 26984.6678 | V51: 26984.6678
B52: Junior employees | D52: 3 | E52: E3 | F52: =INDEX('0.3 HR compensation'!$K$13:$K$61,MATCH('2.1 Org_Structure'!E52,'0.3 HR compensation'!$L$13:$L$61,0)) -> 11243.61158 | G52: 33730.83475 | H52: 33730.83475 | I52: 33730.83475 | J52: 33730.83475 | K52: 33730.83475 | L52: 33730.83475 | M52: 33730.83475 | N52: 33730.83475 | O52: 33730.83475 | P52: 33730.83475 | Q52: 33730.83475 | R52: 33730.83475 | S52: 33730.83475 | T52: 33730.83475 | U52: 33730.83475 | V52: 33730.83475
A53: External auditors | B53: Executive level | D53: 1 | E53: E1 | F53: =INDEX('0.3 HR compensation'!$K$13:$K$61,MATCH('2.1 Org_Structure'!E53,'0.3 HR compensation'!$L$13:$L$61,0)) -> 17246.9506 | G53: 17246.9506 | H53: 17246.9506 | I53: 17246.9506 | J53: 17246.9506 | K53: 17246.9506 | L53: 17246.9506 | M53: 17246.9506 | N53: 17246.9506 | O53: 17246.9506 | P53: 17246.9506 | Q53: 17246.9506 | R53: 17246.9506 | S53: 17246.9506 | T53: 17246.9506 | U53: 17246.9506 | V53: 17246.9506
B54: Senior employees | D54: 1 | E54: E2 | F54: =INDEX('0.3 HR compensation'!$K$13:$K$61,MATCH('2.1 Org_Structure'!E54,'0.3 HR compensation'!$L$13:$L$61,0)) -> 13492.3339 | G54: 13492.3339 | H54: 13492.3339 | I54: 13492.3339 | J54: 13492.3339 | K54: 13492.3339 | L54: 13492.3339 | M54: 13492.3339 | N54: 13492.3339 | O54: 13492.3339 | P54: 13492.3339 | Q54: 13492.3339 | R54: 13492.3339 | S54: 13492.3339 | T54: 13492.3339 | U54: 13492.3339 | V54: 13492.3339
B55: Junior employees | D55: 1 | E55: E3 | F55: =INDEX('0.3 HR compensation'!$K$13:$K$61,MATCH('2.1 Org_Structure'!E55,'0.3 HR compensation'!$L$13:$L$61,0)) -> 11243.61158 | G55: 11243.61158 | H55: 11243.61158 | I55: 11243.61158 | J55: 11243.61158 | K55: 11243.61158 | L55: 11243.61158 | M55: 11243.61158 | N55: 11243.61158 | O55: 11243.61158 | P55: 11243.61158 | Q55: 11243.61158 | R55: 11243.61158 | S55: 11243.61158 | T55: 11243.61158 | U55: 11243.61158 | V55: 11243.61158
A56: Office support staff | B56: Senior | D56: 2 | E56: S2 | F56: =INDEX('0.3 HR compensation'!$K$13:$K$61,MATCH('2.1 Org_Structure'!E56,'0.3 HR compensation'!$L$13:$L$61,0)) -> 2623.50937 | G56: 5247.018739 | H56: 5247.018739 | I56: 5247.018739 | J56: 5247.018739 | K56: 5247.018739 | L56: 5247.018739 | M56: 5247.018739 | N56: 5247.018739 | O56: 5247.018739 | P56: 5247.018739 | Q56: 5247.018739 | R56: 5247.018739 | S56: 5247.018739 | T56: 5247.018739 | U56: 5247.018739 | V56: 5247.018739
B57: Junior | D57: 2 | E57: S3 | F57: =INDEX('0.3 HR compensation'!$K$13:$K$61,MATCH('2.1 Org_Structure'!E57,'0.3 HR compensation'!$L$13:$L$61,0)) -> 2248.722317 | G57: 4497.444634 | H57: 4497.444634 | I57: 4497.444634 | J57: 4497.444634 | K57: 4497.444634 | L57: 4497.444634 | M57: 4497.444634 | N57: 4497.444634 | O57: 4497.444634 | P57: 4497.444634 | Q57: 4497.444634 | R57: 4497.444634 | S57: 4497.444634 | T57: 4497.444634 | U57: 4497.444634 | V57: 4497.444634
B58: Total in HQ | D58: =SUM(D13:D57) -> 56 | G58: =SUM(G13:G57) -> 533717.0017 | H58: =SUM(H13:H57) -> 533717.0017 | I58: 533717.0017 | J58: 533717.0017 | K58: 533717.0017 | L58: 533717.0017 | M58: 533717.0017 | N58: 533717.0017 | O58: 533717.0017 | P58: 533717.0017 | Q58: 533717.0017 | R58: 533717.0017 | S58: 533717.0017 | T58: 533717.0017 | U58: 533717.0017 | V58: 533717.0017
A60: Regional Office
A61: Steering Committee | B61: Regional Head | D61: 1 | E61: E2 | F61: =INDEX('0.3 HR compensation'!$K$13:$K$61,MATCH('2.1 Org_Structure'!E61,'0.3 HR compensation'!$L$13:$L$61,0)) -> 13492.3339 | G61: =$F61*$D61 -> 13492.3339 | H61: 13492.3339 | I61: 13492.3339 | J61: 13492.3339 | K61: 13492.3339 | L61: 13492.3339 | M61: 13492.3339 | N61: 13492.3339 | O61: 13492.3339 | P61: 13492.3339 | Q61: 13492.3339 | R61: 13492.3339 | S61: 13492.3339 | T61: 13492.3339 | U61: 13492.3339 | V61: 13492.3339
B62: Vice head | D62: 0 | E62: E3 | F62: =INDEX('0.3 HR compensation'!$K$13:$K$61,MATCH('2.1 Org_Structure'!E62,'0.3 HR compensation'!$L$13:$L$61,0)) -> 11243.61158 | G62: 0 | H62: 0 | I62: 0 | J62: 0 | K62: 0 | L62: 0 | M62: 0 | N62: 0 | O62: 0 | P62: 0 | Q62: 0 | R62: 0 | S62: 0 | T62: 0 | U62: 0 | V62: 0
B63: Other member | D63: 0 | E63: E3 | F63: =INDEX('0.3 HR compensation'!$K$13:$K$61,MATCH('2.1 Org_Structure'!E63,'0.3 HR compensation'!$L$13:$L$61,0)) -> 11243.61158 | G63: 0 | H63: 0 | I63: 0 | J63: 0 | K63: 0 | L63: 0 | M63: 0 | N63: 0 | O63: 0 | P63: 0 | Q63: 0 | R63: 0 | S63: 0 | T63: 0 | U63: 0 | V63: 0
A64: Tech support and procurement | B64: manager | D64: 0 | E64: I2 | F64: =INDEX('0.3 HR compensation'!$K$13:$K$61,MATCH('2.1 Org_Structure'!E64,'0.3 HR compensation'!$L$13:$L$61,0)) -> 11243.61158 | G64: 0 | H64: 0 | I64: 0 | J64: 0 | K64: 0 | L64: 0 | M64: 0 | N64: 0 | O64: 0 | P64: 0 | Q64: 0 | R64: 0 | S64: 0 | T64: 0 | U64: 0 | V64: 0
B65: senior staff | D65: 1 | E65: I3 | F65: =INDEX('0.3 HR compensation'!$K$13:$K$61,MATCH('2.1 Org_Structure'!E65,'0.3 HR compensation'!$L$13:$L$61,0)) -> 8245.315162 | G65: 8245.315162 | H65: 8245.315162 | I65: 8245.315162 | J65: 8245.315162 | K65: 8245.315162 | L65: 8245.315162 | M65: 8245.315162 | N65: 8245.315162 | O65: 8245.315162 | P65: 8245.315162 | Q65: 8245.315162 | R65: 8245.315162 | S65: 8245.315162 | T65: 8245.315162 | U65: 8245.315162 | V65: 8245.315162
B66: Junior staff | D66: 0 | E66: I4 | F66: =INDEX('0.3 HR compensation'!$K$13:$K$61,MATCH('2.1 Org_Structure'!E66,'0.3 HR compensation'!$L$13:$L$61,0)) -> 5996.592845 | G66: 0 | H66: 0 | I66: 0 | J66: 0 | K66: 0 | L66: 0 | M66: 0 | N66: 0 | O66: 0 | P66: 0 | Q66: 0 | R66: 0 | S66: 0 | T66: 0 | U66: 0 | V66: 0
A67: Finance and accounting | B67: Senior staff | D67: 1 | E67: F2 | F67: =INDEX('0.3 HR compensation'!$K$13:$K$61,MATCH('2.1 Org_Structure'!E67,'0.3 HR compensation'!$L$13:$L$61,0)) -> 9744.463373 | G67: 9744.463373 | H67: 9744.463373 | I67: 9744.463373 | J67: 9744.463373 | K67: 9744.463373 | L67: 9744.463373 | M67: 9744.463373 | N67: 9744.463373 | O67: 9744.463373 | P67: 9744.463373 | Q67: 9744.463373 | R67: 9744.463373 | S67: 9744.463373 | T67: 9744.463373 | U67: 9744.463373 | V67: 9744.463373
B68: Junior staff | D68: 0 | E68: F3 | F68: =INDEX('0.3 HR compensation'!$K$13:$K$61,MATCH('2.1 Org_Structure'!E68,'0.3 HR compensation'!$L$13:$L$61,0)) -> 7495.741056 | G68: 0 | H68: 0 | I68: 0 | J68: 0 | K68: 0 | L68: 0 | M68: 0 | N68: 0 | O68: 0 | P68: 0 | Q68: 0 | R68: 0 | S68: 0 | T68: 0 | U68: 0 | V68: 0
A69: IEC, GR and Marketing division | B69: Manager | D69: 0 | E69: M2 | F69: =INDEX('0.3 HR compensation'!$K$13:$K$61,MATCH('2.1 Org_Structure'!E69,'0.3 HR compensation'!$L$13:$L$61,0)) -> 8245.315162 | G69: 0 | H69: 0 | I69: 0 | J69: 0 | K69: 0 | L69: 0 | M69: 0 | N69: 0 | O69: 0 | P69: 0 | Q69: 0 | R69: 0 | S69: 0 | T69: 0 | U69: 0 | V69: 0
B70: senior staff | D70: 1 | E70: M3 | F70: =INDEX('0.3 HR compensation'!$K$13:$K$61,MATCH('2.1 Org_Structure'!E70,'0.3 HR compensation'!$L$13:$L$61,0)) -> 6371.379898 | G70: 6371.379898 | H70: 6371.379898 | I70: 6371.379898 | J70: 6371.379898 | K70: 6371.379898 | L70: 6371.379898 | M70: 6371.379898 | N70: 6371.379898 | O70: 6371.379898 | P70: 6371.379898 | Q70: 6371.379898 | R70: 6371.379898 | S70: 6371.379898 | T70: 6371.379898 | U70: 6371.379898 | V70: 6371.379898
B71: Junior staff | D71: 0 | E71: M4 | F71: =INDEX('0.3 HR compensation'!$K$13:$K$61,MATCH('2.1 Org_Structure'!E71,'0.3 HR compensation'!$L$13:$L$61,0)) -> 4497.444634 | G71: 0 | H71: 0 | I71: 0 | J71: 0 | K71: 0 | L71: 0 | M71: 0 | N71: 0 | O71: 0 | P71: 0 | Q71: 0 | R71: 0 | S71: 0 | T71: 0 | U71: 0 | V71: 0
A72: Enrolment, updation and operation | B72: Manager | D72: 0 | E72: O2 | F72: =INDEX('0.3 HR compensation'!$K$13:$K$61,MATCH('2.1 Org_Structure'!E72,'0.3 HR compensation'!$L$13:$L$61,0)) -> 9744.463373 | G72: 0 | H72: 0 | I72: 0 | J72: 0 | K72: 0 | L72: 0 | M72: 0 | N72: 0 | O72: 0 | P72: 0 | Q72: 0 | R72: 0 | S72: 0 | T72: 0 | U72: 0 | V72: 0
B73: senior staff | D73: 1 | E73: O3 | F73: =INDEX('0.3 HR compensation'!$K$13:$K$61,MATCH('2.1 Org_Structure'!E73,'0.3 HR compensation'!$L$13:$L$61,0)) -> 7495.741056 | G73: 7495.741056 | H73: 7495.741056 | I73: 7495.741056 | J73: 7495.741056 | K73: 7495.741056 | L73: 7495.741056 | M73: 7495.741056 | N73: 7495.741056 | O73: 7495.741056 | P73: 7495.741056 | Q73: 7495.741056 | R73: 7495.741056 | S73: 7495.741056 | T73: 7495.741056 | U73: 7495.741056 | V73: 7495.741056
B74: Junior staff | D74: 0 | E74: O4 | F74: =INDEX('0.3 HR compensation'!$K$13:$K$61,MATCH('2.1 Org_Structure'!E74,'0.3 HR compensation'!$L$13:$L$61,0)) -> 5247.018739 | G74: 0 | H74: 0 | I74: 0 | J74: 0 | K74: 0 | L74: 0 | M74: 0 | N74: 0 | O74: 0 | P74: 0 | Q74: 0 | R74: 0 | S74: 0 | T74: 0 | U74: 0 | V74: 0
A75: Office Support staff | D75: 1 | E75: S3 | F75: =INDEX('0.3 HR compensation'!$K$13:$K$61,MATCH('2.1 Org_Structure'!E75,'0.3 HR compensation'!$L$13:$L$61,0)) -> 2248.722317 | G75: 2248.722317 | H75: 2248.722317 | I75: 2248.722317 | J75: 2248.722317 | K75: 2248.722317 | L75: 2248.722317 | M75: 2248.722317 | N75: 2248.722317 | O75: 2248.722317 | P75: 2248.722317 | Q75: 2248.722317 | R75: 2248.722317 | S75: 2248.722317 | T75: 2248.722317 | U75: 2248.722317 | V75: 2248.722317
B76: Total | D76: =SUM(D61:D75) -> 6 | G76: =SUM(G61:G75) -> 47597.95571 | H76: =SUM(H61:H75) -> 47597.95571 | I76: 47597.95571 | J76: 47597.95571 | K76: 47597.95571 | L76: 47597.95571 | M76: 47597.95571 | N76: 47597.95571 | O76: 47597.95571 | P76: 47597.95571 | Q76: 47597.95571 | R76: 47597.95571 | S76: 47597.95571 | T76: 47597.95571 | U76: 47597.95571 | V76: 47597.95571
B77: Total in all RO | D77: =D76*'2. human resource'!$C$4 -> 120 | G77: =G76*'2. human resource'!$C$4 -> 951959.1141 | H77: =H76*'2. human resource'!$C$4 -> 951959.1141 | I77: =I76*'2. human resource'!$C$4 -> 951959.1141 | J77: =J76*'2. human resource'!$C$4 -> 951959.1141 | K77: =K76*'2. human resource'!$C$4 -> 951959.1141 | L77: =L76*'2. human resource'!$C$4 -> 951959.1141 | M77: =M76*'2. human resource'!$C$4 -> 951959.1141 | N77: =N76*'2. human resource'!$C$4 -> 951959.1141 | O77: =O76*'2. human resource'!$C$4 -> 951959.1141 | P77: =P76*'2. human resource'!$C$4 -> 951959.1141 | Q77: =Q76*'2. human resource'!$C$4 -> 951959.1141 | R77: =R76*'2. human resource'!$C$4 -> 951959.1141 | S77: =S76*'2. human resource'!$C$4 -> 951959.1141 | T77: =T76*'2. human resource'!$C$4 -> 951959.1141 | U77: =U76*'2. human resource'!$C$4 -> 951959.1141 | V77: =V76*'2. human resource'!$C$4 -> 951959.1141
A79: District / municipal office
B80: Operations | D80: 1 | E80: O3 | F80: =INDEX('0.3 HR compensation'!$K$13:$K$61,MATCH('2.1 Org_Structure'!E80,'0.3 HR compensation'!$L$13:$L$61,0)) -> 7495.741056 | G80: =$F80*$D80 -> 7495.741056 | H80: 7495.741056 | I80: 7495.741056 | J80: 7495.741056 | K80: 7495.741056 | L80: 7495.741056 | M80: 7495.741056 | N80: 7495.741056 | O80: 7495.741056 | P80: 7495.741056 | Q80: 7495.741056 | R80: 7495.741056 | S80: 7495.741056 | T80: 7495.741056 | U80: 7495.741056 | V80: 7495.741056
B81: GR/ IEC / technical support etc. | D81: 1 | E81: I4 | F81: =INDEX('0.3 HR compensation'!$K$13:$K$61,MATCH('2.1 Org_Structure'!E81,'0.3 HR compensation'!$L$13:$L$61,0)) -> 5996.592845 | G81: 5996.592845 | H81: 5996.592845 | I81: 5996.592845 | J81: 5996.592845 | K81: 5996.592845 | L81: 5996.592845 | M81: 5996.592845 | N81: 5996.592845 | O81: 5996.592845 | P81: 5996.592845 | Q81: 5996.592845 | R81: 5996.592845 | S81: 5996.592845 | T81: 5996.592845 | U81: 5996.592845 | V81: 5996.592845
B82: Support staff | D82: 1 | E82: S3 | F82: =INDEX('0.3 HR compensation'!$K$13:$K$61,MATCH('2.1 Org_Structure'!E82,'0.3 HR compensation'!$L$13:$L$61,0)) -> 2248.722317 | G82: 2248.722317 | H82: 2248.722317 | I82: 2248.722317 | J82: 2248.722317 | K82: 2248.722317 | L82: 2248.722317 | M82: 2248.722317 | N82: 2248.722317 | O82: 2248.722317 | P82: 2248.722317 | Q82: 2248.722317 | R82: 2248.722317 | S82: 2248.722317 | T82: 2248.722317 | U82: 2248.722317 | V82: 2248.722317
B83: Total | D83: =SUM(D80:D82) -> 3 | G83: =SUM(G80:G82) -> 15741.05622 | H83: =SUM(H80:H82) -> 15741.05622 | I83: 15741.05622 | J83: 15741.05622 | K83: 15741.05622 | L83: 15741.05622 | M83: 15741.05622 | N83: 15741.05622 | O83: 15741.05622 | P83: 15741.05622 | Q83: 15741.05622 | R83: 15741.05622 | S83: 15741.05622 | T83: 15741.05622 | U83: 15741.05622 | V83: 15741.05622
B84: Total in all DO | D84: =D83*'2. human resource'!$D$4 -> 2295 | G84: =G83*'2. human resource'!$D$4 -> 12041908.01 | H84: =H83*'2. human resource'!$D$4 -> 12041908.01 | I84: =I83*'2. human resource'!$D$4 -> 12041908.01 | J84: =J83*'2. human resource'!$D$4 -> 12041908.01 | K84: =K83*'2. human resource'!$D$4 -> 12041908.01 | L84: =L83*'2. human resource'!$D$4 -> 12041908.01 | M84: =M83*'2. human resource'!$D$4 -> 12041908.01 | N84: =N83*'2. human resource'!$D$4 -> 12041908.01 | O84: =O83*'2. human resource'!$D$4 -> 12041908.01 | P84: =P83*'2. human resource'!$D$4 -> 12041908.01 | Q84: =Q83*'2. human resource'!$D$4 -> 12041908.01 | R84: =R83*'2. human resource'!$D$4 -> 12041908.01 | S84: =S83*'2. human resource'!$D$4 -> 12041908.01 | T84: =T83*'2. human resource'!$D$4 -> 12041908.01 | U84: =U83*'2. human resource'!$D$4 -> 12041908.01 | V84: =V83*'2. human resource'!$D$4 -> 12041908.01
B86: Enrolment operators | E86: S3 | F86: =INDEX('0.3 HR compensation'!$K$13:$K$61,MATCH('2.1 Org_Structure'!E86,'0.3 HR compensation'!$L$13:$L$61,0)) -> 2248.722317 | G86: =$F$86*'2. human resource'!$B$4*'2.1 Org_Structure'!G12 -> 0 | H86: =$F$86*'2. human resource'!$B$4*'2.1 Org_Structure'!H12 -> 3647427.598 | I86: =$F$86*'2. human resource'!$B$4*'2.1 Org_Structure'!I12 -> 3840817.717 | J86: =$F$86*'2. human resource'!$B$4*'2.1 Org_Structure'!J12 -> 3714889.267 | K86: =$F$86*'2. human resource'!$B$4*'2.1 Org_Structure'!K12 -> 3552981.261 | L86: =$F$86*'2. human resource'!$B$4*'2.1 Org_Structure'!L12 -> 3557478.705 | M86: =$F$86*'2. human resource'!$B$4*'2.1 Org_Structure'!M12 -> 3557478.705 | N86: =$F$86*'2. human resource'!$B$4*'2.1 Org_Structure'!N12 -> 3561976.15 | O86: =$F$86*'2. human resource'!$B$4*'2.1 Org_Structure'!O12 -> 3566473.595 | P86: =$F$86*'2. human resource'!$B$4*'2.1 Org_Structure'!P12 -> 3570971.039 | Q86: =$F$86*'2. human resource'!$B$4*'2.1 Org_Structure'!Q12 -> 3575468.484 | R86: =$F$86*'2. human resource'!$B$4*'2.1 Org_Structure'!R12 -> 3579965.928 | S86: =$F$86*'2. human resource'!$B$4*'2.1 Org_Structure'!S12 -> 3584463.373 | T86: =$F$86*'2. human resource'!$B$4*'2.1 Org_Structure'!T12 -> 3588960.818 | U86: =$F$86*'2. human resource'!$B$4*'2.1 Org_Structure'!U12 -> 3593458.262 | V86: =$F$86*'2. human resource'!$B$4*'2.1 Org_Structure'!V12 -> 3597955.707
G88: =(G86+G84+G77+G58)/($D$58+$D$77+$D$84+2*G$12) -> 5474.538293 | H88: 4196.191478 | I88: 4156.114343 | J88: 4182.021196 | K88: =(K86+K84+K77+K58)/($D$58+$D$77+$D$84+2*K$12) -> 4216.382469 | L88: =(L86+L84+L77+L58)/($D$58+$D$77+$D$84+2*L$12) -> 4215.411505 | M88: 4215.411505 | N88: 4214.441498 | O88: 4213.472447 | P88: 4212.504351

Sheet 3. Helpdesk,IEC and T&CB (hidden)
A1: Helpdesk, IEC, Training and capacity building cost estimation
A3: Component | B3: % people with grievances | C3: helpdesk through call center | D3: helpdesk through enrolment stations | E3: helpdesk through online | F3: Per hour cost for call center and online portal | G3: Call center fixed cost | H3: Per person IEC cost per year | I3: Cost of training material | J3: no. of operators that will be trained | K3: Total no. of service provider agencies | L3: Per agency no. of operators who require training | M3: Per training cost
A4: Value | B4: 0.02 | C4: ='0.4 All inputs'!B25 -> 0.3 | D4: ='0.4 All inputs'!C25 -> 0.5 | E4: =1-D4-C4 -> 0.2 | F4: ='0.2 Unit cost assumptions'!F23 -> 14 | G4: ='0.2 Unit cost assumptions'!F24 -> 50000 | H4: ='0.4 All inputs'!G25/(completion_year-start_year+1) -> 0.1666666667 | I4: ='0.2 Unit cost assumptions'!F25 -> 500000 | J4: ='0.4 All inputs'!D25 -> 1.25 | K4: ='0.4 All inputs'!E25 -> 100 | L4: ='0.4 All inputs'!F25 -> 5 | M4: ='0.2 Unit cost assumptions'!F26 -> 2000
A5: Description | G5: for toll free no. | H5: IEC outsourcing cost, includes print, social, tv, radio mediums | I5: Video module, lecture module, assessment module, information booklet | J5: % of actual required staff | M5: Cost of stationary item, cost of tutor, certification and facility cost
B12: S.n | D12: ='1. Enrolment'!D13 -> 0 | E12: ='1. Enrolment'!E13 -> 1 | F12: ='1. Enrolment'!F13 -> 2 | G12: ='1. Enrolment'!G13 -> 3 | H12: ='1. Enrolment'!H13 -> 4 | I12: ='1. Enrolment'!I13 -> 5 | J12: ='1. Enrolment'!J13 -> 6 | K12: ='1. Enrolment'!K13 -> 7 | L12: ='1. Enrolment'!L13 -> 8 | M12: ='1. Enrolment'!M13 -> 9 | N12: ='1. Enrolment'!N13 -> 10 | O12: ='1. Enrolment'!O13 -> 11 | P12: ='1. Enrolment'!P13 -> 12 | Q12: ='1. Enrolment'!Q13 -> 13 | R12: ='1. Enrolment'!R13 -> 14 | S12: ='1. Enrolment'!S13 -> 15
B13: Year | D13: ='1. Enrolment'!D14 -> 2018 | E13: ='1. Enrolment'!E14 -> 2019 | F13: ='1. Enrolment'!F14 -> 2020 | G13: ='1. Enrolment'!G14 -> 2021 | H13: ='1. Enrolment'!H14 -> 2022 | I13: ='1. Enrolment'!I14 -> 2023 | J13: ='1. Enrolment'!J14 -> 2024 | K13: ='1. Enrolment'!K14 -> 2025 | L13: ='1. Enrolment'!L14 -> 2026 | M13: ='1. Enrolment'!M14 -> 2027 | N13: ='1. Enrolment'!N14 -> 2028 | O13: ='1. Enrolment'!O14 -> 2029 | P13: ='1. Enrolment'!P14 -> 2030 | Q13: ='1. Enrolment'!Q14 -> 2031 | R13: ='1. Enrolment'!R14 -> 2032 | S13: ='1. Enrolment'!S14 -> 2033
B14: population with ID | D14: ='1. Enrolment'!D26 -> 0 | E14: ='1. Enrolment'!E26 -> 3038007.462 | F14: ='1. Enrolment'!F26 -> 8193593.63 | G14: ='1. Enrolment'!G26 -> 11412236.43 | H14: ='1. Enrolment'!H26 -> 12128883.78 | I14: ='1. Enrolment'!I26 -> 12866528.9 | J14: ='1. Enrolment'!J26 -> 13625787.02 | K14: ='1. Enrolment'!K26 -> 14407291.4 | L14: ='1. Enrolment'!L26 -> 15211693.86 | M14: ='1. Enrolment'!M26 -> 16039665.31 | N14: ='1. Enrolment'!N26 -> 16891896.33 | O14: ='1. Enrolment'!O26 -> 17769097.72 | P14: ='1. Enrolment'!P26 -> 18672001.1 | Q14: ='1. Enrolment'!Q26 -> 19601359.56 | R14: ='1. Enrolment'!R26 -> 20557948.22 | S14: ='1. Enrolment'!S26 -> 21542564.92
A15: Helpdesk | B15: population require helpdesk assistance | D15: =D14*$B$4 -> 0 | E15: =E14*$B$4 -> 60760.14923 | F15: 163871.8726 | G15: 228244.7286 | H15: 242577.6756 | I15: 257330.5779 | J15: 272515.7403 | K15: 288145.828 | L15: 304233.8772 | M15: 320793.3063 | N15: 337837.9266 | O15: 355381.9543 | P15: 373440.0221 | Q15: 392027.1912 | R15: 411158.9644 | S15: 430851.2985
B16: Call center requests | D16: =D15*$C$4 -> 0 | E16: =E15*$C$4 -> 18228.04477 | F16: 49161.56178 | G16: 68473.41857 | H16: 72773.30267 | I16: 77199.17338 | J16: 81754.7221 | K16: 86443.7484 | L16: 91270.16317 | M16: 96237.99189 | N16: 101351.378 | O16: 106614.5863 | P16: 112032.0066 | Q16: 117608.1574 | R16: 123347.6893 | S16: 129255.3895
B17: Enrolment stations requests | C17: to enrolment sheet | D17: =D15*$D$4 -> 0 | E17: =E15*$D$4 -> 30380.07462 | F17: 81935.9363 | G17: 114122.3643 | H17: 121288.8378 | I17: 128665.289 | J17: 136257.8702 | K17: 144072.914 | L17: 152116.9386 | M17: 160396.6531 | N17: 168918.9633 | O17: 177690.9772 | P17: 186720.011 | Q17: 196013.5956 | R17: 205579.4822 | S17: 215425.6492
B18: Online requests | D18: =D15*$E$4 -> 0 | E18: =E15*$E$4 -> 12152.02985 | F18: 32774.37452 | G18: 45648.94571 | H18: 48515.53512 | I18: 51466.11559 | J18: 54503.14807 | K18: 57629.1656 | L18: 60846.77544 | M18: 64158.66126 | N18: 67567.58533 | O18: 71076.39087 | P18: 74688.00442 | Q18: 78405.43824 | R18: 82231.79287 | S18: 86170.2597
B19: Call center hour requirement | C19: time per request is equal to enrolment time | D19: =D16*enrol_time/60 -> 0 | E19: =E16*enrol_time/60 -> 2308.885671 | F19: =F16*enrol_time/60 -> 6227.131159 | G19: =G16*enrol_time/60 -> 8673.299686 | H19: =H16*enrol_time/60 -> 9217.951672 | I19: =I16*enrol_time/60 -> 9778.561962 | J19: =J16*enrol_time/60 -> 10355.59813 | K19: =K16*enrol_time/60 -> 10949.54146 | L19: =L16*enrol_time/60 -> 11560.88733 | M19: =M16*enrol_time/60 -> 12190.14564 | N19: =N16*enrol_time/60 -> 12837.84121 | O19: =O16*enrol_time/60 -> 13504.51427 | P19: =P16*enrol_time/60 -> 14190.72084 | Q19: =Q16*enrol_time/60 -> 14897.03327 | R19: =R16*enrol_time/60 -> 15624.04065 | S19: =S16*enrol_time/60 -> 16372.34934
B20: Online portal support hour | C20: time per request is equal to enrolment time | D20: =D18*enrol_time/60 -> 0 | E20: =E18*enrol_time/60 -> 1539.257114 | F20: =F18*enrol_time/60 -> 4151.420773 | G20: =G18*enrol_time/60 -> 5782.19979 | H20: =H18*enrol_time/60 -> 6145.301115 | I20: =I18*enrol_time/60 -> 6519.041308 | J20: =J18*enrol_time/60 -> 6903.732089 | K20: =K18*enrol_time/60 -> 7299.694309 | L20: =L18*enrol_time/60 -> 7707.258223 | M20: =M18*enrol_time/60 -> 8126.763759 | N20: =N18*enrol_time/60 -> 8558.560808 | O20: =O18*enrol_time/60 -> 9003.00951 | P20: =P18*enrol_time/60 -> 9460.480559 | Q20: =Q18*enrol_time/60 -> 9931.35551 | R20: =R18*enrol_time/60 -> 10416.0271 | S20: =S18*enrol_time/60 -> 10914.89956
B21: cost for call center and online portal | C21: opex | D21: =SUM(D20+D19)*$F$4+$G$4 -> 50000 | E21: =SUM(E20+E19)*$F$4+$G$4 -> 103873.999 | F21: 195299.727 | G21: 252376.9927 | H21: 265085.539 | I21: 278166.4458 | J21: 291630.6231 | K21: 305489.3008 | L21: 319754.0378 | M21: 334436.7316 | N21: 349549.6283 | O21: 365105.3329 | P21: 381116.8196 | Q21: 397597.4429 | R21: 414560.9484 | S21: 432021.4847
A23: IEC | B23: Eligible population for ID | D23: ='1. Enrolment'!D25 -> 0 | E23: ='1. Enrolment'!E25 -> 3038007.462 | F23: ='1. Enrolment'!F25 -> 5155586.169 | G23: ='1. Enrolment'!G25 -> 3218642.798 | H23: ='1. Enrolment'!H25 -> 716647.3506 | I23: ='1. Enrolment'!I25 -> 737645.118 | J23: ='1. Enrolment'!J25 -> 759258.12 | K23: ='1. Enrolment'!K25 -> 781504.3829 | L23: ='1. Enrolment'!L25 -> 804402.4613 | M23: ='1. Enrolment'!M25 -> 827971.4534 | N23: ='1. Enrolment'!N25 -> 852231.017 | O23: ='1. Enrolment'!O25 -> 877201.3858 | P23: ='1. Enrolment'!P25 -> 902903.3864 | Q23: ='1. Enrolment'!Q25 -> 929358.4556 | R23: ='1. Enrolment'!R25 -> 956588.6584 | S23: ='1. Enrolment'!S25 -> 984616.7061
B24: Total IEC expenditure | C24: opex, expenditure will reduce in steady state | D24: =IF(OR('1. Enrolment'!D17=0,'1. Enrolment'!D17=1),D23*$H$4,D23*$H$4*0.25) -> 0 | E24: =IF(OR('1. Enrolment'!E17=0,'1. Enrolment'!E17=1),E23*$H$4,E23*$H$4*0.25) -> 506334.5769 | F24: =IF(OR('1. Enrolment'!F17=0,'1. Enrolment'!F17=1),F23*$H$4,F23*$H$4*0.25) -> 859264.3615 | G24: =IF(OR('1. Enrolment'!G17=0,'1. Enrolment'!G17=1),G23*$H$4,G23*$H$4*0.25) -> 536440.4663 | H24: =IF(OR('1. Enrolment'!H17=0,'1. Enrolment'!H17=1),H23*$H$4,H23*$H$4*0.25) -> 29860.30628 | I24: =IF(OR('1. Enrolment'!I17=0,'1. Enrolment'!I17=1),I23*$H$4,I23*$H$4*0.25) -> 30735.21325 | J24: =IF(OR('1. Enrolment'!J17=0,'1. Enrolment'!J17=1),J23*$H$4,J23*$H$4*0.25) -> 31635.755 | K24: =IF(OR('1. Enrolment'!K17=0,'1. Enrolment'!K17=1),K23*$H$4,K23*$H$4*0.25) -> 32562.68262 | L24: =IF(OR('1. Enrolment'!L17=0,'1. Enrolment'!L17=1),L23*$H$4,L23*$H$4*0.25) -> 33516.76922 | M24: =IF(OR('1. Enrolment'!M17=0,'1. Enrolment'!M17=1),M23*$H$4,M23*$H$4*0.25) -> 34498.81056 | N24: =IF(OR('1. Enrolment'!N17=0,'1. Enrolment'!N17=1),N23*$H$4,N23*$H$4*0.25) -> 35509.62571 | O24: =IF(OR('1. Enrolment'!O17=0,'1. Enrolment'!O17=1),O23*$H$4,O23*$H$4*0.25) -> 36550.05774 | P24: =IF(OR('1. Enrolment'!P17=0,'1. Enrolment'!P17=1),P23*$H$4,P23*$H$4*0.25) -> 37620.97443 | Q24: =IF(OR('1. Enrolment'!Q17=0,'1. Enrolment'!Q17=1),Q23*$H$4,Q23*$H$4*0.25) -> 38723.26898 | R24: =IF(OR('1. Enrolment'!R17=0,'1. Enrolment'!R17=1),R23*$H$4,R23*$H$4*0.25) -> 39857.86077 | S24: =IF(OR('1. Enrolment'!S17=0,'1. Enrolment'!S17=1),S23*$H$4,S23*$H$4*0.25) -> 41025.69609
A26: Training and capacity building | B26: Training material development cost | D26: =I4 -> 500000
B27: no. of operators require training | D27: ='2.1 Org_Structure'!G12*'2. human resource'!$B$4 -> 0 | E27: ='2.1 Org_Structure'!H12*'2. human resource'!$B$4 -> 1622 | F27: ='2.1 Org_Structure'!I12*'2. human resource'!$B$4 -> 1708 | G27: ='2.1 Org_Structure'!J12*'2. human resource'!$B$4 -> 1652 | H27: ='2.1 Org_Structure'!K12*'2. human resource'!$B$4 -> 1580 | I27: ='2.1 Org_Structure'!L12*'2. human resource'!$B$4 -> 1582 | J27: ='2.1 Org_Structure'!M12*'2. human resource'!$B$4 -> 1582 | K27: ='2.1 Org_Structure'!N12*'2. human resource'!$B$4 -> 1584 | L27: ='2.1 Org_Structure'!O12*'2. human resource'!$B$4 -> 1586 | M27: ='2.1 Org_Structure'!P12*'2. human resource'!$B$4 -> 1588 | N27: ='2.1 Org_Structure'!Q12*'2. human resource'!$B$4 -> 1590 | O27: ='2.1 Org_Structure'!R12*'2. human resource'!$B$4 -> 1592 | P27: ='2.1 Org_Structure'!S12*'2. human resource'!$B$4 -> 1594 | Q27: ='2.1 Org_Structure'!T12*'2. human resource'!$B$4 -> 1596 | R27: ='2.1 Org_Structure'!U12*'2. human resource'!$B$4 -> 1598 | S27: ='2.1 Org_Structure'!V12*'2. human resource'!$B$4 -> 1600
B28: No. of staff members | D28: ='2.1 Org_Structure'!$D$58+'2.1 Org_Structure'!$D$77+'2.1 Org_Structure'!$D$84 -> 2471 | E28: ='2.1 Org_Structure'!$D$58+'2.1 Org_Structure'!$D$77+'2.1 Org_Structure'!$D$84 -> 2471 | F28: ='2.1 Org_Structure'!$D$58+'2.1 Org_Structure'!$D$77+'2.1 Org_Structure'!$D$84 -> 2471 | G28: ='2.1 Org_Structure'!$D$58+'2.1 Org_Structure'!$D$77+'2.1 Org_Structure'!$D$84 -> 2471 | H28: ='2.1 Org_Structure'!$D$58+'2.1 Org_Structure'!$D$77+'2.1 Org_Structure'!$D$84 -> 2471 | I28: ='2.1 Org_Structure'!$D$58+'2.1 Org_Structure'!$D$77+'2.1 Org_Structure'!$D$84 -> 2471 | J28: ='2.1 Org_Structure'!$D$58+'2.1 Org_Structure'!$D$77+'2.1 Org_Structure'!$D$84 -> 2471 | K28: ='2.1 Org_Structure'!$D$58+'2.1 Org_Structure'!$D$77+'2.1 Org_Structure'!$D$84 -> 2471 | L28: ='2.1 Org_Structure'!$D$58+'2.1 Org_Structure'!$D$77+'2.1 Org_Structure'!$D$84 -> 2471 | M28: ='2.1 Org_Structure'!$D$58+'2.1 Org_Structure'!$D$77+'2.1 Org_Structure'!$D$84 -> 2471 | N28: ='2.1 Org_Structure'!$D$58+'2.1 Org_Structure'!$D$77+'2.1 Org_Structure'!$D$84 -> 2471 | O28: ='2.1 Org_Structure'!$D$58+'2.1 Org_Structure'!$D$77+'2.1 Org_Structure'!$D$84 -> 2471 | P28: ='2.1 Org_Structure'!$D$58+'2.1 Org_Structure'!$D$77+'2.1 Org_Structure'!$D$84 -> 2471 | Q28: ='2.1 Org_Structure'!$D$58+'2.1 Org_Structure'!$D$77+'2.1 Org_Structure'!$D$84 -> 2471 | R28: ='2.1 Org_Structure'!$D$58+'2.1 Org_Structure'!$D$77+'2.1 Org_Structure'!$D$84 -> 2471 | S28: ='2.1 Org_Structure'!$D$58+'2.1 Org_Structure'!$D$77+'2.1 Org_Structure'!$D$84 -> 2471
B29: Service agency operator required training | E29: =$K$4*$L$4 -> 500
B30: People require training | C30: Training and capacity building | D30: =MAX($D$27:$S$27)*$J$4+D28+D29 -> 4606 | E30: =D30*0.25+E29 -> 1651.5 | F30: =(F28+F27)*0.25 -> 1044.75 | G30: =(G28+G27)*0.25 -> 1030.75 | H30: 1012.75 | I30: 1013.25 | J30: 1013.25 | K30: 1013.75 | L30: 1014.25 | M30: 1014.75 | N30: 1015.25 | O30: 1015.75 | P30: 1016.25 | Q30: 1016.75 | R30: 1017.25 | S30: 1017.75
B31: Training per batch | D31: =ROUND(D30/15,0) -> 307 | E31: =ROUND(E30/15,0) -> 110 | F31: 70 | G31: 69 | H31: 68 | I31: 68 | J31: 68 | K31: 68 | L31: 68 | M31: 68 | N31: 68 | O31: 68 | P31: 68 | Q31: 68 | R31: 68 | S31: 68
B32: Training per batch | C32: opex | D32: =D31*$M$4 -> 614000 | E32: =E31*$M$4 -> 220000 | F32: 140000 | G32: 138000 | H32: 136000 | I32: 136000 | J32: 136000 | K32: 136000 | L32: 136000 | M32: 136000 | N32: 136000 | O32: 136000 | P32: 136000 | Q32: 136000 | R32: 136000 | S32: 136000
A34: Overall | B34: Capital expenditure | D34: =D26 -> 500000
B35: Operational expenditure | D35: =D32+D24+D21 -> 664000 | E35: =E32+E24+E21 -> 830208.5759 | F35: 1194564.089 | G35: 926817.459 | H35: 430945.8453 | I35: 444901.659 | J35: 459266.3781 | K35: 474051.9834 | L35: 489270.807 | M35: 504935.5421 | N35: 521059.254 | O35: 537655.3906 | P35: 554737.794 | Q35: 572320.7118 | R35: 590418.8092 | S35: 609047.1807

Sheet 4. Software (hidden)
A1: Software development cost estimation
A3: Component | B3: Deduplication cost for one biometric | C3: Software AMC cost | D3: Request require manual deduplication | E3: Per manual dedup time (in minutes) | F3: Manual dedup personnel cost per year | G3: No. of biometric captured | H3: Add on cost for additional biometric | I3: Per dedup cost | J3: Per manual quality check time (in minutes)
A4: Value | B4: ='0.2 Unit cost assumptions'!F37 -> 0.25 | C4: ='0.4 All inputs'!A30 -> 0.25 | D4: =IF(G4=0,0,'0.4 All inputs'!B30) -> 0.05 | E4: ='0.4 All inputs'!C30 -> 10 | F4: ='0.3 HR compensation'!K59 -> 2623.50937 | G4: ='0.4 All inputs'!B11+'0.4 All inputs'!D11+'0.4 All inputs'!G11 -> 2 | H4: ='0.2 Unit cost assumptions'!F38 -> 0.1 | I4: =IF(G4=0, 0,IF(G4=1,0.25,B4+H4)) -> 0.35 | J4: 1.728
A5: Description | C5: as percentage of cost of software development | G5: Facial image not included, cost of deduplication is estimated based on the no. of biometric captured.
B12: S.n | D12: ='3. Helpdesk,IEC and T&CB'!D12 -> 0 | E12: ='3. Helpdesk,IEC and T&CB'!E12 -> 1 | F12: ='3. Helpdesk,IEC and T&CB'!F12 -> 2 | G12: ='3. Helpdesk,IEC and T&CB'!G12 -> 3 | H12: ='3. Helpdesk,IEC and T&CB'!H12 -> 4 | I12: ='3. Helpdesk,IEC and T&CB'!I12 -> 5 | J12: ='3. Helpdesk,IEC and T&CB'!J12 -> 6 | K12: ='3. Helpdesk,IEC and T&CB'!K12 -> 7 | L12: ='3. Helpdesk,IEC and T&CB'!L12 -> 8 | M12: ='3. Helpdesk,IEC and T&CB'!M12 -> 9 | N12: ='3. Helpdesk,IEC and T&CB'!N12 -> 10 | O12: ='3. Helpdesk,IEC and T&CB'!O12 -> 11 | P12: ='3. Helpdesk,IEC and T&CB'!P12 -> 12 | Q12: ='3. Helpdesk,IEC and T&CB'!Q12 -> 13 | R12: ='3. Helpdesk,IEC and T&CB'!R12 -> 14 | S12: ='3. Helpdesk,IEC and T&CB'!S12 -> 15
B13: Year | D13: ='3. Helpdesk,IEC and T&CB'!D13 -> 2018 | E13: ='3. Helpdesk,IEC and T&CB'!E13 -> 2019 | F13: ='3. Helpdesk,IEC and T&CB'!F13 -> 2020 | G13: ='3. Helpdesk,IEC and T&CB'!G13 -> 2021 | H13: ='3. Helpdesk,IEC and T&CB'!H13 -> 2022 | I13: ='3. Helpdesk,IEC and T&CB'!I13 -> 2023 | J13: ='3. Helpdesk,IEC and T&CB'!J13 -> 2024 | K13: ='3. Helpdesk,IEC and T&CB'!K13 -> 2025 | L13: ='3. Helpdesk,IEC and T&CB'!L13 -> 2026 | M13: ='3. Helpdesk,IEC and T&CB'!M13 -> 2027 | N13: ='3. Helpdesk,IEC and T&CB'!N13 -> 2028 | O13: ='3. Helpdesk,IEC and T&CB'!O13 -> 2029 | P13: ='3. Helpdesk,IEC and T&CB'!P13 -> 2030 | Q13: ='3. Helpdesk,IEC and T&CB'!Q13 -> 2031 | R13: ='3. Helpdesk,IEC and T&CB'!R13 -> 2032 | S13: ='3. Helpdesk,IEC and T&CB'!S13 -> 2033
A14: Capital expenditure | B14: ='0.2 Unit cost assumptions'!E27 -> Enrolment client and server | D14: ='0.2 Unit cost assumptions'!F27 -> 650000
B15: ='0.2 Unit cost assumptions'!E28 -> Data synchronization software | D15: ='0.2 Unit cost assumptions'!F28 -> 50000
B16: ='0.2 Unit cost assumptions'!E29 -> Data validation tool | D16: ='0.2 Unit cost assumptions'!F29 -> 50000
B17: ='0.2 Unit cost assumptions'!E30 -> CRM tool | D17: ='0.2 Unit cost assumptions'!F30 -> 50000
B18: ='0.2 Unit cost assumptions'!E31 -> Verification client and server | D18: ='0.2 Unit cost assumptions'!F31 -> 150000
B19: ='0.2 Unit cost assumptions'!E32 -> Notification system | D19: ='0.2 Unit cost assumptions'!F32 -> 25000
B20: ='0.2 Unit cost assumptions'!E33 -> identity and access management system | D20: ='0.2 Unit cost assumptions'!F33 -> 50000
B21: ='0.2 Unit cost assumptions'!E34 -> Portal | D21: ='0.2 Unit cost assumptions'!F34 -> 200000
B22: ='0.2 Unit cost assumptions'!E35 -> Fraud detection system | D22: ='0.2 Unit cost assumptions'!F35 -> 50000
B23: Caching | D23: ='0.2 Unit cost assumptions'!F82 -> 100000
B24: Clustering | D24: ='0.2 Unit cost assumptions'!F83 -> 100000
B25: Biometric verification | D25: ='0.2 Unit cost assumptions'!F80 -> 200000
B26: Replication software | D26: ='0.2 Unit cost assumptions'!F84 -> 100000
B27: Middle ware for DC | D27: ='0.2 Unit cost assumptions'!F78 -> 400000
B28: VM | D28: ='0.2 Unit cost assumptions'!F85 -> 100000
B29: Database | D29: ='0.2 Unit cost assumptions'!F79 -> 100000
B30: Demographic data verification | D30: ='0.2 Unit cost assumptions'!F81 -> 50000
A31: Operation expenditure | B31: Software AMC | E31: =SUM($D$14:$D$30)*Software_AMC_cost -> 606250 | F31: 606250 | G31: 606250 | H31: 606250 | I31: 606250 | J31: 606250 | K31: 606250 | L31: 606250 | M31: 606250 | N31: 606250 | O31: 606250 | P31: 606250 | Q31: 606250 | R31: 606250 | S31: 606250
B32: Quality check cost | E32: =(('1. Enrolment'!E25*$J$4/60)/(Fixed_efficiency*Work_days*work_hour))*'0.3 HR compensation'!$K$59 -> 163959.2443 | F32: =(('1. Enrolment'!F25*$J$4/60)/(Fixed_efficiency*Work_days*work_hour))*'0.3 HR compensation'!$K$59 -> 278243.5602 | G32: =(('1. Enrolment'!G25*$J$4/60)/(Fixed_efficiency*Work_days*work_hour))*'0.3 HR compensation'!$K$59 -> 173708.0134 | H32: =(('1. Enrolment'!H25*$J$4/60)/(Fixed_efficiency*Work_days*work_hour))*'0.3 HR compensation'!$K$59 -> 38676.98138 | I32: =(('1. Enrolment'!I25*$J$4/60)/(Fixed_efficiency*Work_days*work_hour))*'0.3 HR compensation'!$K$59 -> 39810.21693 | J32: =(('1. Enrolment'!J25*$J$4/60)/(Fixed_efficiency*Work_days*work_hour))*'0.3 HR compensation'!$K$59 -> 40976.65629 | K32: =(('1. Enrolment'!K25*$J$4/60)/(Fixed_efficiency*Work_days*work_hour))*'0.3 HR compensation'!$K$59 -> 42177.27232 | L32: =(('1. Enrolment'!L25*$J$4/60)/(Fixed_efficiency*Work_days*work_hour))*'0.3 HR compensation'!$K$59 -> 43413.0664 | M32: =(('1. Enrolment'!M25*$J$4/60)/(Fixed_efficiency*Work_days*work_hour))*'0.3 HR compensation'!$K$59 -> 44685.06924 | N32: =(('1. Enrolment'!N25*$J$4/60)/(Fixed_efficiency*Work_days*work_hour))*'0.3 HR compensation'!$K$59 -> 45994.34177 | O32: =(('1. Enrolment'!O25*$J$4/60)/(Fixed_efficiency*Work_days*work_hour))*'0.3 HR compensation'!$K$59 -> 47341.97598 | P32: =(('1. Enrolment'!P25*$J$4/60)/(Fixed_efficiency*Work_days*work_hour))*'0.3 HR compensation'!$K$59 -> 48729.09588 | Q32: =(('1. Enrolment'!Q25*$J$4/60)/(Fixed_efficiency*Work_days*work_hour))*'0.3 HR compensation'!$K$59 -> 50156.85839 | R32: =(('1. Enrolment'!R25*$J$4/60)/(Fixed_efficiency*Work_days*work_hour))*'0.3 HR compensation'!$K$59 -> 51626.45434 | S32: =(('1. Enrolment'!S25*$J$4/60)/(Fixed_efficiency*Work_days*work_hour))*'0.3 HR compensation'!$K$59 -> 53139.10945
B33: Yearly deduplication request | D33: ='1. Enrolment'!D25 -> 0 | E33: ='1. Enrolment'!E25 -> 3038007.462 | F33: ='1. Enrolment'!F25 -> 5155586.169 | G33: ='1. Enrolment'!G25 -> 3218642.798 | H33: ='1. Enrolment'!H25 -> 716647.3506 | I33: ='1. Enrolment'!I25 -> 737645.118 | J33: ='1. Enrolment'!J25 -> 759258.12 | K33: ='1. Enrolment'!K25 -> 781504.3829 | L33: ='1. Enrolment'!L25 -> 804402.4613 | M33: ='1. Enrolment'!M25 -> 827971.4534 | N33: ='1. Enrolment'!N25 -> 852231.017 | O33: ='1. Enrolment'!O25 -> 877201.3858 | P33: ='1. Enrolment'!P25 -> 902903.3864 | Q33: ='1. Enrolment'!Q25 -> 929358.4556 | R33: ='1. Enrolment'!R25 -> 956588.6584 | S33: ='1. Enrolment'!S25 -> 984616.7061
B34: Deduplication cost | D34: =D33*$I$4 -> 0 | E34: =E33*$I$4 -> 1063302.612 | F34: =F33*$I$4 -> 1804455.159 | G34: 1126524.979 | H34: 250826.5727 | I34: 258175.7913 | J34: 265740.342 | K34: 273526.534 | L34: 281540.8615 | M34: 289790.0087 | N34: 298280.856 | O34: 307020.485 | P34: 316016.1852 | Q34: 325275.4595 | R34: 334806.0304 | S34: 344615.8471
B35: Manual deduplication required | D35: =D33*$D$4 -> 0 | E35: =E33*$D$4 -> 151900.3731 | F35: 257779.3084 | G35: 160932.1399 | H35: 35832.36753 | I35: 36882.2559 | J35: 37962.906 | K35: 39075.21914 | L35: 40220.12307 | M35: 41398.57267 | N35: 42611.55085 | O35: 43860.06929 | P35: 45145.16932 | Q35: 46467.92278 | R35: 47829.43292 | S35: 49230.8353
B36: Personnel required for manual dedup | D36: 0 | E36: =ROUNDUP(E35*$E$4/(Work_days*work_hour*Fixed_efficiency*60),0) -> 19 | F36: =ROUNDUP(F35*$E$4/(Work_days*work_hour*Fixed_efficiency*60),0) -> 31 | G36: 20 | H36: 5 | I36: 5 | J36: 5 | K36: 5 | L36: 5 | M36: 5 | N36: 6 | O36: 6 | P36: 6 | Q36: 6 | R36: 6 | S36: 6
B37: Personnel cost | D37: =D36*$F$4 -> 0 | E37: =E36*$F$4 -> 49846.67802 | F37: 81328.79046 | G37: 52470.18739 | H37: 13117.54685 | I37: 13117.54685 | J37: 13117.54685 | K37: 13117.54685 | L37: 13117.54685 | M37: 13117.54685 | N37: 15741.05622 | O37: 15741.05622 | P37: 15741.05622 | Q37: 15741.05622 | R37: 15741.05622 | S37: 15741.05622
A38: Total | B38: Capital expenditure | D38: =SUM(D14:D30) -> 2425000
B39: operational expenditure | D39: =D37+D34+D31 -> 0 | E39: =E37+E34+E32+E31 -> 1883358.534 | F39: =F37+F34+F32+F31 -> 2770277.51 | G39: 1958953.18 | H39: 908871.101 | I39: 917353.5551 | J39: 926084.5451 | K39: 935071.3532 | L39: 944321.4747 | M39: 953842.6248 | N39: 966266.2539 | O39: 976353.5172 | P39: 986736.3373 | Q39: 997423.3741 | R39: 1008423.541 | S39: 1019746.013

Sheet 5. Facility cost (hidden)
A1: Administration Cost estimation
A3: Component | B3: No. of Regional offices required | C3: No. of district office required | D3: HQ office space requirement | E3: Regional office space requirement | F3: District office space requirement | G3: Per person work station setup cost | H3: per sq. ft. office setup cost | I3: Per person operating office expenses | J3: Per sq. ft. office operating cost | K3: per sq. ft. rent
A4: Value | B4: ='2. human resource'!C4 -> 20 | C4: ='2. human resource'!D4 -> 765 | D4: ='0.4 All inputs'!A35 -> 15000 | E4: ='0.4 All inputs'!B35 -> 5000 | F4: ='0.4 All inputs'!C35 -> 1000 | G4: ='0.2 Unit cost assumptions'!F39 -> 1000 | H4: ='0.2 Unit cost assumptions'!F40 -> 75 | I4: ='0.2 Unit cost assumptions'!F41 -> 300 | J4: ='0.2 Unit cost assumptions'!F42 -> 7 | K4: ='0.2 Unit cost assumptions'!F43 -> 5
A5: Description | D5: sq. ft. | E5: sq. ft. | F5: sq. ft. | G5: laptop, table chair etc. | I5: stationary , snack etc. | J5: including maintenance, repair, internet , admin , cleaning cost (for RO and DO), excluding rent
A7: Component | B7: no. of personnel at HQ | C7: No. of personnel at RO | D7: No. of personnel at DO | E7: Shared human resources with CRVS | F7: Reduction in human resources cost due to CRVS linkages
A8: Value | B8: ='2.1 Org_Structure'!D58 -> 56 | C8: ='2.1 Org_Structure'!D76 -> 6 | D8: ='2.1 Org_Structure'!D83 -> 3 | E8: ='0.4 All inputs'!A58 -> 0 | F8: ='0.4 All inputs'!C58 -> 0.3
A9: Description | E9: yes=1 , no = 0 | F9: yes=1 , no = 0
D12: ='4. Software'!D12 -> 0 | E12: ='4. Software'!E12 -> 1 | F12: ='4. Software'!F12 -> 2 | G12: ='4. Software'!G12 -> 3 | H12: ='4. Software'!H12 -> 4 | I12: ='4. Software'!I12 -> 5 | J12: ='4. Software'!J12 -> 6 | K12: ='4. Software'!K12 -> 7 | L12: ='4. Software'!L12 -> 8 | M12: ='4. Software'!M12 -> 9 | N12: ='4. Software'!N12 -> 10 | O12: ='4. Software'!O12 -> 11 | P12: ='4. Software'!P12 -> 12 | Q12: ='4. Software'!Q12 -> 13 | R12: ='4. Software'!R12 -> 14 | S12: ='4. Software'!S12 -> 15
D13: ='4. Software'!D13 -> 2018 | E13: ='4. Software'!E13 -> 2019 | F13: ='4. Software'!F13 -> 2020 | G13: ='4. Software'!G13 -> 2021 | H13: ='4. Software'!H13 -> 2022 | I13: ='4. Software'!I13 -> 2023 | J13: ='4. Software'!J13 -> 2024 | K13: ='4. Software'!K13 -> 2025 | L13: ='4. Software'!L13 -> 2026 | M13: ='4. Software'!M13 -> 2027 | N13: ='4. Software'!N13 -> 2028 | O13: ='4. Software'!O13 -> 2029 | P13: ='4. Software'!P13 -> 2030 | Q13: ='4. Software'!Q13 -> 2031 | R13: ='4. Software'!R13 -> 2032 | S13: ='4. Software'!S13 -> 2033
A14: headquarter | B14: Headquarter setup cost | C14: Capex | D14: =$B$8*G4+H4*D4 -> 1181000
B15: Headquarter operating cost | C15: opex | D15: =$D$4*$J$4+$I$4*$B$8 -> 121800 | E15: =$D$4*$J$4+$I$4*$B$8 -> 121800 | F15: 121800 | G15: 121800 | H15: 121800 | I15: 121800 | J15: 121800 | K15: 121800 | L15: 121800 | M15: 121800 | N15: 121800 | O15: 121800 | P15: 121800 | Q15: 121800 | R15: 121800 | S15: 121800
B16: HQ rent | C16: opex | D16: =$D$4*$K$4 -> 75000 | E16: =$D$4*$K$4 -> 75000 | F16: 75000 | G16: 75000 | H16: 75000 | I16: 75000 | J16: 75000 | K16: 75000 | L16: 75000 | M16: 75000 | N16: 75000 | O16: 75000 | P16: 75000 | Q16: 75000 | R16: 75000 | S16: 75000
A18: Regional office | B18: Setup cost | C18: Capex | D18: =(C8*G4+E4*H4)*B4 -> 7620000
B19: operating expenditure | C19: opex | D19: =($C$8*$I$4+$J$4*$E$4)*$B$4 -> 736000 | E19: =($C$8*$I$4+$J$4*$E$4)*$B$4 -> 736000 | F19: 736000 | G19: 736000 | H19: 736000 | I19: 736000 | J19: 736000 | K19: 736000 | L19: 736000 | M19: 736000 | N19: 736000 | O19: 736000 | P19: 736000 | Q19: 736000 | R19: 736000 | S19: 736000
B20: Rent | C20: opex | D20: =$B$4*$E$4*$K$4 -> 500000 | E20: =$B$4*$E$4*$K$4 -> 500000 | F20: 500000 | G20: 500000 | H20: 500000 | I20: 500000 | J20: 500000 | K20: 500000 | L20: 500000 | M20: 500000 | N20: 500000 | O20: 500000 | P20: 500000 | Q20: 500000 | R20: 500000 | S20: =$B$4*$E$4*$K$4 -> 500000
A22: District office | B22: Setup cost | C22: Capex | D22: =(D8*G4+H4*F4)*C4 -> 59670000
B23: operating expenditure | C23: opex | D23: =($F$4*$J$4+$I$4*$D$8)*$C$4 -> 6043500 | E23: =($F$4*$J$4+$I$4*$D$8)*$C$4 -> 6043500 | F23: 6043500 | G23: 6043500 | H23: 6043500 | I23: 6043500 | J23: 6043500 | K23: 6043500 | L23: 6043500 | M23: 6043500 | N23: 6043500 | O23: 6043500 | P23: 6043500 | Q23: 6043500 | R23: 6043500 | S23: 6043500
B24: Rent | C24: opex | D24: =$C$4*$F$4*$K$4 -> 3825000 | E24: =$C$4*$F$4*$K$4 -> 3825000 | F24: 3825000 | G24: 3825000 | H24: 3825000 | I24: 3825000 | J24: 3825000 | K24: 3825000 | L24: 3825000 | M24: 3825000 | N24: 3825000 | O24: 3825000 | P24: 3825000 | Q24: 3825000 | R24: 3825000 | S24: 3825000
A26: Overall | B26: Capital expenditure | D26: =(D22+D18+D14)*(1-$E$8*$F$8) -> 68471000
B27: Operational expenditure | D27: =(D24+D23+D20+D19+D16+D15)*(1-$E$8*$F$8) -> 11301300 | E27: =(E24+E23+E20+E19+E16+E15)*(1-$E$8*$F$8) -> 11301300 | F27: 11301300 | G27: 11301300 | H27: 11301300 | I27: 11301300 | J27: 11301300 | K27: 11301300 | L27: 11301300 | M27: 11301300 | N27: 11301300 | O27: 11301300 | P27: 11301300 | Q27: 11301300 | R27: 11301300 | S27: 11301300

Sheet 6. Identity Credential (hidden)
A1: Identity Credential Cost Estimation
A3: Component | B3: Credential Choice | C3: Type of Barcode | D3: Type of chip based card | E3: Mag strip | F3: Type of Material | G3: Type of security | H3: Delivery Cost | I3: ID to be reissued
A4: Value | B4: ='0.4 All inputs'!A40 -> 1 | C4: ='0.4 All inputs'!B40 -> 2 | D4: ='0.4 All inputs'!C40 -> 4 | E4: ='0.4 All inputs'!D40 -> 1 | F4: ='0.4 All inputs'!E40 -> 3 | G4: ='0.4 All inputs'!F40 -> 3 | H4: ='0.2 Unit cost assumptions'!F64 -> 0.1 | I4: =MIN('0.4 All inputs'!G40,'0.4 All inputs'!A25) -> 0.03
A5: Description | B5: 0 = No credential only UIN, 1 = eID, 2 = non electronic ID | C5: 0 = no barcode, 1= 1D barcode, 2 = 2D barcode | D5: 0 = no chip, 1 = contact, 2 = contacless, 3 = Dual interface, 4 = hybrid | E5: 0 = no, 1 = yes | F5: 0 = no material, 1 = paper, 2= PVC, 3 = PC, 4 = PET, 5 = Teslin, 6 = Composite (PC+PVC) | G5: 0 = no security, 1 = level 1, 2 = level 2, 3 = level 3 | I5: Due to lost or damage
C12: ='5. Facility cost'!D12 -> 0 | D12: ='5. Facility cost'!E12 -> 1 | E12: ='5. Facility cost'!F12 -> 2 | F12: ='5. Facility cost'!G12 -> 3 | G12: ='5. Facility cost'!H12 -> 4 | H12: ='5. Facility cost'!I12 -> 5 | I12: ='5. Facility cost'!J12 -> 6 | J12: ='5. Facility cost'!K12 -> 7 | K12: ='5. Facility cost'!L12 -> 8 | L12: ='5. Facility cost'!M12 -> 9 | M12: ='5. Facility cost'!N12 -> 10 | N12: ='5. Facility cost'!O12 -> 11 | O12: ='5. Facility cost'!P12 -> 12 | P12: ='5. Facility cost'!Q12 -> 13 | Q12: ='5. Facility cost'!R12 -> 14 | R12: ='5. Facility cost'!S12 -> 15
C13: ='5. Facility cost'!D13 -> 2018 | D13: ='5. Facility cost'!E13 -> 2019 | E13: ='5. Facility cost'!F13 -> 2020 | F13: ='5. Facility cost'!G13 -> 2021 | G13: ='5. Facility cost'!H13 -> 2022 | H13: ='5. Facility cost'!I13 -> 2023 | I13: ='5. Facility cost'!J13 -> 2024 | J13: ='5. Facility cost'!K13 -> 2025 | K13: ='5. Facility cost'!L13 -> 2026 | L13: ='5. Facility cost'!M13 -> 2027 | M13: ='5. Facility cost'!N13 -> 2028 | N13: ='5. Facility cost'!O13 -> 2029 | O13: ='5. Facility cost'!P13 -> 2030 | P13: ='5. Facility cost'!Q13 -> 2031 | Q13: ='5. Facility cost'!R13 -> 2032 | R13: ='5. Facility cost'!S13 -> 2033
A14: No. ID to be issued each year | C14: ='1. Enrolment'!D25 -> 0 | D14: ='1. Enrolment'!E25 -> 3038007.462 | E14: ='1. Enrolment'!F25 -> 5155586.169 | F14: ='1. Enrolment'!G25 -> 3218642.798 | G14: ='1. Enrolment'!H25 -> 716647.3506 | H14: ='1. Enrolment'!I25 -> 737645.118 | I14: ='1. Enrolment'!J25 -> 759258.12 | J14: ='1. Enrolment'!K25 -> 781504.3829 | K14: ='1. Enrolment'!L25 -> 804402.4613 | L14: ='1. Enrolment'!M25 -> 827971.4534 | M14: ='1. Enrolment'!N25 -> 852231.017 | N14: ='1. Enrolment'!O25 -> 877201.3858 | O14: ='1. Enrolment'!P25 -> 902903.3864 | P14: ='1. Enrolment'!Q25 -> 929358.4556 | Q14: ='1. Enrolment'!R25 -> 956588.6584 | R14: ='1. Enrolment'!S25 -> 984616.7061
A15: No. of ID to be reissued | B15: due to lost or damage | C15: =C14*$I$4 -> 0 | D15: =D14*$I$4 -> 91140.22385 | E15: 154667.5851 | F15: 96559.28394 | G15: 21499.42052 | H15: 22129.35354 | I15: 22777.7436 | J15: 23445.13149 | K15: 24132.07384 | L15: 24839.1436 | M15: 25566.93051 | N15: 26316.04157 | O15: 27087.10159 | P15: 27880.75367 | Q15: 28697.65975 | R15: 29538.50118
A16: total id to be issued | C16: =C15+C14 -> 0 | D16: =D15+D14 -> 3129147.685 | E16: 5310253.754 | F16: 3315202.082 | G16: 738146.7712 | H16: 759774.4716 | I16: 782035.8636 | J16: 804949.5144 | K16: 828534.5352 | L16: 852810.597 | M16: 877797.9475 | N16: 903517.4274 | O16: 929990.488 | P16: 957239.2093 | Q16: 985286.3181 | R16: 1014155.207
A17: Total cost | B17: opex | C17: =C16*'6.1 Feature cost '!$F$32 -> 0 | D17: =D16*'6.1 Feature cost '!$F$32 -> 12516590.74 | E17: =E16*'6.1 Feature cost '!$F$32 -> 21241015.02 | F17: =F16*'6.1 Feature cost '!$F$32 -> 13260808.33 | G17: =G16*'6.1 Feature cost '!$F$32 -> 2952587.085 | H17: =H16*'6.1 Feature cost '!$F$32 -> 3039097.886 | I17: =I16*'6.1 Feature cost '!$F$32 -> 3128143.454 | J17: =J16*'6.1 Feature cost '!$F$32 -> 3219798.058 | K17: =K16*'6.1 Feature cost '!$F$32 -> 3314138.141 | L17: =L16*'6.1 Feature cost '!$F$32 -> 3411242.388 | M17: =M16*'6.1 Feature cost '!$F$32 -> 3511191.79 | N17: =N16*'6.1 Feature cost '!$F$32 -> 3614069.71 | O17: =O16*'6.1 Feature cost '!$F$32 -> 3719961.952 | P17: =P16*'6.1 Feature cost '!$F$32 -> 3828956.837 | Q17: =Q16*'6.1 Feature cost '!$F$32 -> 3941145.273 | R17: =R16*'6.1 Feature cost '!$F$32 -> 4056620.829

Sheet 6.1 Feature cost (hidden)
A2: Input no. | B2: Type | C2: Cost per unit | D2: Included or not | E2: Default value due to selection | F2: Cost | G2: Description
A3: 0 | B3: No credential | C3: 0 | D3: =IF('6. Identity Credential'!$B$4='6.1 Feature cost '!A3,1,0) -> 0 | E3: =D3 -> 0 | F3: =E3*D3*C3 -> 0
A4: 1 | B4: eID | C4: 0 | D4: =IF('6. Identity Credential'!$B$4='6.1 Feature cost '!A4,1,0) -> 1 | E4: =D4 -> 1 | F4: =E4*D4*C4 -> 0
A5: 2 | B5: Non electronic ID | C5: 0 | D5: =IF('6. Identity Credential'!$B$4='6.1 Feature cost '!A5,1,0) -> 0 | E5: 0 | F5: 0
A6: 0 | B6: No barcode | C6: 0 | D6: =IF('6. Identity Credential'!$C$4='6.1 Feature cost '!A6,1,0) -> 0 | E6: =IF($D$3=1,1,D6) -> 0 | F6: 0
A7: 1 | B7: 1D barcode | C7: ='0.2 Unit cost assumptions'!F45 -> 0.1 | D7: =IF('6. Identity Credential'!$C$4='6.1 Feature cost '!A7,1,0) -> 0 | E7: =IF($D$3=1,0,D7) -> 0 | F7: 0
A8: 2 | B8: 2D barcode | C8: ='0.2 Unit cost assumptions'!F46 -> 0.1 | D8: =IF('6. Identity Credential'!$C$4='6.1 Feature cost '!A8,1,0) -> 1 | E8: =IF($D$3=1,0,D8) -> 1 | F8: 0.1
A9: 0 | B9: no chip | C9: 0 | D9: =IF('6. Identity Credential'!$D$4='6.1 Feature cost '!A9,1,0) -> 0 | E9: =IF(OR($D$3=1,$D$5=1),1,D9) -> 0 | F9: 0
A10: 1 | B10: contact | C10: ='0.2 Unit cost assumptions'!F47 -> 0.6 | D10: =IF('6. Identity Credential'!$D$4='6.1 Feature cost '!A10,1,0) -> 0 | E10: =IF($E$9=1,0,D10) -> 0 | F10: 0
A11: 2 | B11: contactless | C11: ='0.2 Unit cost assumptions'!F48 -> 0.7 | D11: =IF('6. Identity Credential'!$D$4='6.1 Feature cost '!A11,1,0) -> 0 | E11: =IF($E$9=1,0,D11) -> 0 | F11: 0
A12: 3 | B12: Dual interface | C12: ='0.2 Unit cost assumptions'!F49 -> 0.8 | D12: =IF('6. Identity Credential'!$D$4='6.1 Feature cost '!A12,1,0) -> 0 | E12: 0 | F12: 0
A13: 4 | B13: Hybrid | C13: ='0.2 Unit cost assumptions'!F50 -> 1.2 | D13: =IF('6. Identity Credential'!$D$4='6.1 Feature cost '!A13,1,0) -> 1 | E13: 1 | F13: 1.2
A14: 0 | B14: No mag strip | C14: 0 | D14: =IF('6. Identity Credential'!$E$4=A14,1,0) -> 0 | E14: =IF(D3=1,1,D14) -> 0 | F14: 0
A15: 1 | B15: Mag strip | C15: ='0.2 Unit cost assumptions'!F51 -> 0.5 | D15: =IF('6. Identity Credential'!$E$4=A15,1,0) -> 1 | E15: =IF(E14=1,0,D15) -> 1 | F15: 0.5
A16: 0 | B16: No material | C16: 0 | D16: =IF(A16='6. Identity Credential'!$F$4,1,0) -> 0 | E16: =IF(D3=1,1,0) -> 0 | F16: 0
A17: 1 | B17: Paper card (laminated) | C17: ='0.2 Unit cost assumptions'!F52 -> 0.02 | D17: =IF(A17='6. Identity Credential'!$F$4,1,0) -> 0 | E17: =IF($E$16=1,0,D17) -> 0 | F17: 0
A18: 2 | B18: PVC | C18: ='0.2 Unit cost assumptions'!F53 -> 0.2 | D18: =IF(A18='6. Identity Credential'!$F$4,1,0) -> 0 | E18: 0 | F18: 0
A19: 3 | B19: PC | C19: ='0.2 Unit cost assumptions'!F54 -> 0.6 | D19: =IF(A19='6. Identity Credential'!$F$4,1,0) -> 1 | E19: 1 | F19: 0.6
A20: 4 | B20: PET | C20: ='0.2 Unit cost assumptions'!F55 -> 0.4 | D20: =IF(A20='6. Identity Credential'!$F$4,1,0) -> 0 | E20: 0 | F20: 0
A21: 5 | B21: Teslin | C21: ='0.2 Unit cost assumptions'!F56 -> 0.9 | D21: =IF(A21='6. Identity Credential'!$F$4,1,0) -> 0 | E21: 0 | F21: 0
A22: 6 | B22: Composite (PC+PVC) | C22: ='0.2 Unit cost assumptions'!F57 -> 0.4 | D22: =IF(A22='6. Identity Credential'!$F$4,1,0) -> 0 | E22: 0 | F22: 0
A23: 0 | B23: No printing | C23: 0 | D23: =IF(D3=1,1,0) -> 0 | E23: =D23 -> 0 | F23: 0
A24: 1 | B24: Thermal | C24: ='0.2 Unit cost assumptions'!F58 -> 0.15 | D24: =IF($D$23=1,0,1) -> 1 | E24: =IF(D17*E17=1,1,0) -> 0 | F24: 0
A25: 2 | B25: Printing on PVC | C25: ='0.2 Unit cost assumptions'!F59 -> 0.3 | D25: =IF($D$23=1,0,1) -> 1 | E25: =IF(OR(E23=1,E24=1),0,IF(D5=1,1,0)) -> 0 | F25: 0
A26: 3 | B26: Printing on PVC smart card | C26: ='0.2 Unit cost assumptions'!F60 -> 0.6 | D26: 1 | E26: =IF(D4=1,1,0) -> 1 | F26: 0.6
A27: 0 | B27: No security | C27: 0 | D27: =IF(A27='6. Identity Credential'!$G$4,1,0) -> 0 | E27: =IF(D3=1,1,$D$27) -> 0 | F27: 0
A28: 1 | B28: Level 1 (Overt) | C28: ='0.2 Unit cost assumptions'!F61 -> 0.5 | D28: =IF(A28='6. Identity Credential'!$G$4,1,0) -> 0 | E28: =IF($E$27=1,0,D28) -> 0 | F28: 0
A29: 2 | B29: Level 2 (Covert) | C29: ='0.2 Unit cost assumptions'!F62 -> 0.7 | D29: =IF(A29='6. Identity Credential'!$G$4,1,0) -> 0 | E29: =IF($E$27=1,0,D29) -> 0 | F29: 0
A30: 3 | B30: Level 3 (Forensic) | C30: ='0.2 Unit cost assumptions'!F63 -> 0.9 | D30: =IF(A30='6. Identity Credential'!$G$4,1,0) -> 1 | E30: =IF(E27=1,0,D30) -> 1 | F30: 0.9
E31: Per credential cost | F31: =SUM(F3:F30) -> 3.9
E32: Per credential including delivery cost | F32: =F31+IF(D3=1,0,'6. Identity Credential'!$H$4) -> 4

Sheet 7. Central IT (hidden)
A1: Central IT cost estimation
A3: Component | B3: per agency per person per year authentication request | C3: Preferred biometric for authentication | D3: Preferred biometric for deduplication | E3: Per person raw data size | F3: Per person minutiae size | G3: DC site operating expenditure | H3: DC site installation cost | I3: Capacity of DR as compared to DC
A4: Value | B4: ='0.4 All inputs'!A45 -> 0.2 | C4: ='7.1 backend'!C69 -> 1 | D4: ='7.1 backend'!C66 -> 1 | E4: ='0.4 All inputs'!D45 -> 4000 | F4: ='0.4 All inputs'!E45 -> 150 | G4: ='0.2 Unit cost assumptions'!F65 -> 500000 | H4: ='0.2 Unit cost assumptions'!F66 -> 500000 | I4: ='0.4 All inputs'!F45 -> 1
A5: Description | C5: 0 = no biometric authentication, 1 = finger prints, 2= Iris, 3 = Voice, 4 = face | D5: 1 = finger prints, 2= Iris, 3 = Voice, 4 = face. | E5: in KB (including data update requests) | F5: in KB | G5: including electricity, security, site management, rent, WAN etc. | H5: hardware installation, cabling etc. cost
D12: ='5. Facility cost'!D12 -> 0 | E12: ='5. Facility cost'!E12 -> 1 | F12: ='5. Facility cost'!F12 -> 2 | G12: ='5. Facility cost'!G12 -> 3 | H12: ='5. Facility cost'!H12 -> 4 | I12: ='5. Facility cost'!I12 -> 5 | J12: ='5. Facility cost'!J12 -> 6 | K12: ='5. Facility cost'!K12 -> 7 | L12: ='5. Facility cost'!L12 -> 8 | M12: ='5. Facility cost'!M12 -> 9 | N12: ='5. Facility cost'!N12 -> 10 | O12: ='5. Facility cost'!O12 -> 11 | P12: ='5. Facility cost'!P12 -> 12 | Q12: ='5. Facility cost'!Q12 -> 13 | R12: ='5. Facility cost'!R12 -> 14 | S12: ='5. Facility cost'!S12 -> 15
D13: ='5. Facility cost'!D13 -> 2018 | E13: ='5. Facility cost'!E13 -> 2019 | F13: ='5. Facility cost'!F13 -> 2020 | G13: ='5. Facility cost'!G13 -> 2021 | H13: ='5. Facility cost'!H13 -> 2022 | I13: ='5. Facility cost'!I13 -> 2023 | J13: ='5. Facility cost'!J13 -> 2024 | K13: ='5. Facility cost'!K13 -> 2025 | L13: ='5. Facility cost'!L13 -> 2026 | M13: ='5. Facility cost'!M13 -> 2027 | N13: ='5. Facility cost'!N13 -> 2028 | O13: ='5. Facility cost'!O13 -> 2029 | P13: ='5. Facility cost'!P13 -> 2030 | Q13: ='5. Facility cost'!Q13 -> 2031 | R13: ='5. Facility cost'!R13 -> 2032 | S13: ='5. Facility cost'!S13 -> 2033
A14: Servers: Requirement | B14: Webserver | C14: no. of servers | D14: ='7.1 backend'!D33 -> 0 | E14: ='7.1 backend'!E33 -> 1 | F14: ='7.1 backend'!F33 -> 1 | G14: ='7.1 backend'!G33 -> 1 | H14: ='7.1 backend'!H33 -> 1 | I14: ='7.1 backend'!I33 -> 1 | J14: ='7.1 backend'!J33 -> 1 | K14: ='7.1 backend'!K33 -> 1 | L14: ='7.1 backend'!L33 -> 1 | M14: ='7.1 backend'!M33 -> 1 | N14: ='7.1 backend'!N33 -> 1 | O14: ='7.1 backend'!O33 -> 1 | P14: ='7.1 backend'!P33 -> 1 | Q14: ='7.1 backend'!Q33 -> 1 | R14: ='7.1 backend'!R33 -> 1 | S14: ='7.1 backend'!S33 -> 1
B15: Enrolment database server | C15: no. of servers | D15: ='7.1 backend'!D34 -> 0 | E15: ='7.1 backend'!E34 -> 1 | F15: ='7.1 backend'!F34 -> 1 | G15: ='7.1 backend'!G34 -> 1 | H15: ='7.1 backend'!H34 -> 1 | I15: ='7.1 backend'!I34 -> 1 | J15: ='7.1 backend'!J34 -> 1 | K15: ='7.1 backend'!K34 -> 1 | L15: ='7.1 backend'!L34 -> 1 | M15: ='7.1 backend'!M34 -> 1 | N15: ='7.1 backend'!N34 -> 1 | O15: ='7.1 backend'!O34 -> 1 | P15: ='7.1 backend'!P34 -> 1 | Q15: ='7.1 backend'!Q34 -> 1 | R15: ='7.1 backend'!R34 -> 1 | S15: ='7.1 backend'!S34 -> 1
B16: Authentication database server | C16: no. of servers | D16: ='7.1 backend'!D35 -> 0 | E16: ='7.1 backend'!E35 -> 0 | F16: ='7.1 backend'!F35 -> 1 | G16: ='7.1 backend'!G35 -> 1 | H16: ='7.1 backend'!H35 -> 1 | I16: ='7.1 backend'!I35 -> 1 | J16: ='7.1 backend'!J35 -> 1 | K16: ='7.1 backend'!K35 -> 1 | L16: ='7.1 backend'!L35 -> 1 | M16: ='7.1 backend'!M35 -> 1 | N16: ='7.1 backend'!N35 -> 1 | O16: ='7.1 backend'!O35 -> 1 | P16: ='7.1 backend'!P35 -> 1 | Q16: ='7.1 backend'!Q35 -> 1 | R16: ='7.1 backend'!R35 -> 1 | S16: ='7.1 backend'!S35 -> 1
B17: Deduplication application server | C17: no. of servers | D17: ='7.1 backend'!D38 -> 0 | E17: ='7.1 backend'!E38 -> 1 | F17: ='7.1 backend'!F38 -> 5 | G17: ='7.1 backend'!G38 -> 4 | H17: ='7.1 backend'!H38 -> 1 | I17: ='7.1 backend'!I38 -> 2 | J17: ='7.1 backend'!J38 -> 2 | K17: ='7.1 backend'!K38 -> 2 | L17: ='7.1 backend'!L38 -> 2 | M17: ='7.1 backend'!M38 -> 2 | N17: ='7.1 backend'!N38 -> 2 | O17: ='7.1 backend'!O38 -> 2 | P17: ='7.1 backend'!P38 -> 2 | Q17: ='7.1 backend'!Q38 -> 2 | R17: ='7.1 backend'!R38 -> 3 | S17: ='7.1 backend'!S38 -> 3
B18: Authentication application server | C18: no. of servers | D18: ='7.1 backend'!D37 -> 0 | E18: ='7.1 backend'!E37 -> 0 | F18: ='7.1 backend'!F37 -> 1 | G18: ='7.1 backend'!G37 -> 1 | H18: ='7.1 backend'!H37 -> 1 | I18: ='7.1 backend'!I37 -> 1 | J18: ='7.1 backend'!J37 -> 1 | K18: ='7.1 backend'!K37 -> 1 | L18: ='7.1 backend'!L37 -> 1 | M18: ='7.1 backend'!M37 -> 1 | N18: ='7.1 backend'!N37 -> 1 | O18: ='7.1 backend'!O37 -> 1 | P18: ='7.1 backend'!P37 -> 1 | Q18: ='7.1 backend'!Q37 -> 1 | R18: ='7.1 backend'!R37 -> 1 | S18: ='7.1 backend'!S37 -> 1
A19: Servers: Addition | B19: Webserver | D19: =D14 -> 0 | E19: =IF(E14>D14,E14-D14,0) -> 1 | F19: =IF(F14>E14,F14-E14,0) -> 0 | G19: 0 | H19: 0 | I19: 0 | J19: 0 | K19: 0 | L19: 0 | M19: 0 | N19: 0 | O19: 0 | P19: 0 | Q19: 0 | R19: 0 | S19: 0
B20: Enrolment database server | D20: =D15 -> 0 | E20: =IF(E15>D15,E15-D15,0) -> 1 | F20: 0 | G20: 0 | H20: 0 | I20: 0 | J20: 0 | K20: 0 | L20: 0 | M20: 0 | N20: 0 | O20: 0 | P20: 0 | Q20: 0 | R20: 0 | S20: 0
B21: Authentication database server | D21: 0 | E21: 0 | F21: 1 | G21: 0 | H21: 0 | I21: 0 | J21: 0 | K21: 0 | L21: 0 | M21: 0 | N21: 0 | O21: 0 | P21: 0 | Q21: 0 | R21: 0 | S21: 0
B22: Deduplication application server | D22: 0 | E22: 1 | F22: 4 | G22: 0 | H22: 0 | I22: 1 | J22: 0 | K22: 0 | L22: 0 | M22: 0 | N22: 0 | O22: 0 | P22: 0 | Q22: 0 | R22: 1 | S22: 0
B23: Authentication application server | D23: 0 | E23: 0 | F23: 1 | G23: 0 | H23: 0 | I23: 0 | J23: 0 | K23: 0 | L23: 0 | M23: 0 | N23: 0 | O23: 0 | P23: 0 | Q23: 0 | R23: 0 | S23: 0
A24: Storage disk requirement | B24: Storage disk required for enrolment | C24: no. of disks | D24: ='7.1 backend'!D42 -> 0 | E24: ='7.1 backend'!E42 -> 3 | F24: ='7.1 backend'!F42 -> 7 | G24: ='7.1 backend'!G42 -> 10 | H24: ='7.1 backend'!H42 -> 10 | I24: ='7.1 backend'!I42 -> 11 | J24: ='7.1 backend'!J42 -> 11 | K24: ='7.1 backend'!K42 -> 12 | L24: ='7.1 backend'!L42 -> 13 | M24: ='7.1 backend'!M42 -> 13 | N24: ='7.1 backend'!N42 -> 14 | O24: ='7.1 backend'!O42 -> 15 | P24: ='7.1 backend'!P42 -> 15 | Q24: ='7.1 backend'!Q42 -> 16 | R24: ='7.1 backend'!R42 -> 17 | S24: ='7.1 backend'!S42 -> 18
B25: Storage disk required for authentication | C25: no. of disks | D25: ='7.1 backend'!D44 -> 0 | E25: ='7.1 backend'!E44 -> 1 | F25: ='7.1 backend'!F44 -> 1 | G25: ='7.1 backend'!G44 -> 1 | H25: ='7.1 backend'!H44 -> 1 | I25: ='7.1 backend'!I44 -> 1 | J25: ='7.1 backend'!J44 -> 1 | K25: ='7.1 backend'!K44 -> 1 | L25: ='7.1 backend'!L44 -> 1 | M25: ='7.1 backend'!M44 -> 1 | N25: ='7.1 backend'!N44 -> 1 | O25: ='7.1 backend'!O44 -> 1 | P25: ='7.1 backend'!P44 -> 1 | Q25: ='7.1 backend'!Q44 -> 1 | R25: ='7.1 backend'!R44 -> 1 | S25: ='7.1 backend'!S44 -> 1
B26: storage disk required for deduplication | C26: no. of disks | D26: ='7.1 backend'!D43 -> 0 | E26: ='7.1 backend'!E43 -> 1 | F26: ='7.1 backend'!F43 -> 1 | G26: ='7.1 backend'!G43 -> 1 | H26: ='7.1 backend'!H43 -> 1 | I26: ='7.1 backend'!I43 -> 1 | J26: ='7.1 backend'!J43 -> 1 | K26: ='7.1 backend'!K43 -> 1 | L26: ='7.1 backend'!L43 -> 1 | M26: ='7.1 backend'!M43 -> 1 | N26: ='7.1 backend'!N43 -> 1 | O26: ='7.1 backend'!O43 -> 1 | P26: ='7.1 backend'!P43 -> 1 | Q26: ='7.1 backend'!Q43 -> 1 | R26: ='7.1 backend'!R43 -> 1 | S26: ='7.1 backend'!S43 -> 1
A27: Storage disk addition | B27: Storage disk required for enrolment | D27: =D24 -> 0 | E27: =IF(E24>D24,E24-D24,0) -> 3 | F27: =IF(F24>E24,F24-E24,0) -> 4 | G27: =IF(G24>F24,G24-F24,0) -> 3 | H27: 0 | I27: 1 | J27: 0 | K27: 1 | L27: 1 | M27: 0 | N27: 1 | O27: 1 | P27: 0 | Q27: 1 | R27: 1 | S27: 1
B28: Storage disk required for authentication | D28: =D25 -> 0 | E28: =IF(E25>D25,E25-D25,0) -> 1 | F28: 0 | G28: 0 | H28: 0 | I28: 0 | J28: 0 | K28: 0 | L28: 0 | M28: 0 | N28: 0 | O28: 0 | P28: 0 | Q28: 0 | R28: 0 | S28: 0
B29: storage disk required for deduplication | D29: 0 | E29: 1 | F29: 0 | G29: 0 | H29: 0 | I29: 0 | J29: 0 | K29: 0 | L29: 0 | M29: 0 | N29: 0 | O29: 0 | P29: 0 | Q29: 0 | R29: 0 | S29: 0
A31: Cost | B31: Static hardware procurement cost | C31: Capex | D31: ='7.1 backend'!F55 -> 590000
B32: Static hardware AMC cost | C32: opex | D32: ='7.1 backend'!F56 -> 88500 | E32: =D32 -> 88500 | F32: =E32 -> 88500 | G32: 88500 | H32: 88500 | I32: 88500 | J32: 88500 | K32: 88500 | L32: 88500 | M32: 88500 | N32: 88500 | O32: 88500 | P32: 88500 | Q32: 88500 | R32: 88500 | S32: 88500
B33: Server hardware cost | C33: Capex | D33: =D19*'7.1 backend'!L3+'7.1 backend'!M3*('7. Central IT'!D22+'7. Central IT'!D23)+('7. Central IT'!D20+'7. Central IT'!D21)*'7.1 backend'!N3 -> 0 | E33: =E19*'7.1 backend'!$M$3+'7.1 backend'!$N$3*('7. Central IT'!E22+'7. Central IT'!E23)+('7. Central IT'!E20+'7. Central IT'!E21)*'7.1 backend'!$O$3 -> 90000 | F33: =F19*'7.1 backend'!$M$3+'7.1 backend'!$N$3*('7. Central IT'!F22+'7. Central IT'!F23)+('7. Central IT'!F20+'7. Central IT'!F21)*'7.1 backend'!$O$3 -> 260000 | G33: =G19*'7.1 backend'!$M$3+'7.1 backend'!$N$3*('7. Central IT'!G22+'7. Central IT'!G23)+('7. Central IT'!G20+'7. Central IT'!G21)*'7.1 backend'!$O$3 -> 0 | H33: =H19*'7.1 backend'!$M$3+'7.1 backend'!$N$3*('7. Central IT'!H22+'7. Central IT'!H23)+('7. Central IT'!H20+'7. Central IT'!H21)*'7.1 backend'!$O$3 -> 0 | I33: =I19*'7.1 backend'!$M$3+'7.1 backend'!$N$3*('7. Central IT'!I22+'7. Central IT'!I23)+('7. Central IT'!I20+'7. Central IT'!I21)*'7.1 backend'!$O$3 -> 50000 | J33: =J19*'7.1 backend'!$M$3+'7.1 backend'!$N$3*('7. Central IT'!J22+'7. Central IT'!J23)+('7. Central IT'!J20+'7. Central IT'!J21)*'7.1 backend'!$O$3 -> 0 | K33: =K19*'7.1 backend'!$M$3+'7.1 backend'!$N$3*('7. Central IT'!K22+'7. Central IT'!K23)+('7. Central IT'!K20+'7. Central IT'!K21)*'7.1 backend'!$O$3 -> 0 | L33: =L19*'7.1 backend'!$M$3+'7.1 backend'!$N$3*('7. Central IT'!L22+'7. Central IT'!L23)+('7. Central IT'!L20+'7. Central IT'!L21)*'7.1 backend'!$O$3 -> 0 | M33: =M19*'7.1 backend'!$M$3+'7.1 backend'!$N$3*('7. Central IT'!M22+'7. Central IT'!M23)+('7. Central IT'!M20+'7. Central IT'!M21)*'7.1 backend'!$O$3 -> 0 | N33: =N19*'7.1 backend'!$M$3+'7.1 backend'!$N$3*('7. Central IT'!N22+'7. Central IT'!N23)+('7. Central IT'!N20+'7. Central IT'!N21)*'7.1 backend'!$O$3 -> 0 | O33: =O19*'7.1 backend'!$M$3+'7.1 backend'!$N$3*('7. Central IT'!O22+'7. Central IT'!O23)+('7. Central IT'!O20+'7. Central IT'!O21)*'7.1 backend'!$O$3 -> 0 | P33: =P19*'7.1 backend'!$M$3+'7.1 backend'!$N$3*('7. Central IT'!P22+'7. Central IT'!P23)+('7. Central IT'!P20+'7. Central IT'!P21)*'7.1 backend'!$O$3 -> 0 | Q33: =Q19*'7.1 backend'!$M$3+'7.1 backend'!$N$3*('7. Central IT'!Q22+'7. Central IT'!Q23)+('7. Central IT'!Q20+'7. Central IT'!Q21)*'7.1 backend'!$O$3 -> 0 | R33: =R19*'7.1 backend'!$M$3+'7.1 backend'!$N$3*('7. Central IT'!R22+'7. Central IT'!R23)+('7. Central IT'!R20+'7. Central IT'!R21)*'7.1 backend'!$O$3 -> 50000 | S33: =S19*'7.1 backend'!$M$3+'7.1 backend'!$N$3*('7. Central IT'!S22+'7. Central IT'!S23)+('7. Central IT'!S20+'7. Central IT'!S21)*'7.1 backend'!$O$3 -> 0
B34: server AMC cost | C34: opex | D34: =SUM(D33:$D$33)*Hardware_AMC -> 0 | E34: =SUM($D33:E$33)*Hardware_AMC -> 13500 | F34: =SUM($D33:F$33)*Hardware_AMC -> 52500 | G34: =SUM($D33:G$33)*Hardware_AMC -> 52500 | H34: =SUM($D33:H$33)*Hardware_AMC -> 52500 | I34: =SUM($D33:I$33)*Hardware_AMC -> 60000 | J34: =SUM($D33:J$33)*Hardware_AMC -> 60000 | K34: =SUM($D33:K$33)*Hardware_AMC -> 60000 | L34: =SUM($D33:L$33)*Hardware_AMC -> 60000 | M34: =SUM($D33:M$33)*Hardware_AMC -> 60000 | N34: =SUM($D33:N$33)*Hardware_AMC -> 60000 | O34: =SUM($D33:O$33)*Hardware_AMC -> 60000 | P34: =SUM($D33:P$33)*Hardware_AMC -> 60000 | Q34: =SUM($D33:Q$33)*Hardware_AMC -> 60000 | R34: =SUM($D33:R$33)*Hardware_AMC -> 67500 | S34: =SUM($D33:S$33)*Hardware_AMC -> 67500
B35: Storage hardware cost | C35: Capex | D35: ='7.1 backend'!$O$3*SUM('7. Central IT'!D27:D29) -> 0 | E35: ='7.1 backend'!$O$3*SUM('7. Central IT'!E27:E29) -> 50000 | F35: ='7.1 backend'!$O$3*SUM('7. Central IT'!F27:F29) -> 40000 | G35: ='7.1 backend'!$O$3*SUM('7. Central IT'!G27:G29) -> 30000 | H35: ='7.1 backend'!$O$3*SUM('7. Central IT'!H27:H29) -> 0 | I35: ='7.1 backend'!$O$3*SUM('7. Central IT'!I27:I29) -> 10000 | J35: ='7.1 backend'!$O$3*SUM('7. Central IT'!J27:J29) -> 0 | K35: ='7.1 backend'!$O$3*SUM('7. Central IT'!K27:K29) -> 10000 | L35: ='7.1 backend'!$O$3*SUM('7. Central IT'!L27:L29) -> 10000 | M35: ='7.1 backend'!$O$3*SUM('7. Central IT'!M27:M29) -> 0 | N35: ='7.1 backend'!$O$3*SUM('7. Central IT'!N27:N29) -> 10000 | O35: ='7.1 backend'!$O$3*SUM('7. Central IT'!O27:O29) -> 10000 | P35: ='7.1 backend'!$O$3*SUM('7. Central IT'!P27:P29) -> 0 | Q35: ='7.1 backend'!$O$3*SUM('7. Central IT'!Q27:Q29) -> 10000 | R35: ='7.1 backend'!$O$3*SUM('7. Central IT'!R27:R29) -> 10000 | S35: ='7.1 backend'!$O$3*SUM('7. Central IT'!S27:S29) -> 10000
B36: storage AMC cost | C36: opex | D36: =SUM(D35:$D$35)*Hardware_AMC -> 0 | E36: =SUM($D35:E$35)*Hardware_AMC -> 7500 | F36: =SUM($D35:F$35)*Hardware_AMC -> 13500 | G36: =SUM($D35:G$35)*Hardware_AMC -> 18000 | H36: =SUM($D35:H$35)*Hardware_AMC -> 18000 | I36: =SUM($D35:I$35)*Hardware_AMC -> 19500 | J36: =SUM($D35:J$35)*Hardware_AMC -> 19500 | K36: =SUM($D35:K$35)*Hardware_AMC -> 21000 | L36: =SUM($D35:L$35)*Hardware_AMC -> 22500 | M36: =SUM($D35:M$35)*Hardware_AMC -> 22500 | N36: =SUM($D35:N$35)*Hardware_AMC -> 24000 | O36: =SUM($D35:O$35)*Hardware_AMC -> 25500 | P36: =SUM($D35:P$35)*Hardware_AMC -> 25500 | Q36: =SUM($D35:Q$35)*Hardware_AMC -> 27000 | R36: =SUM($D35:R$35)*Hardware_AMC -> 28500 | S36: =SUM($D35:S$35)*Hardware_AMC -> 30000
B37: Site installation cost | C37: capex | D37: =H4 -> 500000
B38: site operational expenditure | C38: opex | D38: =$G$4 -> 500000 | E38: =$G$4 -> 500000 | F38: 500000 | G38: 500000 | H38: 500000 | I38: 500000 | J38: 500000 | K38: 500000 | L38: 500000 | M38: 500000 | N38: 500000 | O38: 500000 | P38: 500000 | Q38: 500000 | R38: 500000 | S38: 500000
B39: Tech Refresh | C39: Capex | D39: =IF(D13-$D$13>=7,IF(AND(D13-$D$13>=7,D13-$D$13<14),INDEX($D$41:$S$41,1,MATCH(D13-7,$D$13:$S$13,0)),INDEX($D$41:$S$41,1,MATCH(D13-14,$D$13:$S$13,0))),0) -> 0 | E39: 0 | F39: 0 | G39: 0 | H39: 0 | I39: 0 | J39: 0 | K39: 2180000 | L39: 280000 | M39: 600000 | N39: 60000 | O39: 0 | P39: 120000 | Q39: 0 | R39: 2180000 | S39: 280000
A41: Overall | B41: Capital Expenditure | C41: dc+dr | D41: =(D37+D35+D33+D31+D39)*(1+$I$4) -> 2180000 | E41: =(E37+E35+E33+E31+E39)*(1+$I$4) -> 280000 | F41: 600000 | G41: 60000 | H41: 0 | I41: 120000 | J41: 0 | K41: 4380000 | L41: 580000 | M41: 1200000 | N41: 140000 | O41: 20000 | P41: 240000 | Q41: 20000 | R41: 4480000 | S41: 580000
B42: Operational Expenditure | C42: dc+dr | D42: =(D38+D36+D34+D32)*(1+$I$4) -> 1177000 | E42: =(E38+E36+E34+E32)*(1+$I$4) -> 1219000 | F42: 1309000 | G42: 1318000 | H42: 1318000 | I42: 1336000 | J42: 1336000 | K42: 1339000 | L42: 1342000 | M42: 1342000 | N42: 1345000 | O42: 1348000 | P42: 1348000 | Q42: 1351000 | R42: 1369000 | S42: 1372000

Sheet 7.1 backend (hidden)
A2: Component | B2: No. of user agencies linked with eID | C2: Web server capacity (no. of request per second) | D2: Finger print equivalent to one iris | E2: Finger print equivalent to face | F2: Finger print equivalent to voice | G2: Finger print equivalent to non biometric based authentication | H2: Preferred biometric for authentication | I2: finger print equivalent to preferred authentication medium | J2: Preferred biometric for deduplication | K2: Dedup capacity per core per second as per selected biometric | L2: Web server cost | M2: Application server cost | N2: Data base server cost | O2: Cost of storage disk
A3: Value | B3: ='3. Helpdesk,IEC and T&CB'!K4 -> 100 | C3: ='0.4 All inputs'!E49 -> 3000 | D3: 4 | E3: 2 | F3: 2 | G3: 1 | H3: ='7. Central IT'!C4 -> 1 | I3: =IF(H3=0,G3,IF(H3=1,1,IF(H3=2,D3,IF(H3=3,F3,IF(H3=4,E3,0))))) -> 1 | J3: ='7. Central IT'!D4 -> 1 | K3: =IF(J3=1,G7,IF(J3=2,H7,IF(J3=3,J7,IF(J3=4,I7,0)))) -> 37500 | L3: ='0.2 Unit cost assumptions'!F67 -> 15000 | M3: ='0.2 Unit cost assumptions'!F68 -> 30000 | N3: ='0.2 Unit cost assumptions'!F69 -> 50000 | O3: ='0.2 Unit cost assumptions'!F70 -> 10000
A4: Description | D4: One Iris authentication will be equal to 4 finger print authentication requests | E4: One face authentication request is equal to 2 finger requests | F4: one voice authentication request will be equal to these many finger print requests | G4: one non biometric authentication request will be equal to these many finger print request | H4: 0 = no biometric authentication, 1 = finger prints, 2= Iris, 3 = Voice, 4 = face | J4: 1 = finger prints, 2= Iris, 3 = Voice, 4 = face
A6: Component | B6: Data base server capacity (no. of request per core per second) | C6: No . of core in webserver | D6: no. of core in database server | E6: no. of core in application server | F6: Application server capacity (no. of requests per core per second) | G6: Finger print deduplication per core per second | H6: Iris deduplication per core per second | I6: Face deduplication per core per second | J6: Voice deduplication per core per second | K6: Storage disk minimum size | L6: Hardware AMC
A7: Value | B7: ='0.4 All inputs'!G49 -> 300 | C7: ='0.4 All inputs'!A49 -> 16 | D7: ='0.4 All inputs'!B49 -> 16 | E7: ='0.4 All inputs'!C49 -> 16 | F7: ='0.4 All inputs'!F49 -> 100 | G7: ='0.4 All inputs'!A53 -> 37500 | H7: ='0.4 All inputs'!B53 -> 2500 | I7: ='0.4 All inputs'!C53 -> 1250 | J7: ='0.4 All inputs'!D53 -> 1250 | K7: ='0.4 All inputs'!G45 -> 10 | L7: ='0.4 All inputs'!D49 -> 0.15
A8: Description | F8: 1 request is equivalent to one finger print authentication request | G8: for two finger biometric deduplication | K8: in tb | L8: as % of total cost of hardware
D12: ='6. Identity Credential'!C12 -> 0 | E12: ='6. Identity Credential'!D12 -> 1 | F12: ='6. Identity Credential'!E12 -> 2 | G12: ='6. Identity Credential'!F12 -> 3 | H12: ='6. Identity Credential'!G12 -> 4 | I12: ='6. Identity Credential'!H12 -> 5 | J12: ='6. Identity Credential'!I12 -> 6 | K12: ='6. Identity Credential'!J12 -> 7 | L12: ='6. Identity Credential'!K12 -> 8 | M12: ='6. Identity Credential'!L12 -> 9 | N12: ='6. Identity Credential'!M12 -> 10 | O12: ='6. Identity Credential'!N12 -> 11 | P12: ='6. Identity Credential'!O12 -> 12 | Q12: ='6. Identity Credential'!P12 -> 13 | R12: ='6. Identity Credential'!Q12 -> 14 | S12: ='6. Identity Credential'!R12 -> 15
D13: ='6. Identity Credential'!C13 -> 2018 | E13: ='6. Identity Credential'!D13 -> 2019 | F13: ='6. Identity Credential'!E13 -> 2020 | G13: ='6. Identity Credential'!F13 -> 2021 | H13: ='6. Identity Credential'!G13 -> 2022 | I13: ='6. Identity Credential'!H13 -> 2023 | J13: ='6. Identity Credential'!I13 -> 2024 | K13: ='6. Identity Credential'!J13 -> 2025 | L13: ='6. Identity Credential'!K13 -> 2026 | M13: ='6. Identity Credential'!L13 -> 2027 | N13: ='6. Identity Credential'!M13 -> 2028 | O13: ='6. Identity Credential'!N13 -> 2029 | P13: ='6. Identity Credential'!O13 -> 2030 | Q13: ='6. Identity Credential'!P13 -> 2031 | R13: ='6. Identity Credential'!Q13 -> 2032 | S13: ='6. Identity Credential'!R13 -> 2033
B14: New enrolment | D14: ='1. Enrolment'!D25 -> 0 | E14: ='1. Enrolment'!E25 -> 3038007.462 | F14: ='1. Enrolment'!F25 -> 5155586.169 | G14: ='1. Enrolment'!G25 -> 3218642.798 | H14: ='1. Enrolment'!H25 -> 716647.3506 | I14: ='1. Enrolment'!I25 -> 737645.118 | J14: ='1. Enrolment'!J25 -> 759258.12 | K14: ='1. Enrolment'!K25 -> 781504.3829 | L14: ='1. Enrolment'!L25 -> 804402.4613 | M14: ='1. Enrolment'!M25 -> 827971.4534 | N14: ='1. Enrolment'!N25 -> 852231.017 | O14: ='1. Enrolment'!O25 -> 877201.3858 | P14: ='1. Enrolment'!P25 -> 902903.3864 | Q14: ='1. Enrolment'!Q25 -> 929358.4556 | R14: ='1. Enrolment'!R25 -> 956588.6584 | S14: ='1. Enrolment'!S25 -> 984616.7061
B15: Cumulative enrolment | D15: ='1. Enrolment'!D26 -> 0 | E15: ='1. Enrolment'!E26 -> 3038007.462 | F15: ='1. Enrolment'!F26 -> 8193593.63 | G15: ='1. Enrolment'!G26 -> 11412236.43 | H15: ='1. Enrolment'!H26 -> 12128883.78 | I15: ='1. Enrolment'!I26 -> 12866528.9 | J15: ='1. Enrolment'!J26 -> 13625787.02 | K15: ='1. Enrolment'!K26 -> 14407291.4 | L15: ='1. Enrolment'!L26 -> 15211693.86 | M15: ='1. Enrolment'!M26 -> 16039665.31 | N15: ='1. Enrolment'!N26 -> 16891896.33 | O15: ='1. Enrolment'!O26 -> 17769097.72 | P15: ='1. Enrolment'!P26 -> 18672001.1 | Q15: ='1. Enrolment'!Q26 -> 19601359.56 | R15: ='1. Enrolment'!R26 -> 20557948.22 | S15: ='1. Enrolment'!S26 -> 21542564.92
B16: Annual enrolments and data update requests | D16: ='1. Enrolment'!D31 -> 0 | E16: ='1. Enrolment'!E31 -> 3068387.536 | F16: ='1. Enrolment'!F31 -> 5989108.733 | G16: ='1. Enrolment'!G31 -> 4106373.278 | H16: ='1. Enrolment'!H31 -> 1634211.022 | I16: ='1. Enrolment'!I31 -> 1685916.094 | J16: ='1. Enrolment'!J31 -> 1739136.123 | K16: ='1. Enrolment'!K31 -> 1793915.5 | L16: ='1. Enrolment'!L31 -> 1850299.912 | M16: ='1. Enrolment'!M31 -> 1908336.388 | N16: ='1. Enrolment'!N31 -> 1968073.333 | O16: ='1. Enrolment'!O31 -> 2029560.569 | P16: ='1. Enrolment'!P31 -> 2092849.382 | Q16: ='1. Enrolment'!Q31 -> 2157992.557 | R16: ='1. Enrolment'!R31 -> 2225044.428 | S16: ='1. Enrolment'!S31 -> 2294060.918
B17: Per second request | D17: =ROUNDUP(D16/(Work_days*work_hour*3600),0) -> 0 | E17: 1 | F17: 1 | G17: 1 | H17: 1 | I17: 1 | J17: 1 | K17: 1 | L17: 1 | M17: 1 | N17: 1 | O17: 1 | P17: 1 | Q17: 1 | R17: 1 | S17: 1
B19: Deduplication requests | D19: ='4. Software'!D33 -> 0 | E19: ='4. Software'!E33 -> 3038007.462 | F19: ='4. Software'!F33 -> 5155586.169 | G19: ='4. Software'!G33 -> 3218642.798 | H19: ='4. Software'!H33 -> 716647.3506 | I19: ='4. Software'!I33 -> 737645.118 | J19: ='4. Software'!J33 -> 759258.12 | K19: ='4. Software'!K33 -> 781504.3829 | L19: ='4. Software'!L33 -> 804402.4613 | M19: ='4. Software'!M33 -> 827971.4534 | N19: ='4. Software'!N33 -> 852231.017 | O19: ='4. Software'!O33 -> 877201.3858 | P19: ='4. Software'!P33 -> 902903.3864 | Q19: ='4. Software'!Q33 -> 929358.4556 | R19: ='4. Software'!R33 -> 956588.6584 | S19: ='4. Software'!S33 -> 984616.7061
B20: Effective deduplication requests | C20: matches per year | D20: =D19*D15 -> 0 | E20: =E19*E15 -> 9.229489337e+12 | F20: 4.224277799e+13 | G20: 3.673191259e+13 | H20: 8.692132427e+12 | I20: 9.490932227e+12 | J20: 1.034548943e+13 | K20: 1.125936137e+13 | L20: 1.223632398e+13 | M20: 1.3280385e+13 | N20: 1.439579799e+13 | O20: 1.558707714e+13 | P20: 1.685901303e+13 | Q20: 1.821668925e+13 | R20: 1.96655001e+13 | S20: 2.121116932e+13
B21: no. of effective dedup request per second | C21: matches per second | D21: =D20/(365*24*60*60) -> 0 | E21: =E20/(365*24*60*60) -> 292665.187 | F21: 1339509.703 | G21: 1164761.307 | H21: 275625.7111 | I21: 300955.4866 | J21: 328053.3179 | K21: 357032.0071 | L21: 388011.2881 | M21: 421118.2459 | N21: 456487.7597 | O21: 494262.9738 | P21: 534595.7962 | Q21: 577647.4267 | R21: 623588.9176 | S21: 672601.7667
B22: No. of dedup requests for web server per second | D22: =ROUNDUP(D19/(365*24*3600),0) -> 0 | E22: =ROUNDUP(E19/(365*24*3600),0) -> 1 | F22: 1 | G22: 1 | H22: 1 | I22: 1 | J22: 1 | K22: 1 | L22: 1 | M22: 1 | N22: 1 | O22: 1 | P22: 1 | Q22: 1 | R22: 1 | S22: 1
B24: NID coverage | D24: 0 | E24: 0.1 | F24: 0.2 | G24: 0.3 | H24: 0.4 | I24: 0.5 | J24: 0.6 | K24: 0.7 | L24: 0.8 | M24: 0.9 | N24: 1
B25: Service linked with NID | D25: 0 | E25: 0 | F25: 0 | G25: 0.1 | H25: 0.2 | I25: 0.5 | J25: 0.7 | K25: 0.9 | L25: 1 | M25: 1 | N25: 1
B26: Actual NID coverage | D26: ='1. Enrolment'!D26/'1. Enrolment'!D19 -> 0 | E26: ='1. Enrolment'!E26/'1. Enrolment'!E19 -> 0.2466617572 | F26: ='1. Enrolment'!F26/'1. Enrolment'!F19 -> 0.6463167822 | G26: ='1. Enrolment'!G26/'1. Enrolment'!G19 -> 0.8745805196 | H26: ='1. Enrolment'!H26/'1. Enrolment'!H19 -> 0.9030418991 | I26: ='1. Enrolment'!I26/'1. Enrolment'!I19 -> 0.9306930984 | J26: ='1. Enrolment'!J26/'1. Enrolment'!J19 -> 0.9575571802 | K26: ='1. Enrolment'!K26/'1. Enrolment'!K19 -> 0.9836565504 | L26: ='1. Enrolment'!L26/'1. Enrolment'!L19 -> 1.009012977 | M26: ='1. Enrolment'!M26/'1. Enrolment'!M19 -> 1.03364761 | N26: ='1. Enrolment'!N26/'1. Enrolment'!N19 -> 1.057580994 | O26: ='1. Enrolment'!O26/'1. Enrolment'!O19 -> 1.080833091 | P26: ='1. Enrolment'!P26/'1. Enrolment'!P19 -> 1.103423296 | Q26: ='1. Enrolment'!Q26/'1. Enrolment'!Q19 -> 1.125370449 | R26: ='1. Enrolment'!R26/'1. Enrolment'!R19 -> 1.146692855 | S26: ='1. Enrolment'!S26/'1. Enrolment'!S19 -> 1.167408299
B27: Service linked with NID | D27: =INDEX($D$25:$N$25,,MATCH(D26,$D$24:$N$24,1)) -> 0 | E27: =INDEX($D$25:$N$25,,MATCH(E26,$D$24:$N$24,1)) -> 0 | F27: 0.7 | G27: 1 | H27: 1 | I27: 1 | J27: 1 | K27: 1 | L27: 1 | M27: 1 | N27: 1 | O27: 1 | P27: 1 | Q27: 1 | R27: 1 | S27: 1
B28: Service agencies linked with NID | D28: =D27*$B$3 -> 0 | E28: =E27*$B$3 -> 0 | F28: 70 | G28: 100 | H28: 100 | I28: 100 | J28: 100 | K28: 100 | L28: 100 | M28: 100 | N28: 100 | O28: 100 | P28: 100 | Q28: 100 | R28: 100 | S28: 100
B29: Authentication request per year | D29: =D28*'7. Central IT'!$B$4*D15 -> 0 | E29: =E28*'7. Central IT'!$B$4*E15 -> 0 | F29: =F28*'7. Central IT'!$B$4*F15 -> 114710310.8 | G29: =G28*'7. Central IT'!$B$4*G15 -> 228244728.6 | H29: =H28*'7. Central IT'!$B$4*H15 -> 242577675.6 | I29: =I28*'7. Central IT'!$B$4*I15 -> 257330577.9 | J29: =J28*'7. Central IT'!$B$4*J15 -> 272515740.3 | K29: =K28*'7. Central IT'!$B$4*K15 -> 288145828 | L29: =L28*'7. Central IT'!$B$4*L15 -> 304233877.2 | M29: =M28*'7. Central IT'!$B$4*M15 -> 320793306.3 | N29: =N28*'7. Central IT'!$B$4*N15 -> 337837926.6 | O29: =O28*'7. Central IT'!$B$4*O15 -> 355381954.3 | P29: =P28*'7. Central IT'!$B$4*P15 -> 373440022.1 | Q29: =Q28*'7. Central IT'!$B$4*Q15 -> 392027191.2 | R29: =R28*'7. Central IT'!$B$4*R15 -> 411158964.4 | S29: =S28*'7. Central IT'!$B$4*S15 -> 430851298.5
B30: Authentication request per second | D30: =ROUNDUP(D29/(Work_days*work_hour*60*60),0) -> 0 | E30: 0 | F30: 16 | G30: 32 | H30: 34 | I30: 36 | J30: 38 | K30: 41 | L30: 43 | M30: 45 | N30: 47 | O30: 50 | P30: 52 | Q30: 55 | R30: 58 | S30: 60
B32: Request per second (web server) | D32: =(D30+D22+D17)*2 -> 0 | E32: =(E30+E22+E17)*2 -> 4 | F32: 36 | G32: 68 | H32: 72 | I32: 76 | J32: 80 | K32: 86 | L32: 90 | M32: 94 | N32: 98 | O32: 104 | P32: 108 | Q32: 114 | R32: 120 | S32: 124
A33: Web server | B33: no. of web servers required | D33: =ROUNDUP(D32*2/($C$7*$C$3),0) -> 0 | E33: 1 | F33: 1 | G33: 1 | H33: 1 | I33: 1 | J33: 1 | K33: 1 | L33: 1 | M33: 1 | N33: 1 | O33: 1 | P33: 1 | Q33: 1 | R33: 1 | S33: 1
A34: Database server | B34: Enrolment data base server requirement | D34: =ROUNDUP(D17*2/($D$7*$B$7),0) -> 0 | E34: 1 | F34: 1 | G34: 1 | H34: 1 | I34: 1 | J34: 1 | K34: 1 | L34: 1 | M34: 1 | N34: 1 | O34: 1 | P34: 1 | Q34: 1 | R34: 1 | S34: 1
B35: Authentication database server | D35: =ROUNDUP(D30*2/($D$7*$B$7),0) -> 0 | E35: 0 | F35: 1 | G35: 1 | H35: 1 | I35: 1 | J35: 1 | K35: 1 | L35: 1 | M35: 1 | N35: 1 | O35: 1 | P35: 1 | Q35: 1 | R35: 1 | S35: 1
A36: Application server | B36: no. of effective authentication requests | D36: =D30*$I$3 -> 0 | E36: 0 | F36: 16 | G36: 32 | H36: 34 | I36: 36 | J36: 38 | K36: 41 | L36: 43 | M36: 45 | N36: 47 | O36: 50 | P36: 52 | Q36: 55 | R36: 58 | S36: 60
B37: no. of application server required for authentication | D37: =ROUNDUP(D36*2/($E$7*$F$7),0) -> 0 | E37: 0 | F37: 1 | G37: 1 | H37: 1 | I37: 1 | J37: 1 | K37: 1 | L37: 1 | M37: 1 | N37: 1 | O37: 1 | P37: 1 | Q37: 1 | R37: 1 | S37: 1
B38: no. of application server required for deduplication | D38: =ROUNDUP(D21*2/($E$7*$K$3),0) -> 0 | E38: =ROUNDUP(E21*2/($E$7*$K$3),0) -> 1 | F38: 5 | G38: 4 | H38: 1 | I38: 2 | J38: 2 | K38: 2 | L38: 2 | M38: 2 | N38: 2 | O38: 2 | P38: 2 | Q38: 2 | R38: 3 | S38: 3
A39: Storage | B39: Enrolment and data update storage requirement cumulative | C39: in TB | D39: =D15*'7. Central IT'!$E$4*10^(-9) -> 0 | E39: =E15*'7. Central IT'!$E$4*10^(-9) -> 12.15202985 | F39: =F15*'7. Central IT'!$E$4*10^(-9) -> 32.77437452 | G39: =G15*'7. Central IT'!$E$4*10^(-9) -> 45.64894571 | H39: =H15*'7. Central IT'!$E$4*10^(-9) -> 48.51553512 | I39: =I15*'7. Central IT'!$E$4*10^(-9) -> 51.46611559 | J39: =J15*'7. Central IT'!$E$4*10^(-9) -> 54.50314807 | K39: =K15*'7. Central IT'!$E$4*10^(-9) -> 57.6291656 | L39: =L15*'7. Central IT'!$E$4*10^(-9) -> 60.84677544 | M39: =M15*'7. Central IT'!$E$4*10^(-9) -> 64.15866126 | N39: =N15*'7. Central IT'!$E$4*10^(-9) -> 67.56758533 | O39: =O15*'7. Central IT'!$E$4*10^(-9) -> 71.07639087 | P39: =P15*'7. Central IT'!$E$4*10^(-9) -> 74.68800442 | Q39: =Q15*'7. Central IT'!$E$4*10^(-9) -> 78.40543824 | R39: =R15*'7. Central IT'!$E$4*10^(-9) -> 82.23179287 | S39: =S15*'7. Central IT'!$E$4*10^(-9) -> 86.1702597
B40: Deduplication storage requirement cumulative | C40: in TB | D40: =D15*'7. Central IT'!$F$4*10^(-9) -> 0 | E40: =E15*'7. Central IT'!$F$4*10^(-9) -> 0.4557011192 | F40: =F15*'7. Central IT'!$F$4*10^(-9) -> 1.229039045 | G40: =G15*'7. Central IT'!$F$4*10^(-9) -> 1.711835464 | H40: =H15*'7. Central IT'!$F$4*10^(-9) -> 1.819332567 | I40: =I15*'7. Central IT'!$F$4*10^(-9) -> 1.929979335 | J40: =J15*'7. Central IT'!$F$4*10^(-9) -> 2.043868053 | K40: =K15*'7. Central IT'!$F$4*10^(-9) -> 2.16109371 | L40: =L15*'7. Central IT'!$F$4*10^(-9) -> 2.281754079 | M40: =M15*'7. Central IT'!$F$4*10^(-9) -> 2.405949797 | N40: =N15*'7. Central IT'!$F$4*10^(-9) -> 2.53378445 | O40: =O15*'7. Central IT'!$F$4*10^(-9) -> 2.665364658 | P40: =P15*'7. Central IT'!$F$4*10^(-9) -> 2.800800166 | Q40: =Q15*'7. Central IT'!$F$4*10^(-9) -> 2.940203934 | R40: =R15*'7. Central IT'!$F$4*10^(-9) -> 3.083692233 | S40: =S15*'7. Central IT'!$F$4*10^(-9) -> 3.231384739
B41: Authentication storage requirement cumulative | C41: in TB | D41: =D40 -> 0 | E41: =E40 -> 0.4557011192 | F41: 1.229039045 | G41: 1.711835464 | H41: 1.819332567 | I41: 1.929979335 | J41: 2.043868053 | K41: 2.16109371 | L41: 2.281754079 | M41: 2.405949797 | N41: 2.53378445 | O41: 2.665364658 | P41: 2.800800166 | Q41: 2.940203934 | R41: 3.083692233 | S41: 3.231384739
B42: Storage disk required for enrolment | C42: no. of disks | D42: =ROUNDUP(D39*2/$K$7,0) -> 0 | E42: =ROUNDUP(E39*2/$K$7,0) -> 3 | F42: 7 | G42: 10 | H42: 10 | I42: 11 | J42: 11 | K42: 12 | L42: 13 | M42: 13 | N42: 14 | O42: 15 | P42: 15 | Q42: 16 | R42: 17 | S42: 18
B43: storage disk required for dedup | C43: no. of disks | D43: =ROUNDUP(D40*2/$K$7,0) -> 0 | E43: 1 | F43: 1 | G43: 1 | H43: 1 | I43: 1 | J43: 1 | K43: 1 | L43: 1 | M43: 1 | N43: 1 | O43: 1 | P43: 1 | Q43: 1 | R43: 1 | S43: 1
B44: storage disk required for authentication | C44: no. of disks | D44: 0 | E44: 1 | F44: 1 | G44: 1 | H44: 1 | I44: 1 | J44: 1 | K44: 1 | L44: 1 | M44: 1 | N44: 1 | O44: 1 | P44: 1 | Q44: 1 | R44: 1 | S44: 1
D47: per unit cost | E47: no. of unit required | F47: total cost
A48: Static hardware | B48: Load balancer | D48: ='0.2 Unit cost assumptions'!F71 -> 20000 | E48: 2 | F48: =E48*D48 -> 40000
B49: Unified threat management | D49: ='0.2 Unit cost assumptions'!F72 -> 30000 | E49: 2 | F49: =E49*D49 -> 60000
B50: One time password hardware | D50: ='0.2 Unit cost assumptions'!F73 -> 100000 | E50: 1 | F50: 100000
B51: SAN switch | D51: ='0.2 Unit cost assumptions'!F74 -> 60000 | E51: 4 | F51: 240000
B52: Core switch | D52: ='0.2 Unit cost assumptions'!F75 -> 10000 | E52: 4 | F52: 40000
B53: Tape library | D53: ='0.2 Unit cost assumptions'!F76 -> 15000 | E53: 2 | F53: 30000
B54: NAS | D54: ='0.2 Unit cost assumptions'!F77 -> 20000 | E54: 4 | F54: 80000
B55: Total fixed hardware cost | F55: =SUM(F48:F54) -> 590000
B56: hardware maintenance cost | F56: =F55*Hardware_AMC -> 88500
B58: Selection of default option for deduplication | C58: Input or not | D58: Deduplication Can be done
A59: 1 | B59: Finger prints | C59: ='0.4 All inputs'!B11*'0.4 All inputs'!C11 -> 10 | D59: =IF(C59>0,1,0) -> 1
A60: 2 | B60: Iris | C60: ='0.4 All inputs'!D11*'0.4 All inputs'!E11 -> 0 | D60: =IF(C60>0,1,0) -> 0
A61: 3 | B61: Voice | C61: ='0.4 All inputs'!F11 -> 0 | D61: 0
A62: 4 | B62: Face | C62: ='0.4 All inputs'!G11 -> 1 | D62: 1
B63: Sum | C63: =SUM(C59:C62) -> 11 | D63: Is selection right for biometric dedup
B64: Selected biometric for dedup as per input | C64: ='0.4 All inputs'!C45 -> 1 | D64: =INDEX(D59:D62,MATCH(C64,A59:A62,0)) -> 1
B65: If no input then deduplication can be done using | C65: =IF(C59>0,A59,IF(C60>0,A60,IF(C61>0,A61,IF(C62>0,A62,1)))) -> 1
B66: Deduplication to be performed using | C66: =IF(D64=1,C64,C65) -> 1
B68: Selected biometric for authentication as per input | C68: ='0.4 All inputs'!B45 -> 1 | D68: =INDEX(D59:D62,MATCH(C68,A59:A62,0)) -> 1
B69: Authentication to be performed using | C69: =IF(D68=1,C68,C65) -> 1

Sheet 8. Model Output (hidden)
A1: Average inflation rate | B1: ='0.4 All inputs'!G15 -> 0.018
A4: Constant Term Output | C4: ='1. Enrolment'!D13 -> 0 | D4: ='1. Enrolment'!E13 -> 1 | E4: ='1. Enrolment'!F13 -> 2 | F4: ='1. Enrolment'!G13 -> 3 | G4: ='1. Enrolment'!H13 -> 4 | H4: ='1. Enrolment'!I13 -> 5 | I4: ='1. Enrolment'!J13 -> 6 | J4: ='1. Enrolment'!K13 -> 7 | K4: ='1. Enrolment'!L13 -> 8 | L4: ='1. Enrolment'!M13 -> 9 | M4: ='1. Enrolment'!N13 -> 10 | N4: ='1. Enrolment'!O13 -> 11 | O4: ='1. Enrolment'!P13 -> 12 | P4: ='1. Enrolment'!Q13 -> 13 | Q4: ='1. Enrolment'!R13 -> 14
C5: ='1. Enrolment'!D14 -> 2018 | D5: ='1. Enrolment'!E14 -> 2019 | E5: ='1. Enrolment'!F14 -> 2020 | F5: ='1. Enrolment'!G14 -> 2021 | G5: ='1. Enrolment'!H14 -> 2022 | H5: ='1. Enrolment'!I14 -> 2023 | I5: ='1. Enrolment'!J14 -> 2024 | J5: ='1. Enrolment'!K14 -> 2025 | K5: ='1. Enrolment'!L14 -> 2026 | L5: ='1. Enrolment'!M14 -> 2027 | M5: ='1. Enrolment'!N14 -> 2028 | N5: ='1. Enrolment'!O14 -> 2029 | O5: ='1. Enrolment'!P14 -> 2030 | P5: ='1. Enrolment'!Q14 -> 2031 | Q5: ='1. Enrolment'!R14 -> 2032 | S5: Total expenditure till completion of Enrolment phase | T5: Average per year expenditure in steady phase
C6: =IF('1. Enrolment'!D17=0,"Development Year",IF('1. Enrolment'!D17=1,"Enrolment Phase",IF('1. Enrolment'!D17=2,"Steady State"))) -> Development Year | D6: =IF('1. Enrolment'!E17=0,"Development Year",IF('1. Enrolment'!E17=1,"Enrolment Phase",IF('1. Enrolment'!E17=2,"Steady State"))) -> Enrolment Phase | E6: =IF('1. Enrolment'!F17=0,"Development Year",IF('1. Enrolment'!F17=1,"Enrolment Phase",IF('1. Enrolment'!F17=2,"Steady State"))) -> Enrolment Phase | F6: =IF('1. Enrolment'!G17=0,"Development Year",IF('1. Enrolment'!G17=1,"Enrolment Phase",IF('1. Enrolment'!G17=2,"Steady State"))) -> Enrolment Phase | G6: =IF('1. Enrolment'!H17=0,"Development Year",IF('1. Enrolment'!H17=1,"Enrolment Phase",IF('1. Enrolment'!H17=2,"Steady State"))) -> Steady State | H6: =IF('1. Enrolment'!I17=0,"Development Year",IF('1. Enrolment'!I17=1,"Enrolment Phase",IF('1. Enrolment'!I17=2,"Steady State"))) -> Steady State | I6: =IF('1. Enrolment'!J17=0,"Development Year",IF('1. Enrolment'!J17=1,"Enrolment Phase",IF('1. Enrolment'!J17=2,"Steady State"))) -> Steady State | J6: =IF('1. Enrolment'!K17=0,"Development Year",IF('1. Enrolment'!K17=1,"Enrolment Phase",IF('1. Enrolment'!K17=2,"Steady State"))) -> Steady State | K6: =IF('1. Enrolment'!L17=0,"Development Year",IF('1. Enrolment'!L17=1,"Enrolment Phase",IF('1. Enrolment'!L17=2,"Steady State"))) -> Steady State | L6: =IF('1. Enrolment'!M17=0,"Development Year",IF('1. Enrolment'!M17=1,"Enrolment Phase",IF('1. Enrolment'!M17=2,"Steady State"))) -> Steady State | M6: =IF('1. Enrolment'!N17=0,"Development Year",IF('1. Enrolment'!N17=1,"Enrolment Phase",IF('1. Enrolment'!N17=2,"Steady State"))) -> Steady State | N6: =IF('1. Enrolment'!O17=0,"Development Year",IF('1. Enrolment'!O17=1,"Enrolment Phase",IF('1. Enrolment'!O17=2,"Steady State"))) -> Steady State | O6: =IF('1. Enrolment'!P17=0,"Development Year",IF('1. Enrolment'!P17=1,"Enrolment Phase",IF('1. Enrolment'!P17=2,"Steady State"))) -> Steady State | P6: =IF('1. Enrolment'!Q17=0,"Development Year",IF('1. Enrolment'!Q17=1,"Enrolment Phase",IF('1. Enrolment'!Q17=2,"Steady State"))) -> Steady State | Q6: =IF('1. Enrolment'!R17=0,"Development Year",IF('1. Enrolment'!R17=1,"Enrolment Phase",IF('1. Enrolment'!R17=2,"Steady State"))) -> Steady State | R6: Category wise Total
A7: Enrolment | B7: Capital expenditure | C7: ='1. Enrolment'!D45 -> 2893278.214 | D7: ='1. Enrolment'!E45 -> 2473550 | E7: ='1. Enrolment'!F45 -> 131150 | F7: ='1. Enrolment'!G45 -> 0 | G7: ='1. Enrolment'!H45 -> 0 | H7: ='1. Enrolment'!I45 -> 2281400 | I7: ='1. Enrolment'!J45 -> 131150 | J7: ='1. Enrolment'!K45 -> 3050 | K7: ='1. Enrolment'!L45 -> 3050 | L7: ='1. Enrolment'!M45 -> 2284450 | M7: ='1. Enrolment'!N45 -> 134200 | N7: ='1. Enrolment'!O45 -> 6100 | O7: ='1. Enrolment'!P45 -> 6100 | P7: ='1. Enrolment'!Q45 -> 2287500 | Q7: ='1. Enrolment'!R45 -> 137250 | R7: =SUM(C7:Q7) -> 12772228.21 | S7: =SUMIFS(C7:Q7,$C$6:$Q$6,"Enrolment Phase")+SUMIFS(C7:Q7,$C$6:$Q$6,"Development Year") -> 5497978.214 | T7: =AVERAGEIF($C$6:$Q$6,"Steady State",C7:Q7) -> 661295.4545
B8: Operational expenditure | C8: ='1. Enrolment'!D46 -> 433991.7322 | D8: ='1. Enrolment'!E46 -> 2461491.732 | E8: ='1. Enrolment'!F46 -> 2568991.732 | F8: ='1. Enrolment'!G46 -> 2498991.732 | G8: ='1. Enrolment'!H46 -> 2408991.732 | H8: ='1. Enrolment'!I46 -> 2411491.732 | I8: ='1. Enrolment'!J46 -> 2411491.732 | J8: ='1. Enrolment'!K46 -> 2413991.732 | K8: ='1. Enrolment'!L46 -> 2416491.732 | L8: ='1. Enrolment'!M46 -> 2418991.732 | M8: ='1. Enrolment'!N46 -> 2421491.732 | N8: ='1. Enrolment'!O46 -> 2423991.732 | O8: ='1. Enrolment'!P46 -> 2426491.732 | P8: ='1. Enrolment'!Q46 -> 2428991.732 | Q8: ='1. Enrolment'!R46 -> 2431491.732 | R8: =SUM(C8:Q8) -> 34577375.98 | S8: =SUMIFS(C8:Q8,$C$6:$Q$6,"Enrolment Phase")+SUMIFS(C8:Q8,$C$6:$Q$6,"Development Year") -> 7963466.929 | T8: =AVERAGEIF($C$6:$Q$6,"Steady State",C8:Q8) -> 2419446.278
A9: Human resource | B9: Capital expenditure | C9: 0 | D9: 0 | E9: 0 | F9: 0 | G9: 0 | H9: 0 | I9: 0 | J9: 0 | K9: 0 | L9: 0 | M9: 0 | N9: 0 | O9: 0 | P9: 0 | Q9: 0 | R9: 0 | S9: 0 | T9: 0
B10: Operational expenditure | C10: ='2. human resource'!C19 -> 14203963.33 | D10: ='2. human resource'!D19 -> 17357383.1 | E10: ='2. human resource'!E19 -> 17378071.35 | F10: ='2. human resource'!F19 -> 17242473.39 | G10: ='2. human resource'!G19 -> 17080565.38 | H10: ='2. human resource'!H19 -> 17085287.7 | I10: ='2. human resource'!I19 -> 17085062.83 | J10: ='2. human resource'!J19 -> 17089785.14 | K10: ='2. human resource'!K19 -> 17094282.59 | L10: ='2. human resource'!L19 -> 17098780.03 | M10: ='2. human resource'!M19 -> 17103277.48 | N10: ='2. human resource'!N19 -> 17107774.92 | O10: ='2. human resource'!O19 -> 17112272.37 | P10: ='2. human resource'!P19 -> 17116769.81 | Q10: ='2. human resource'!Q19 -> 17121267.26 | R10: 254277016.7 | S10: 66181891.17 | T10: 17099556.87
A11: Helpdesk, IEC and CB | B11: Capital expenditure | C11: ='3. Helpdesk,IEC and T&CB'!D34 -> 500000 | D11: ='3. Helpdesk,IEC and T&CB'!E34 -> 0 | E11: ='3. Helpdesk,IEC and T&CB'!F34 -> 0 | F11: ='3. Helpdesk,IEC and T&CB'!G34 -> 0 | G11: ='3. Helpdesk,IEC and T&CB'!H34 -> 0 | H11: ='3. Helpdesk,IEC and T&CB'!I34 -> 0 | I11: ='3. Helpdesk,IEC and T&CB'!J34 -> 0 | J11: ='3. Helpdesk,IEC and T&CB'!K34 -> 0 | K11: ='3. Helpdesk,IEC and T&CB'!L34 -> 0 | L11: ='3. Helpdesk,IEC and T&CB'!M34 -> 0 | M11: ='3. Helpdesk,IEC and T&CB'!N34 -> 0 | N11: ='3. Helpdesk,IEC and T&CB'!O34 -> 0 | O11: ='3. Helpdesk,IEC and T&CB'!P34 -> 0 | P11: ='3. Helpdesk,IEC and T&CB'!Q34 -> 0 | Q11: ='3. Helpdesk,IEC and T&CB'!R34 -> 0 | R11: 500000 | S11: 500000 | T11: 0
B12: Operational expenditure | C12: ='3. Helpdesk,IEC and T&CB'!D35 -> 664000 | D12: ='3. Helpdesk,IEC and T&CB'!E35 -> 830208.5759 | E12: ='3. Helpdesk,IEC and T&CB'!F35 -> 1194564.089 | F12: ='3. Helpdesk,IEC and T&CB'!G35 -> 926817.459 | G12: ='3. Helpdesk,IEC and T&CB'!H35 -> 430945.8453 | H12: ='3. Helpdesk,IEC and T&CB'!I35 -> 444901.659 | I12: ='3. Helpdesk,IEC and T&CB'!J35 -> 459266.3781 | J12: ='3. Helpdesk,IEC and T&CB'!K35 -> 474051.9834 | K12: ='3. Helpdesk,IEC and T&CB'!L35 -> 489270.807 | L12: ='3. Helpdesk,IEC and T&CB'!M35 -> 504935.5421 | M12: ='3. Helpdesk,IEC and T&CB'!N35 -> 521059.254 | N12: ='3. Helpdesk,IEC and T&CB'!O35 -> 537655.3906 | O12: ='3. Helpdesk,IEC and T&CB'!P35 -> 554737.794 | P12: ='3. Helpdesk,IEC and T&CB'!Q35 -> 572320.7118 | Q12: ='3. Helpdesk,IEC and T&CB'!R35 -> 590418.8092 | R12: 9195154.298 | S12: 3615590.123 | T12: 507233.1068
A13: Software | B13: Capital expenditure | C13: ='4. Software'!D38 -> 2425000 | D13: ='4. Software'!E38 -> 0 | E13: ='4. Software'!F38 -> 0 | F13: ='4. Software'!G38 -> 0 | G13: ='4. Software'!H38 -> 0 | H13: ='4. Software'!I38 -> 0 | I13: ='4. Software'!J38 -> 0 | J13: ='4. Software'!K38 -> 0 | K13: ='4. Software'!L38 -> 0 | L13: ='4. Software'!M38 -> 0 | M13: ='4. Software'!N38 -> 0 | N13: ='4. Software'!O38 -> 0 | O13: ='4. Software'!P38 -> 0 | P13: ='4. Software'!Q38 -> 0 | Q13: ='4. Software'!R38 -> 0 | R13: 2425000 | S13: 2425000 | T13: 0
B14: Operational expenditure | C14: ='4. Software'!D39 -> 0 | D14: ='4. Software'!E39 -> 1883358.534 | E14: ='4. Software'!F39 -> 2770277.51 | F14: ='4. Software'!G39 -> 1958953.18 | G14: ='4. Software'!H39 -> 908871.101 | H14: ='4. Software'!I39 -> 917353.5551 | I14: ='4. Software'!J39 -> 926084.5451 | J14: ='4. Software'!K39 -> 935071.3532 | K14: ='4. Software'!L39 -> 944321.4747 | L14: ='4. Software'!M39 -> 953842.6248 | M14: ='4. Software'!N39 -> 966266.2539 | N14: ='4. Software'!O39 -> 976353.5172 | O14: ='4. Software'!P39 -> 986736.3373 | P14: ='4. Software'!Q39 -> 997423.3741 | Q14: ='4. Software'!R39 -> 1008423.541 | R14: 17133336.9 | S14: 6612589.224 | T14: 956431.607
A15: Facility cost | B15: Capital expenditure | C15: ='5. Facility cost'!D26 -> 68471000 | D15: ='5. Facility cost'!E26 -> 0 | E15: ='5. Facility cost'!F26 -> 0 | F15: ='5. Facility cost'!G26 -> 0 | G15: ='5. Facility cost'!H26 -> 0 | H15: ='5. Facility cost'!I26 -> 0 | I15: ='5. Facility cost'!J26 -> 0 | J15: ='5. Facility cost'!K26 -> 0 | K15: ='5. Facility cost'!L26 -> 0 | L15: ='5. Facility cost'!M26 -> 0 | M15: ='5. Facility cost'!N26 -> 0 | N15: ='5. Facility cost'!O26 -> 0 | O15: ='5. Facility cost'!P26 -> 0 | P15: ='5. Facility cost'!Q26 -> 0 | Q15: ='5. Facility cost'!R26 -> 0 | R15: 68471000 | S15: 68471000 | T15: 0
B16: Operational expenditure | C16: ='5. Facility cost'!D27 -> 11301300 | D16: ='5. Facility cost'!E27 -> 11301300 | E16: ='5. Facility cost'!F27 -> 11301300 | F16: ='5. Facility cost'!G27 -> 11301300 | G16: ='5. Facility cost'!H27 -> 11301300 | H16: ='5. Facility cost'!I27 -> 11301300 | I16: ='5. Facility cost'!J27 -> 11301300 | J16: ='5. Facility cost'!K27 -> 11301300 | K16: ='5. Facility cost'!L27 -> 11301300 | L16: ='5. Facility cost'!M27 -> 11301300 | M16: ='5. Facility cost'!N27 -> 11301300 | N16: ='5. Facility cost'!O27 -> 11301300 | O16: ='5. Facility cost'!P27 -> 11301300 | P16: ='5. Facility cost'!Q27 -> 11301300 | Q16: ='5. Facility cost'!R27 -> 11301300 | R16: 169519500 | S16: 45205200 | T16: 11301300
A17: Identity Credential | B17: Capital expenditure | C17: 0 | D17: 0 | E17: 0 | F17: 0 | G17: 0 | H17: 0 | I17: 0 | J17: 0 | K17: 0 | L17: 0 | M17: 0 | N17: 0 | O17: 0 | P17: 0 | Q17: 0 | R17: 0 | S17: 0 | T17: 0
B18: Operational expenditure | C18: ='6. Identity Credential'!C17 -> 0 | D18: ='6. Identity Credential'!D17 -> 12516590.74 | E18: ='6. Identity Credential'!E17 -> 21241015.02 | F18: ='6. Identity Credential'!F17 -> 13260808.33 | G18: ='6. Identity Credential'!G17 -> 2952587.085 | H18: ='6. Identity Credential'!H17 -> 3039097.886 | I18: ='6. Identity Credential'!I17 -> 3128143.454 | J18: ='6. Identity Credential'!J17 -> 3219798.058 | K18: ='6. Identity Credential'!K17 -> 3314138.141 | L18: ='6. Identity Credential'!L17 -> 3411242.388 | M18: ='6. Identity Credential'!M17 -> 3511191.79 | N18: ='6. Identity Credential'!N17 -> 3614069.71 | O18: ='6. Identity Credential'!O17 -> 3719961.952 | P18: ='6. Identity Credential'!P17 -> 3828956.837 | Q18: ='6. Identity Credential'!Q17 -> 3941145.273 | R18: 84698746.66 | S18: 47018414.08 | T18: 3425484.779
A19: Central IT | B19: Capital expenditure | C19: ='7. Central IT'!D41 -> 2180000 | D19: ='7. Central IT'!E41 -> 280000 | E19: ='7. Central IT'!F41 -> 600000 | F19: ='7. Central IT'!G41 -> 60000 | G19: ='7. Central IT'!H41 -> 0 | H19: ='7. Central IT'!I41 -> 120000 | I19: ='7. Central IT'!J41 -> 0 | J19: ='7. Central IT'!K41 -> 4380000 | K19: ='7. Central IT'!L41 -> 580000 | L19: ='7. Central IT'!M41 -> 1200000 | M19: ='7. Central IT'!N41 -> 140000 | N19: ='7. Central IT'!O41 -> 20000 | O19: ='7. Central IT'!P41 -> 240000 | P19: ='7. Central IT'!Q41 -> 20000 | Q19: ='7. Central IT'!R41 -> 4480000 | R19: 14300000 | S19: 3120000 | T19: 1016363.636
B20: Operational expenditure | C20: ='7. Central IT'!D42 -> 1177000 | D20: ='7. Central IT'!E42 -> 1219000 | E20: ='7. Central IT'!F42 -> 1309000 | F20: ='7. Central IT'!G42 -> 1318000 | G20: ='7. Central IT'!H42 -> 1318000 | H20: ='7. Central IT'!I42 -> 1336000 | I20: ='7. Central IT'!J42 -> 1336000 | J20: ='7. Central IT'!K42 -> 1339000 | K20: ='7. Central IT'!L42 -> 1342000 | L20: ='7. Central IT'!M42 -> 1342000 | M20: ='7. Central IT'!N42 -> 1345000 | N20: ='7. Central IT'!O42 -> 1348000 | O20: ='7. Central IT'!P42 -> 1348000 | P20: ='7. Central IT'!Q42 -> 1351000 | Q20: ='7. Central IT'!R42 -> 1369000 | R20: 19797000 | S20: 5023000 | T20: 1343090.909
A21: Total | B21: Capital expenditure | C21: =C19+C17+C15+C13+C11+C9+C7 -> 76469278.21 | D21: =D19+D17+D15+D13+D11+D9+D7 -> 2753550 | E21: 731150 | F21: 60000 | G21: 0 | H21: 2401400 | I21: 131150 | J21: 4383050 | K21: 583050 | L21: 3484450 | M21: 274200 | N21: 26100 | O21: 246100 | P21: 2307500 | Q21: 4617250 | R21: =SUM(C21:Q21) -> 98468228.21 | S21: 80013978.21 | T21: 1677659.091
B22: Operational expenditure | C22: =C20+C18+C16+C14+C12+C10+C8 -> 27780255.06 | D22: =D20+D18+D16+D14+D12+D10+D8 -> 47569332.68 | E22: 57763219.69 | F22: 48507344.09 | G22: 36401261.15 | H22: 36535432.53 | I22: 36647348.94 | J22: 36772998.27 | K22: 36901804.74 | L22: 37031092.32 | M22: 37169586.51 | N22: 37309145.27 | O22: 37449500.18 | P22: 37596762.47 | Q22: 37763046.61 | R22: =SUM(C22:Q22) -> 589198130.5 | S22: 181620151.5 | T22: 37052543.55
A23: Grand total | C23: =C22+C21 -> 104249533.3 | D23: =D22+D21 -> 50322882.68 | E23: 58494369.69 | F23: 48567344.09 | G23: 36401261.15 | H23: 38936832.53 | I23: 36778498.94 | J23: 41156048.27 | K23: 37484854.74 | L23: 40515542.32 | M23: 37443786.51 | N23: 37335245.27 | O23: 37695600.18 | P23: 39904262.47 | Q23: 42380296.61 | R23: =R22+R21 -> 687666358.7 | S23: 261634129.7 | T23: 38730202.64
A24: Year on year enrolments | C24: ='1. Enrolment'!D25 -> 0 | D24: ='1. Enrolment'!E25 -> 3038007.462 | E24: ='1. Enrolment'!F25 -> 5155586.169 | F24: ='1. Enrolment'!G25 -> 3218642.798 | G24: ='1. Enrolment'!H25 -> 716647.3506 | H24: ='1. Enrolment'!I25 -> 737645.118 | I24: ='1. Enrolment'!J25 -> 759258.12 | J24: ='1. Enrolment'!K25 -> 781504.3829 | K24: ='1. Enrolment'!L25 -> 804402.4613 | L24: ='1. Enrolment'!M25 -> 827971.4534 | M24: ='1. Enrolment'!N25 -> 852231.017 | N24: ='1. Enrolment'!O25 -> 877201.3858 | O24: ='1. Enrolment'!P25 -> 902903.3864 | P24: ='1. Enrolment'!Q25 -> 929358.4556 | Q24: ='1. Enrolment'!R25 -> 956588.6584
A25: Cumulative enrolments | C25: ='1. Enrolment'!D26 -> 0 | D25: ='1. Enrolment'!E26 -> 3038007.462 | E25: ='1. Enrolment'!F26 -> 8193593.63 | F25: ='1. Enrolment'!G26 -> 11412236.43 | G25: ='1. Enrolment'!H26 -> 12128883.78 | H25: ='1. Enrolment'!I26 -> 12866528.9 | I25: ='1. Enrolment'!J26 -> 13625787.02 | J25: ='1. Enrolment'!K26 -> 14407291.4 | K25: ='1. Enrolment'!L26 -> 15211693.86 | L25: ='1. Enrolment'!M26 -> 16039665.31 | M25: ='1. Enrolment'!N26 -> 16891896.33 | N25: ='1. Enrolment'!O26 -> 17769097.72 | O25: ='1. Enrolment'!P26 -> 18672001.1 | P25: ='1. Enrolment'!Q26 -> 19601359.56 | Q25: ='1. Enrolment'!R26 -> 20557948.22
A26: Enrolment Center required | C26: ='1. Enrolment'!D36 -> 0 | D26: ='1. Enrolment'!E36 -> 811 | E26: ='1. Enrolment'!F36 -> 854 | F26: ='1. Enrolment'!G36 -> 826 | G26: ='1. Enrolment'!H36 -> 790 | H26: ='1. Enrolment'!I36 -> 791 | I26: ='1. Enrolment'!J36 -> 791 | J26: ='1. Enrolment'!K36 -> 792 | K26: ='1. Enrolment'!L36 -> 793 | L26: ='1. Enrolment'!M36 -> 794 | M26: ='1. Enrolment'!N36 -> 795 | N26: ='1. Enrolment'!O36 -> 796 | O26: ='1. Enrolment'!P36 -> 797 | P26: ='1. Enrolment'!Q36 -> 798 | Q26: ='1. Enrolment'!R36 -> 799
A27: Cumulative expense | C27: =SUM(C23:$C$23) -> 104249533.3 | D27: =SUM($C23:D$23) -> 154572416 | E27: =SUM($C23:E$23) -> 213066785.7 | F27: =SUM($C23:F$23) -> 261634129.7 | G27: =SUM($C23:G$23) -> 298035390.9 | H27: =SUM($C23:H$23) -> 336972223.4 | I27: =SUM($C23:I$23) -> 373750722.4 | J27: =SUM($C23:J$23) -> 414906770.6 | K27: =SUM($C23:K$23) -> 452391625.4 | L27: =SUM($C23:L$23) -> 492907167.7 | M27: =SUM($C23:M$23) -> 530350954.2 | N27: =SUM($C23:N$23) -> 567686199.5 | O27: =SUM($C23:O$23) -> 605381799.7 | P27: =SUM($C23:P$23) -> 645286062.1 | Q27: =SUM($C23:Q$23) -> 687666358.7
A28: Cost per ID | D28: =D27/D25 -> 50.87953796 | E28: =E27/E25 -> 26.00407041 | F28: 22.92575442 | G28: 24.57236761 | H28: 26.18983147 | I28: 27.42966127 | J28: 28.7983882 | K28: 29.73972718 | L28: 30.73051451 | M28: 31.39676824 | N28: 31.94794741 | O28: 32.42190252 | P28: 32.92047473 | Q28: 33.45014548
A30: Current term output | C30: 1 | D30: =$C$30*((1+$B$1)^(D5-$C$5)) -> 1.018 | E30: =$C$30*((1+$B$1)^(E5-$C$5)) -> 1.036324 | F30: =$C$30*((1+$B$1)^(F5-$C$5)) -> 1.054977832 | G30: 1.073967433 | H30: 1.093298847 | I30: 1.112978226 | J30: 1.133011834 | K30: 1.153406047 | L30: 1.174167356 | M30: 1.195302368 | N30: 1.216817811 | O30: 1.238720532 | P30: 1.261017501 | Q30: 1.283715816
A31: Enrolment | B31: Capital expenditure | C31: =C7 -> 2893278.214 | D31: =D7 -> 2473550 | E31: 131150 | F31: 0 | G31: 0 | H31: 2281400 | I31: 131150 | J31: 3050 | K31: 3050 | L31: 2284450 | M31: 134200 | N31: 6100 | O31: 6100 | P31: 2287500 | Q31: 137250 | R31: =SUM(C31:Q31) -> 12772228.21 | S31: =SUMIFS(C31:Q31,$C$6:$Q$6,"Enrolment Phase")+SUMIFS(C31:Q31,$C$6:$Q$6,"Development Year") -> 5497978.214 | T31: =AVERAGEIF($C$6:$Q$6,"Steady State",C31:Q31) -> 661295.4545
B32: Operational expenditure | C32: =C8*C$30 -> 433991.7322 | D32: 2505798.583 | E32: 2662307.788 | F32: 2636380.88 | G32: 2587178.667 | H32: 2636481.13 | I32: 2683937.79 | J32: 2735081.2 | K32: 2787196.177 | L32: 2840301.126 | M32: 2894414.802 | N32: 2949556.313 | O32: 3005745.128 | P32: 3063001.084 | Q32: 3121344.393 | R32: 39542716.79 | S32: 8238478.983 | T32: =AVERAGEIF($C$6:$Q$6,"Steady State",C32:Q32) -> 2845839.801
A33: Human resource | B33: Capital expenditure | C33: =C9 -> 0 | D33: =D9 -> 0 | E33: 0 | F33: 0 | G33: 0 | H33: 0 | I33: 0 | J33: 0 | K33: 0 | L33: 0 | M33: 0 | N33: 0 | O33: 0 | P33: 0 | Q33: 0 | R33: 0 | S33: 0 | T33: 0
B34: Operational expenditure | C34: =C10*C$30 -> 14203963.33 | D34: 17669816 | E34: 18009312.41 | F34: 18190427.2 | G34: 18343970.96 | H34: 18679325.34 | I34: 19015302.92 | J34: 19362928.81 | K34: 19716648.91 | L34: 20076829.34 | M34: 20443588.08 | N34: 20817045.23 | O34: 21197323.12 | P34: 21584546.3 | Q34: 21978841.57 | R34: 289289869.5 | S34: 68073518.93 | T34: 20110577.33
A35: Helpdesk, IEC and CB | B35: Capital expenditure | C35: =C11 -> 500000 | D35: =D11 -> 0 | E35: 0 | F35: 0 | G35: 0 | H35: 0 | I35: 0 | J35: 0 | K35: 0 | L35: 0 | M35: 0 | N35: 0 | O35: 0 | P35: 0 | Q35: 0 | R35: 500000 | S35: 500000 | T35: 0
B36: Operational expenditure | C36: =C12*C$30 -> 664000 | D36: 845152.3303 | E36: 1237955.434 | F36: 977771.8735 | G36: 462821.8032 | H36: 486410.4707 | I36: 511153.4788 | J36: 537106.5072 | K36: 564327.9075 | L36: 592878.8304 | M36: 622823.3603 | N36: 654228.6554 | O36: 687165.0951 | P36: 721706.4339 | Q36: 757929.9635 | R36: 10323432.14 | S36: 3724879.638 | T36: 599868.4096
A37: Software | B37: Capital expenditure | C37: =C13 -> 2425000 | D37: =D13 -> 0 | E37: 0 | F37: 0 | G37: 0 | H37: 0 | I37: 0 | J37: 0 | K37: 0 | L37: 0 | M37: 0 | N37: 0 | O37: 0 | P37: 0 | Q37: 0 | R37: 2425000 | S37: 2425000 | T37: 0
B38: Operational expenditure | C38: =C14*C$30 -> 0 | D38: 1917258.987 | E38: 2870905.07 | F38: 2066652.179 | G38: 976097.9632 | H38: 1002941.584 | I38: 1030711.934 | J38: 1059446.909 | K38: 1089186.099 | L38: 1119970.873 | M38: 1154980.342 | N38: 1188044.35 | O38: 1222290.56 | P38: 1257768.331 | Q38: 1294529.249 | R38: 19250784.43 | S38: 6854816.236 | T38: 1126906.199
A39: Facility cost | B39: Capital expenditure | C39: =C15 -> 68471000 | D39: =D15 -> 0 | E39: 0 | F39: 0 | G39: 0 | H39: 0 | I39: 0 | J39: 0 | K39: 0 | L39: 0 | M39: 0 | N39: 0 | O39: 0 | P39: 0 | Q39: 0 | R39: 68471000 | S39: 68471000 | T39: 0
B40: Operational expenditure | C40: =C16*C$30 -> 11301300 | D40: 11504723.4 | E40: 11711808.42 | F40: 11922620.97 | G40: 12137228.15 | H40: 12355698.26 | I40: 12578100.83 | J40: 12804506.64 | K40: 13034987.76 | L40: 13269617.54 | M40: 13508470.66 | N40: 13751623.13 | O40: 13999152.34 | P40: 14251137.09 | Q40: 14507657.55 | R40: 192638632.7 | S40: 46440452.79 | T40: 13290743.63
A41: Identity Credential | B41: Capital expenditure | C41: =C17 -> 0 | D41: =D17 -> 0 | E41: 0 | F41: 0 | G41: 0 | H41: 0 | I41: 0 | J41: 0 | K41: 0 | L41: 0 | M41: 0 | N41: 0 | O41: 0 | P41: 0 | Q41: 0 | R41: 0 | S41: 0 | T41: 0
B42: Operational expenditure | C42: =C18*C$30 -> 0 | D42: 12741889.38 | E42: 22012573.65 | F42: 13989858.82 | G42: 3170982.372 | H42: 3322642.214 | I42: 3481555.552 | J42: 3648069.303 | K42: 3822546.972 | L42: 4005369.455 | M42: 4196935.862 | N42: 4397664.393 | O42: 4607993.247 | P42: 4828381.583 | Q42: 5059310.52 | R42: 93285773.31 | S42: 48744321.84 | T42: 4049222.861
A43: Central IT | B43: Capital expenditure | C43: =C19 -> 2180000 | D43: =D19 -> 280000 | E43: 600000 | F43: 60000 | G43: 0 | H43: 120000 | I43: 0 | J43: 4380000 | K43: 580000 | L43: 1200000 | M43: 140000 | N43: 20000 | O43: 240000 | P43: 20000 | Q43: 4480000 | R43: 14300000 | S43: 3120000 | T43: 1016363.636
B44: Operational expenditure | C44: =C20*C$30 -> 1177000 | D44: 1240942 | E44: 1356548.116 | F44: 1390460.783 | G44: 1415489.077 | H44: 1460647.259 | I44: 1486938.91 | J44: 1517102.846 | K44: 1547870.915 | L44: 1575732.592 | M44: 1607681.685 | N44: 1640270.409 | O44: 1669795.277 | P44: 1703634.644 | Q44: 1757406.952 | R44: 22547521.46 | S44: 5164950.899 | T44: 1580233.688
A45: Total | B45: Capital expenditure | C45: =C43+C41+C39+C37+C35+C33+C31 -> 76469278.21 | D45: =D43+D41+D39+D37+D35+D33+D31 -> 2753550 | E45: 731150 | F45: 60000 | G45: 0 | H45: 2401400 | I45: 131150 | J45: 4383050 | K45: 583050 | L45: 3484450 | M45: 274200 | N45: 26100 | O45: 246100 | P45: 2307500 | Q45: 4617250 | R45: =SUM(C45:Q45) -> 98468228.21 | S45: 80013978.21 | T45: 1677659.091
B46: Operational expenditure | C46: =C44+C42+C40+C38+C36+C34+C32 -> 27780255.06 | D46: =D44+D42+D40+D38+D36+D34+D32 -> 48425580.67 | E46: 59861410.88 | F46: 51174172.7 | G46: 39093768.99 | H46: 39944146.25 | I46: 40787701.41 | J46: 41664242.22 | K46: 42562764.74 | L46: 43480699.76 | M46: 44428894.78 | N46: 45398432.48 | O46: 46389464.77 | P46: 47410175.46 | Q46: 48477020.2 | R46: =SUM(C46:Q46) -> 666878730.4 | S46: 187241419.3 | T46: 43603391.92
A47: Grand total | C47: =C45+C46 -> 104249533.3 | D47: =D45+D46 -> 51179130.67 | E47: 60592560.88 | F47: 51234172.7 | G47: 39093768.99 | H47: 42345546.25 | I47: 40918851.41 | J47: 46047292.22 | K47: 43145814.74 | L47: 46965149.76 | M47: 44703094.78 | N47: 45424532.48 | O47: 46635564.77 | P47: 49717675.46 | Q47: 53094270.2 | R47: 765346958.6 | S47: 267255397.5 | T47: 45281051.01
A48: Cumulative expense | C48: =SUM(C47:$C$47) -> 104249533.3 | D48: =SUM($C47:D$47) -> 155428663.9 | E48: =SUM($C47:E$47) -> 216021224.8 | F48: =SUM($C47:F$47) -> 267255397.5 | G48: =SUM($C47:G$47) -> 306349166.5 | H48: =SUM($C47:H$47) -> 348694712.8 | I48: =SUM($C47:I$47) -> 389613564.2 | J48: =SUM($C47:J$47) -> 435660856.4 | K48: =SUM($C47:K$47) -> 478806671.1 | L48: =SUM($C47:L$47) -> 525771820.9 | M48: =SUM($C47:M$47) -> 570474915.7 | N48: =SUM($C47:N$47) -> 615899448.2 | O48: =SUM($C47:O$47) -> 662535012.9 | P48: =SUM($C47:P$47) -> 712252688.4 | Q48: =SUM($C47:Q$47) -> 765346958.6
A49: Cost per ID | D49: =D48/D25 -> 51.16138321 | E49: =E48/E25 -> 26.36464958 | F49: 23.41831938 | G49: 25.25782027 | H49: 27.10091553 | I49: 28.59383929 | J49: 30.23891475 | K49: 31.47622319 | L49: 32.77947579 | M49: 33.77210613 | N49: 34.66126744 | O49: 35.48280708 | P49: 36.33690236 | Q49: 37.22876186
A52: Category wise | B52: Constant | C52: Current
A53: Enrolment | B53: =R7+R8 -> 47349604.2 | C53: =R32+R31 -> 52314945.01
A54: Human resource | B54: =R9+R10 -> 254277016.7 | C54: =R34+R33 -> 289289869.5
A55: Helpdesk, IEC and CB | B55: =R12+R11 -> 9695154.298 | C55: =R36+R35 -> 10823432.14
A56: Software | B56: =R14+R13 -> 19558336.9 | C56: =R38+R37 -> 21675784.43
A57: Facility | B57: =R16+R15 -> 237990500 | C57: =R40+R39 -> 261109632.7
A58: Identity Credential | B58: =R18+R17 -> 84698746.66 | C58: =R42+R41 -> 93285773.31
A59: Central IT | B59: =R20+R19 -> 34097000 | C59: =R44+R43 -> 36847521.46
A61: Scenario-Inputs
A62: Enrolment timeline | B62: Input
A63: Enrolment start year | B63: ='0.6 UI Inputs'!B7 -> 2019
A64: Enrolment phase end year | B64: ='0.6 UI Inputs'!B8 -> 2021
A65: Biometric data points | B65: Yes / No
A66: Facial photograph | B66: ='0.6 UI Inputs'!B9 -> TRUE
A67: electronic signature | B67: ='0.6 UI Inputs'!B10 -> FALSE
A68: Voice biometric | B68: ='0.6 UI Inputs'!B11 -> FALSE
A69: finger prints | B69: =IF('0.6 UI Inputs'!B12=TRUE, '0.6 UI Inputs'!B12 & ", no. of fingers " & '0.6 UI Inputs'!C12, '0.6 UI Inputs'!B12) -> TRUE, no. of fingers 10
A70: iris | B70: =IF('0.6 UI Inputs'!B13=TRUE, '0.6 UI Inputs'!B13 & ", no. of iris " & '0.6 UI Inputs'!C13, '0.6 UI Inputs'!B13) -> FALSE
A71: Demographic data points
A72: no. of demographic data points | B72: ='0.6 UI Inputs'!B14 -> 10
A73: Identity credential
A74: Type of credential | B74: ='0.6 UI Inputs'!B15 -> Smart card
A75: Type of chip | B75: =IF(ISBLANK('0.6 UI Inputs'!B16)=TRUE,"",'0.6 UI Inputs'!B16) -> Hybrid chip
A76: Card material | B76: =IF(ISBLANK('0.6 UI Inputs'!B17)=TRUE,"",'0.6 UI Inputs'!B17) -> PC
A77: Level of security | B77: =IF(ISBLANK('0.6 UI Inputs'!B18)=TRUE,"",'0.6 UI Inputs'!B18) -> Level 3 (forensic)
A78: Mag strip | B78: =IF(ISBLANK('0.6 UI Inputs'!B19)=TRUE,"",'0.6 UI Inputs'!B19) -> Yes
A79: bar code | B79: =IF(ISBLANK('0.6 UI Inputs'!B20)=TRUE,"",'0.6 UI Inputs'!B20) -> 2D barcode
A80: Crvs linkages
A81: Crvs linkages | B81: ='0.6 UI Inputs'!B21 -> No linkages with CR department
A82: Additional points
A83: Eligible population | B83: ='0.7 UI input conversion'!B23 -> 0.7
A84: no. of regional offices | B84: ='0.7 UI input conversion'!B24 -> 20
A85: no. of district offices | B85: ='0.7 UI input conversion'!B25 -> 765

Sheet 8.1 Scenario 1 (hidden)

Sheet 8.2 Scenario 2 (hidden)

Sheet 8.3 Scenario 3 (hidden)

Sheet 8.4 Scenario 4 (hidden)

Sheet 9. Graphs (hidden)
B2: Scenario-Inputs | C2: Scenario 1 | D2: Scenario 2 | E2: Scenario 3 | F2: Scenario 4
B3: Enrolment timeline
B4: Enrolment start year | C4: ='8.1 Scenario 1'!B63 -> 0 | D4: ='8.2 Scenario 2'!B63 -> 0 | E4: ='8.3 Scenario 3'!B63 -> 0 | F4: ='8.4 Scenario 4'!B63 -> 0
B5: Enrolment phase end year | C5: ='8.1 Scenario 1'!B64 -> 0 | D5: ='8.2 Scenario 2'!B64 -> 0 | E5: ='8.3 Scenario 3'!B64 -> 0 | F5: ='8.4 Scenario 4'!B64 -> 0
B6: Biometric data points | C6: ='8.1 Scenario 1'!B64 -> 0 | D6: ='8.2 Scenario 2'!B64 -> 0 | E6: ='8.3 Scenario 3'!B64 -> 0 | F6: ='8.4 Scenario 4'!B64 -> 0
B7: Facial photograph | C7: ='8.1 Scenario 1'!B66 -> 0 | D7: ='8.2 Scenario 2'!B66 -> 0 | E7: ='8.3 Scenario 3'!B66 -> 0 | F7: ='8.4 Scenario 4'!B66 -> 0
B8: electronic signature | C8: ='8.1 Scenario 1'!B67 -> 0 | D8: ='8.2 Scenario 2'!B67 -> 0 | E8: ='8.3 Scenario 3'!B67 -> 0 | F8: ='8.4 Scenario 4'!B67 -> 0
B9: Voice biometric | C9: ='8.1 Scenario 1'!B68 -> 0 | D9: ='8.2 Scenario 2'!B68 -> 0 | E9: ='8.3 Scenario 3'!B68 -> 0 | F9: ='8.4 Scenario 4'!B68 -> 0
B10: finger prints | C10: ='8.1 Scenario 1'!B69 -> 0 | D10: ='8.2 Scenario 2'!B69 -> 0 | E10: ='8.3 Scenario 3'!B69 -> 0 | F10: ='8.4 Scenario 4'!B69 -> 0
B11: iris | C11: ='8.1 Scenario 1'!B70 -> 0 | D11: ='8.2 Scenario 2'!B70 -> 0 | E11: ='8.3 Scenario 3'!B70 -> 0 | F11: ='8.4 Scenario 4'!B70 -> 0
B12: Demographic data points
B13: no. of demographic data points | C13: ='8.1 Scenario 1'!B72 -> 0 | D13: ='8.2 Scenario 2'!B72 -> 0 | E13: ='8.3 Scenario 3'!B72 -> 0 | F13: ='8.4 Scenario 4'!B72 -> 0
B14: Identity credential
B15: Type of credential | C15: ='8.1 Scenario 1'!B74 -> 0 | D15: ='8.2 Scenario 2'!B74 -> 0 | E15: ='8.3 Scenario 3'!B74 -> 0 | F15: ='8.4 Scenario 4'!B74 -> 0
B16: Type of chip | C16: ='8.1 Scenario 1'!B75 -> 0 | D16: ='8.2 Scenario 2'!B75 -> 0 | E16: ='8.3 Scenario 3'!B75 -> 0 | F16: ='8.4 Scenario 4'!B75 -> 0
B17: Card material | C17: ='8.1 Scenario 1'!B76 -> 0 | D17: ='8.2 Scenario 2'!B76 -> 0 | E17: ='8.3 Scenario 3'!B76 -> 0 | F17: ='8.4 Scenario 4'!B76 -> 0
B18: Level of security | C18: ='8.1 Scenario 1'!B77 -> 0 | D18: ='8.2 Scenario 2'!B77 -> 0 | E18: ='8.3 Scenario 3'!B77 -> 0 | F18: ='8.4 Scenario 4'!B77 -> 0
B19: Mag strip | C19: ='8.1 Scenario 1'!B78 -> 0 | D19: ='8.2 Scenario 2'!B78 -> 0 | E19: ='8.3 Scenario 3'!B78 -> 0 | F19: ='8.4 Scenario 4'!B78 -> 0
B20: bar code | C20: ='8.1 Scenario 1'!B79 -> 0 | D20: ='8.2 Scenario 2'!B79 -> 0 | E20: ='8.3 Scenario 3'!B79 -> 0 | F20: ='8.4 Scenario 4'!B79 -> 0
B21: Crvs linkages
B22: Crvs linkages | C22: ='8.1 Scenario 1'!B80 -> 0 | D22: ='8.2 Scenario 2'!B80 -> 0 | E22: ='8.3 Scenario 3'!B80 -> 0 | F22: ='8.4 Scenario 4'!B80 -> 0
B23: Additional points
B24: Eligible population | C24: ='8.1 Scenario 1'!B83 -> 0 | D24: ='8.2 Scenario 2'!B83 -> 0 | E24: ='8.3 Scenario 3'!B83 -> 0 | F24: ='8.4 Scenario 4'!B83 -> 0
B25: no. of regional offices | C25: ='8.1 Scenario 1'!B84 -> 0 | D25: ='8.2 Scenario 2'!B84 -> 0 | E25: ='8.3 Scenario 3'!B84 -> 0 | F25: ='8.4 Scenario 4'!B84 -> 0
B26: no. of district offices | C26: ='8.1 Scenario 1'!B85 -> 0 | D26: ='8.2 Scenario 2'!B85 -> 0 | E26: ='8.3 Scenario 3'!B85 -> 0 | F26: ='8.4 Scenario 4'!B85 -> 0
